 Batch Number,Vendor Name,Invoice Number, Line,Line Amount,Account Description,Issue Date ,Total Amount Paid,Department,Proclass
250915G,VCG KESTREL LIMITED===========,2072,1,405,PRINTING,01/10/2015,405,Communications,Facilities & Management S
250915G,WOLF SAFETY LAMP CO LTD=======,28252,1,267,GENERAL CONSUMABLES,01/10/2015,267,Procurement,Fire & Rescue
240915M,GOVNET COMMUNICATIONS=========,89755,1,349,PROFESSIONAL DEVELOPMENT,01/10/2015,349,National Operational Guidance Project,Human Resources
240915M,TFPL LTD======================,143479,1,301.5,PROFESSIONAL DEVELOPMENT,01/10/2015,301.5,Information Management,Human Resources
250915G,PRINCIPEA CONSULTING,002-015,1,"1,249.50",PROFESSIONAL DEVELOPMENT,01/10/2015,"1,249.50",Central Finance,Legal Services
280915H,MAJESTIC WINE WAREHOUSES LTD==,003/1237395,1,645.73,PUBLIC RELATIONS,01/10/2015,645.73,Communications,Catering
141203,THAMES WATER UTILITIES LTD====,0229569091I,1,489.99,WATER & SEWERAGE RATES,01/10/2015,489.99,Technical And Service Support,Utilities
180915M,MISCO UK LTD,10702787,1,522.35,STATIONERY CONSUMABLES,01/10/2015,522.35,Information and Communication Technology,ICT
220915M,*SPRUE SAFETY PRODUCTS LTD====,1080726,1,618,FIRE DETECTORS,01/10/2015,618,Operations Non Fire Stations,Health & Safety
250915G,*SPRUE SAFETY PRODUCTS LTD====,1080727,1,865.2,FIRE DETECTORS,01/10/2015,865.2,Operations Non Fire Stations,Health & Safety
220915M,*SPRUE SAFETY PRODUCTS LTD====,1080728,1,494.4,FIRE DETECTORS,01/10/2015,494.4,Operations Non Fire Stations,Health & Safety
220915M,*SPRUE SAFETY PRODUCTS LTD====,1080729,1,"1,112.40",FIRE DETECTORS,01/10/2015,"1,112.40",Operations Non Fire Stations,Health & Safety
220915M,*SPRUE SAFETY PRODUCTS LTD====,1080731,1,370.8,FIRE DETECTORS,01/10/2015,370.8,Operations Non Fire Stations,Health & Safety
280915G,*SPRUE SAFETY PRODUCTS LTD====,1080733,1,370.8,FIRE DETECTORS,01/10/2015,370.8,Operations Non Fire Stations,Health & Safety
220915M,*SPRUE SAFETY PRODUCTS LTD====,1080734,1,988.8,FIRE DETECTORS,01/10/2015,988.8,Operations Non Fire Stations,Health & Safety
220915M,*SPRUE SAFETY PRODUCTS LTD====,1080735,1,494.4,FIRE DETECTORS,01/10/2015,494.4,Operations Non Fire Stations,Health & Safety
240915M,*SPRUE SAFETY PRODUCTS LTD====,1080736,1,"1,359.60",FIRE DETECTORS,01/10/2015,"1,359.60",Operations Non Fire Stations,Health & Safety
280915G,*SPRUE SAFETY PRODUCTS LTD====,1080737,1,988.8,FIRE DETECTORS,01/10/2015,988.8,Operations Non Fire Stations,Health & Safety
220915M,*SPRUE SAFETY PRODUCTS LTD====,1080738,1,"1,112.40",FIRE DETECTORS,01/10/2015,"1,112.40",Operations Non Fire Stations,Health & Safety
220915M,*SPRUE SAFETY PRODUCTS LTD====,1080740,1,370.8,FIRE DETECTORS,01/10/2015,370.8,Operations Non Fire Stations,Health & Safety
240915M,*SPRUE SAFETY PRODUCTS LTD====,1080741,1,"1,730.40",FIRE DETECTORS,01/10/2015,"1,730.40",Operations Non Fire Stations,Health & Safety
220915M,*SPRUE SAFETY PRODUCTS LTD====,1080746,1,618,FIRE DETECTORS,01/10/2015,618,Operations Non Fire Stations,Health & Safety
280915H,ROYAL COLLEGE OF MUSIC========,11046571,1,370,PUBLIC RELATIONS,01/10/2015,370,Communications,Facilities & Management S
250915G,AAI SECURITY SYSTEMS==========,140856,1,990,STRATEGIC (CYCLICAL),01/10/2015,990,Technical And Service Support,Facilities & Management S
240915M,LECS (UK) LTD=================,15219161,1,"4,300.00",PROFESSIONAL SERVICES,01/10/2015,"4,300.00",Technical And Service Support,Consultancy
800066064,REDFERN TRAVEL LTD,1540355,1,624.99,PUBLIC TRANSPORT,01/10/2015,624.99,Corporate Management Team,Human Resources
800066054,REDFERN TRAVEL LTD,1544330,1,404.73,PUBLIC TRANSPORT,01/10/2015,404.73,National Operational Guidance Project,Human Resources
800066049,REDFERN TRAVEL LTD,1551492,1,845.4,PUBLIC TRANSPORT,01/10/2015,845.4,National Operational Guidance Project,Human Resources
250915G,UK TAPES LTD==================,155804,1,"1,366.56",GENERAL CONSUMABLES,01/10/2015,"1,366.56",Procurement,Health & Safety
800066110,REDFERN TRAVEL LTD,1563498,1,908,PUBLIC TRANSPORT,01/10/2015,908,Operational Resilience,Human Resources
240915M,ENTEL UK LTD==================,170748,1,9,RADIO,01/10/2015,"1,079.00",Information and Communication Technology,ICT
240915M,ENTEL UK LTD==================,170748,2,935,RADIO,01/10/2015,,Information and Communication Technology,ICT
240915M,ENTEL UK LTD==================,170748,3,135,RADIO,01/10/2015,,Information and Communication Technology,ICT
240915M,DRON & WRIGHT=================,17855,1,2,PROFESSIONAL SERVICES,01/10/2015,"35,174.34",Technical And Service Support,Facilities & Management S
240915M,DRON & WRIGHT=================,17855,2,"4,448.24",PROFESSIONAL SERVICES,01/10/2015,,Technical And Service Support,Facilities & Management S
240915M,DRON & WRIGHT=================,17855,3,321.1,PROFESSIONAL SERVICES,01/10/2015,,Technical And Service Support,Facilities & Management S
240915M,DRON & WRIGHT=================,17855,4,900,PROFESSIONAL SERVICES,01/10/2015,,Technical And Service Support,Facilities & Management S
240915M,DRON & WRIGHT=================,17855,5,488,PROFESSIONAL SERVICES,01/10/2015,,Technical And Service Support,Facilities & Management S
240915M,DRON & WRIGHT=================,17855,6,"2,281.00",PROFESSIONAL SERVICES,01/10/2015,,Technical And Service Support,Facilities & Management S
240915M,DRON & WRIGHT=================,17855,7,465.5,DISPOSAL COSTS-ESTATES AGENTS,01/10/2015,,Technical and Service Support,Facilities & Management S
240915M,DRON & WRIGHT=================,17855,8,"3,597.00",DISPOSAL COSTS-ESTATES AGENTS,01/10/2015,,Technical and Service Support,Facilities & Management S
240915M,DRON & WRIGHT=================,17855,9,"1,176.00",DISPOSAL COSTS-ESTATES AGENTS,01/10/2015,,Technical and Service Support,Facilities & Management S
240915M,DRON & WRIGHT=================,17855,10,667.5,DISPOSAL COSTS-ESTATES AGENTS,01/10/2015,,Technical and Service Support,Facilities & Management S
240915M,DRON & WRIGHT=================,17855,11,915.5,DISPOSAL COSTS-ESTATES AGENTS,01/10/2015,,Technical and Service Support,Facilities & Management S
240915M,DRON & WRIGHT=================,17855,12,"2,252.00",DISPOSAL COSTS-ESTATES AGENTS,01/10/2015,,Technical and Service Support,Facilities & Management S
240915M,DRON & WRIGHT=================,17855,13,"4,462.80",PROFESSIONAL SERVICES,01/10/2015,,Technical And Service Support,Facilities & Management S
240915M,DRON & WRIGHT=================,17855,14,"3,640.50",PROFESSIONAL SERVICES,01/10/2015,,Technical And Service Support,Facilities & Management S
240915M,DRON & WRIGHT=================,17855,15,416.67,PROFESSIONAL SERVICES,01/10/2015,,Technical And Service Support,Facilities & Management S
240915M,DRON & WRIGHT=================,17855,16,"7,692.02",DISPOSAL COSTS-ESTATES AGENTS,01/10/2015,,Technical and Service Support,Facilities & Management S
240915M,DRON & WRIGHT=================,17855,17,"1,445.51",DISPOSAL COSTS-ESTATES AGENTS,01/10/2015,,Technical and Service Support,Facilities & Management S
240915M,DRON & WRIGHT=================,17855,18,0.5,PROF FEES-MISCELLANEOUS,01/10/2015,,Technical and Service Support,Facilities & Management S
240915M,DRON & WRIGHT=================,17855,19,2.5,PROF FEES-MISCELLANEOUS,01/10/2015,,Technical and Service Support,Facilities & Management S
140915M,DYSLEXIA ACTION,193284,1,525,LEARNING SUPPORT,01/10/2015,525,Development and Training,Human Resources
170915M,DYSLEXIA ACTION,193325,1,"1,620.00",LEARNING SUPPORT,01/10/2015,"1,920.00",Development and Training,Human Resources
170915M,DYSLEXIA ACTION,193325,2,300,LEARNING SUPPORT,01/10/2015,,Development and Training,Human Resources
140915M,DYSLEXIA ACTION,193327,1,"2,160.00",LEARNING SUPPORT,01/10/2015,"2,160.00",Development and Training,Human Resources
280915G,RRC TRAINING,201175698,1,"1,195.00",PROFESSIONAL DEVELOPMENT,01/10/2015,"1,195.00",Procurement,Human Resources
141203,AFFINITY WATER,20949794I,1,359.51,WATER & SEWERAGE RATES,01/10/2015,359.51,Technical And Service Support,Utilities
141203,THAMES WATER UTILITIES LTD====,2122061529I,1,637.99,WATER & SEWERAGE RATES,01/10/2015,637.99,Technical And Service Support,Utilities
280915H,CRISPIN HUGHES================,2305,1,359.9,PRESS OFFICE,01/10/2015,359.9,Communications,Facilities & Management S
240915M,INFIGO LTD====================,23919,1,177.5,STATIONERY CONSUMABLES,01/10/2015,802.5,Communications,Stationery
240915M,INFIGO LTD====================,23919,2,325,STATIONERY CONSUMABLES,01/10/2015,,Communications,Stationery
240915M,INFIGO LTD====================,23919,3,300,STATIONERY CONSUMABLES,01/10/2015,,Communications,Stationery
800066097,ADECCO UK LIMITED=============,27123999,1,973.14,FRS STAFF AGENCY,01/10/2015,973.14,Review of Property Services,Human Resources
800066098,ADECCO UK LIMITED=============,27130238,1,973.14,FRS STAFF AGENCY,01/10/2015,973.14,Review of Property Services,Human Resources
800066093,ADECCO UK LIMITED=============,27136272,1,"1,961.80",FRS STAFF AGENCY,01/10/2015,"1,961.80",Legal & Democratic Services,Human Resources
800066099,ADECCO UK LIMITED=============,27136282,1,973.14,FRS STAFF AGENCY,01/10/2015,973.14,Review of Property Services,Human Resources
800066120,ADECCO UK LIMITED=============,27136288,1,"1,746.60",FRS STAFF AGENCY,01/10/2015,"1,746.60",Vehicle & Equipment Programme,Human Resources
800066100,ADECCO UK LIMITED=============,27143337,1,324.38,FRS STAFF AGENCY,01/10/2015,324.38,Review of Property Services,Human Resources
800066101,ADECCO UK LIMITED=============,27149178,1,370.72,FRS STAFF AGENCY,01/10/2015,370.72,Review of Property Services,Human Resources
800066094,ADECCO UK LIMITED=============,27175066,1,980.9,FRS STAFF AGENCY,01/10/2015,980.9,Legal & Democratic Services,Human Resources
800066095,ADECCO UK LIMITED=============,27181436,1,"1,471.35",FRS STAFF AGENCY,01/10/2015,"1,471.35",Legal & Democratic Services,Human Resources
800066096,ADECCO UK LIMITED=============,27187694,1,980.9,FRS STAFF AGENCY,01/10/2015,980.9,Legal & Democratic Services,Human Resources
800066125,ADECCO UK LIMITED=============,27257899,1,"1,746.60",FRS STAFF AGENCY,01/10/2015,"1,746.60",Vehicle & Equipment Programme,Human Resources
240915M,DRAEGER SAFETY UK LIMITED=====,2910027004,1,97.2,PROTECTIVE EQUIPT - PARTS,01/10/2015,254.5,Technical and Service Support,Fire & Rescue
240915M,DRAEGER SAFETY UK LIMITED=====,2910027004,2,157.3,PROTECTIVE EQUIPT - PARTS,01/10/2015,,Technical and Service Support,Fire & Rescue
280915G,DRAEGER SAFETY UK LIMITED=====,2910028477,1,452,PROTECTIVE EQUIPT - PARTS,01/10/2015,452,Technical and Service Support,Fire & Rescue
280915G,DRAEGER SAFETY UK LIMITED=====,2910028478,1,452,PROTECTIVE EQUIPT - PARTS,01/10/2015,452,Technical and Service Support,Fire & Rescue
280915G,DRAEGER SAFETY UK LIMITED=====,2910028566,1,"5,988.00",PROTECTIVE EQUIPT - PARTS,01/10/2015,"7,866.72",Technical and Service Support,Fire & Rescue
280915G,DRAEGER SAFETY UK LIMITED=====,2910028566,2,"1,878.72",PROTECTIVE EQUIPT - PARTS,01/10/2015,,Technical and Service Support,Fire & Rescue
280915G,DRAEGER SAFETY UK LIMITED=====,2910028895,1,281.25,PROTECTIVE EQUIPT - PARTS,01/10/2015,281.25,Technical and Service Support,Fire & Rescue
280915G,DRAEGER SAFETY UK LIMITED=====,2910029353,1,111.1,PROTECTIVE EQUIPT - PARTS,01/10/2015,"1,575.15",Technical and Service Support,Fire & Rescue
280915G,DRAEGER SAFETY UK LIMITED=====,2910029353,2,358.75,PROTECTIVE EQUIPT - PARTS,01/10/2015,,Technical and Service Support,Fire & Rescue
280915G,DRAEGER SAFETY UK LIMITED=====,2910029353,3,76.8,PROTECTIVE EQUIPT - PARTS,01/10/2015,,Technical and Service Support,Fire & Rescue
280915G,DRAEGER SAFETY UK LIMITED=====,2910029353,4,356.5,PROTECTIVE EQUIPT - PARTS,01/10/2015,,Technical and Service Support,Fire & Rescue
280915G,DRAEGER SAFETY UK LIMITED=====,2910029353,5,584,PROTECTIVE EQUIPT - PARTS,01/10/2015,,Technical and Service Support,Fire & Rescue
280915G,DRAEGER SAFETY UK LIMITED=====,2910029353,6,88,PROTECTIVE EQUIPT - PARTS,01/10/2015,,Technical and Service Support,Fire & Rescue
280915G,DRAEGER SAFETY UK LIMITED=====,2910029499,1,678.8,PROTECTIVE EQUIPT - PARTS,01/10/2015,678.8,Technical and Service Support,Fire & Rescue
240915M,PULSE FITNESS LTD,37142,1,"1,605.10",GYM EQUIPMENT,01/10/2015,"1,605.10",Technical And Service Support,Sports & Playground Equip
240915M,PULSE FITNESS LTD,37143,1,"1,605.10",GYM EQUIPMENT,01/10/2015,"1,605.10",Technical And Service Support,Sports & Playground Equip
240915M,PULSE FITNESS LTD,37144,1,291.07,GYM EQUIPMENT,01/10/2015,291.07,Technical And Service Support,Sports & Playground Equip
240915M,PULSE FITNESS LTD,37145,1,"2,309.18",GYM EQUIPMENT,01/10/2015,"2,309.18",Technical And Service Support,Sports & Playground Equip
240915M,PULSE FITNESS LTD,37151,1,"3,147.58",GYM EQUIPMENT,01/10/2015,"3,147.58",Technical And Service Support,Sports & Playground Equip
240915M,PULSE FITNESS LTD,37200,1,"2,309.18",GYM EQUIPMENT,01/10/2015,"2,309.18",Technical And Service Support,Sports & Playground Equip
240915M,PULSE FITNESS LTD,37203,1,"1,605.10",GYM EQUIPMENT,01/10/2015,"1,605.10",Technical And Service Support,Sports & Playground Equip
240915M,PULSE FITNESS LTD,37204,1,"1,605.10",GYM EQUIPMENT,01/10/2015,"1,605.10",Technical And Service Support,Sports & Playground Equip
240915M,PULSE FITNESS LTD,37205,1,"1,605.10",GYM EQUIPMENT,01/10/2015,"1,605.10",Technical And Service Support,Sports & Playground Equip
150915H,COMPUTACENTRE================,3880619580,1,579,ACQUISITIONS,01/10/2015,579,Information and Communication Technology,ICT
141203,THAMES WATER UTILITIES LTD====,3916838388I,1,395.96,WATER & SEWERAGE RATES,01/10/2015,395.96,Technical And Service Support,Utilities
280915G,EVOLUTION ENVIRONMENTAL LTD,3978,1,740,DEVELOPMENT  EXPENSES-CONTRACT,01/10/2015,830,Technical and Service Support,"Works - Construction, R&M"
280915G,EVOLUTION ENVIRONMENTAL LTD,3978,2,90,DEVELOPMENT  EXPENSES-CONTRACT,01/10/2015,,Technical and Service Support,"Works - Construction, R&M"
141203,THAMES WATER UTILITIES LTD====,4200664575I,1,430.39,WATER & SEWERAGE RATES,01/10/2015,430.39,Technical And Service Support,Utilities
141198,BRITISH GAS BUSINESS==========,4303709151,1,"1,063.95",ELECTRICITY,01/10/2015,"23,953.68",Technical And Service Support,Utilities
141198,BRITISH GAS BUSINESS==========,4303709151,2,439.72,ELECTRICITY,01/10/2015,,Technical And Service Support,Utilities
141198,BRITISH GAS BUSINESS==========,4303709151,3,745.26,ELECTRICITY,01/10/2015,,Technical And Service Support,Utilities
141198,BRITISH GAS BUSINESS==========,4303709151,4,627.8,ELECTRICITY,01/10/2015,,Technical And Service Support,Utilities
141198,BRITISH GAS BUSINESS==========,4303709151,5,519.1,ELECTRICITY,01/10/2015,,Technical And Service Support,Utilities
141198,BRITISH GAS BUSINESS==========,4303709151,6,564.87,ELECTRICITY,01/10/2015,,Technical And Service Support,Utilities
141198,BRITISH GAS BUSINESS==========,4303709151,7,"1,932.71",ELECTRICITY,01/10/2015,,Technical And Service Support,Utilities
141198,BRITISH GAS BUSINESS==========,4303709151,8,"1,015.10",ELECTRICITY,01/10/2015,,Technical And Service Support,Utilities
141198,BRITISH GAS BUSINESS==========,4303709151,9,959.7,ELECTRICITY,01/10/2015,,Technical And Service Support,Utilities
141198,BRITISH GAS BUSINESS==========,4303709151,10,"1,174.47",ELECTRICITY,01/10/2015,,Technical And Service Support,Utilities
141198,BRITISH GAS BUSINESS==========,4303709151,11,"1,089.97",ELECTRICITY,01/10/2015,,Technical And Service Support,Utilities
141198,BRITISH GAS BUSINESS==========,4303709151,12,"1,030.53",ELECTRICITY,01/10/2015,,Technical And Service Support,Utilities
141198,BRITISH GAS BUSINESS==========,4303709151,13,373.4,ELECTRICITY,01/10/2015,,Technical And Service Support,Utilities
141198,BRITISH GAS BUSINESS==========,4303709151,14,411.88,ELECTRICITY,01/10/2015,,Technical And Service Support,Utilities
141198,BRITISH GAS BUSINESS==========,4303709151,15,442.65,ELECTRICITY,01/10/2015,,Technical And Service Support,Utilities
141198,BRITISH GAS BUSINESS==========,4303709151,16,555.42,ELECTRICITY,01/10/2015,,Technical And Service Support,Utilities
141198,BRITISH GAS BUSINESS==========,4303709151,17,502.96,ELECTRICITY,01/10/2015,,Technical And Service Support,Utilities
141198,BRITISH GAS BUSINESS==========,4303709151,18,459.8,ELECTRICITY,01/10/2015,,Technical And Service Support,Utilities
141198,BRITISH GAS BUSINESS==========,4303709151,19,414.62,ELECTRICITY,01/10/2015,,Technical And Service Support,Utilities
141198,BRITISH GAS BUSINESS==========,4303709151,20,582.42,ELECTRICITY,01/10/2015,,Technical And Service Support,Utilities
141198,BRITISH GAS BUSINESS==========,4303709151,21,"1,062.50",ELECTRICITY,01/10/2015,,Technical And Service Support,Utilities
141198,BRITISH GAS BUSINESS==========,4303709151,22,513.01,ELECTRICITY,01/10/2015,,Technical And Service Support,Utilities
141198,BRITISH GAS BUSINESS==========,4303709151,23,530.46,ELECTRICITY,01/10/2015,,Technical And Service Support,Utilities
141198,BRITISH GAS BUSINESS==========,4303709151,24,760.82,ELECTRICITY,01/10/2015,,Technical And Service Support,Utilities
141198,BRITISH GAS BUSINESS==========,4303709151,25,779.27,ELECTRICITY,01/10/2015,,Technical And Service Support,Utilities
141198,BRITISH GAS BUSINESS==========,4303709151,26,382.6,ELECTRICITY,01/10/2015,,Technical And Service Support,Utilities
141198,BRITISH GAS BUSINESS==========,4303709151,27,415.72,ELECTRICITY,01/10/2015,,Technical And Service Support,Utilities
141198,BRITISH GAS BUSINESS==========,4303709151,28,439.95,ELECTRICITY,01/10/2015,,Technical And Service Support,Utilities
141198,BRITISH GAS BUSINESS==========,4303709151,29,495.39,ELECTRICITY,01/10/2015,,Technical And Service Support,Utilities
141198,BRITISH GAS BUSINESS==========,4303709151,30,531.7,ELECTRICITY,01/10/2015,,Technical And Service Support,Utilities
141198,BRITISH GAS BUSINESS==========,4303709151,31,475.99,ELECTRICITY,01/10/2015,,Technical And Service Support,Utilities
141198,BRITISH GAS BUSINESS==========,4303709151,32,447,ELECTRICITY,01/10/2015,,Technical And Service Support,Utilities
141198,BRITISH GAS BUSINESS==========,4303709151,33,438.88,ELECTRICITY,01/10/2015,,Technical And Service Support,Utilities
141198,BRITISH GAS BUSINESS==========,4303709151,34,503.29,ELECTRICITY,01/10/2015,,Technical And Service Support,Utilities
141198,BRITISH GAS BUSINESS==========,4303709151,35,569.45,ELECTRICITY,01/10/2015,,Technical And Service Support,Utilities
141198,BRITISH GAS BUSINESS==========,4303709151,36,701.32,ELECTRICITY,01/10/2015,,Technical And Service Support,Utilities
141199,BRITISH GAS BUSINESS==========,4303709152,1,786.23,ELECTRICITY,01/10/2015,"19,050.16",Technical And Service Support,Utilities
141199,BRITISH GAS BUSINESS==========,4303709152,2,700.67,ELECTRICITY,01/10/2015,,Technical And Service Support,Utilities
141199,BRITISH GAS BUSINESS==========,4303709152,3,685,ELECTRICITY,01/10/2015,,Technical And Service Support,Utilities
141199,BRITISH GAS BUSINESS==========,4303709152,4,536.09,ELECTRICITY,01/10/2015,,Technical And Service Support,Utilities
141199,BRITISH GAS BUSINESS==========,4303709152,5,314.21,ELECTRICITY,01/10/2015,,Technical And Service Support,Utilities
141199,BRITISH GAS BUSINESS==========,4303709152,6,422.96,ELECTRICITY,01/10/2015,,Technical And Service Support,Utilities
141199,BRITISH GAS BUSINESS==========,4303709152,7,388.85,ELECTRICITY,01/10/2015,,Technical And Service Support,Utilities
141199,BRITISH GAS BUSINESS==========,4303709152,8,432.24,ELECTRICITY,01/10/2015,,Technical And Service Support,Utilities
141199,BRITISH GAS BUSINESS==========,4303709152,9,454.08,ELECTRICITY,01/10/2015,,Technical And Service Support,Utilities
141199,BRITISH GAS BUSINESS==========,4303709152,10,772.54,ELECTRICITY,01/10/2015,,Technical And Service Support,Utilities
141199,BRITISH GAS BUSINESS==========,4303709152,11,422.77,ELECTRICITY,01/10/2015,,Technical And Service Support,Utilities
141199,BRITISH GAS BUSINESS==========,4303709152,12,365.4,ELECTRICITY,01/10/2015,,Technical And Service Support,Utilities
141199,BRITISH GAS BUSINESS==========,4303709152,13,471.87,ELECTRICITY,01/10/2015,,Technical And Service Support,Utilities
141199,BRITISH GAS BUSINESS==========,4303709152,14,447,ELECTRICITY,01/10/2015,,Technical And Service Support,Utilities
141199,BRITISH GAS BUSINESS==========,4303709152,15,494.04,ELECTRICITY,01/10/2015,,Technical And Service Support,Utilities
141199,BRITISH GAS BUSINESS==========,4303709152,16,529.74,ELECTRICITY,01/10/2015,,Technical And Service Support,Utilities
141199,BRITISH GAS BUSINESS==========,4303709152,17,448.22,ELECTRICITY,01/10/2015,,Technical And Service Support,Utilities
141199,BRITISH GAS BUSINESS==========,4303709152,18,481.67,ELECTRICITY,01/10/2015,,Technical And Service Support,Utilities
141199,BRITISH GAS BUSINESS==========,4303709152,19,377.73,ELECTRICITY,01/10/2015,,Technical And Service Support,Utilities
141199,BRITISH GAS BUSINESS==========,4303709152,20,411.43,ELECTRICITY,01/10/2015,,Technical And Service Support,Utilities
141199,BRITISH GAS BUSINESS==========,4303709152,21,427.98,ELECTRICITY,01/10/2015,,Technical And Service Support,Utilities
141199,BRITISH GAS BUSINESS==========,4303709152,22,468.81,ELECTRICITY,01/10/2015,,Technical And Service Support,Utilities
141199,BRITISH GAS BUSINESS==========,4303709152,23,479.53,ELECTRICITY,01/10/2015,,Technical And Service Support,Utilities
141199,BRITISH GAS BUSINESS==========,4303709152,24,441.5,ELECTRICITY,01/10/2015,,Technical And Service Support,Utilities
141199,BRITISH GAS BUSINESS==========,4303709152,25,464.12,ELECTRICITY,01/10/2015,,Technical And Service Support,Utilities
141199,BRITISH GAS BUSINESS==========,4303709152,26,316.59,ELECTRICITY,01/10/2015,,Technical And Service Support,Utilities
141199,BRITISH GAS BUSINESS==========,4303709152,27,359.86,ELECTRICITY,01/10/2015,,Technical And Service Support,Utilities
141199,BRITISH GAS BUSINESS==========,4303709152,28,382.05,ELECTRICITY,01/10/2015,,Technical And Service Support,Utilities
141199,BRITISH GAS BUSINESS==========,4303709152,29,470.28,ELECTRICITY,01/10/2015,,Technical And Service Support,Utilities
141199,BRITISH GAS BUSINESS==========,4303709152,30,"1,106.99",ELECTRICITY,01/10/2015,,Technical And Service Support,Utilities
141199,BRITISH GAS BUSINESS==========,4303709152,31,993.17,ELECTRICITY,01/10/2015,,Technical And Service Support,Utilities
141199,BRITISH GAS BUSINESS==========,4303709152,32,"1,189.77",ELECTRICITY,01/10/2015,,Technical And Service Support,Utilities
141199,BRITISH GAS BUSINESS==========,4303709152,33,208.18,GAS,01/10/2015,,Technical And Service Support,Utilities
141199,BRITISH GAS BUSINESS==========,4303709152,34,376.86,ELECTRICITY,01/10/2015,,Technical And Service Support,Utilities
141199,BRITISH GAS BUSINESS==========,4303709152,35,567.25,GAS,01/10/2015,,Technical And Service Support,Utilities
141199,BRITISH GAS BUSINESS==========,4303709152,36,443.11,ELECTRICITY,01/10/2015,,Technical And Service Support,Utilities
141199,BRITISH GAS BUSINESS==========,4303709152,37,411.37,ELECTRICITY,01/10/2015,,Technical And Service Support,Utilities
141200,BRITISH GAS BUSINESS==========,4303709153,1,295.19,ELECTRICITY,01/10/2015,"34,967.61",Technical And Service Support,Utilities
141200,BRITISH GAS BUSINESS==========,4303709153,2,160.34,ELECTRICITY,01/10/2015,,Technical And Service Support,Utilities
141200,BRITISH GAS BUSINESS==========,4303709153,3,"2,627.88",ELECTRICITY,01/10/2015,,Technical And Service Support,Utilities
141200,BRITISH GAS BUSINESS==========,4303709153,4,"2,524.14",ELECTRICITY,01/10/2015,,Technical And Service Support,Utilities
141200,BRITISH GAS BUSINESS==========,4303709153,5,"8,067.27",ELECTRICITY,01/10/2015,,Technical And Service Support,Utilities
141200,BRITISH GAS BUSINESS==========,4303709153,6,"2,773.37",ELECTRICITY,01/10/2015,,Technical And Service Support,Utilities
141200,BRITISH GAS BUSINESS==========,4303709153,7,"3,069.58",ELECTRICITY,01/10/2015,,Technical And Service Support,Utilities
141200,BRITISH GAS BUSINESS==========,4303709153,8,102.71,ELECTRICITY,01/10/2015,,Technical And Service Support,Utilities
141200,BRITISH GAS BUSINESS==========,4303709153,9,102.71,ELECTRICITY,01/10/2015,,Technical And Service Support,Utilities
141200,BRITISH GAS BUSINESS==========,4303709153,10,102.71,ELECTRICITY,01/10/2015,,Technical And Service Support,Utilities
141200,BRITISH GAS BUSINESS==========,4303709153,11,106.14,ELECTRICITY,01/10/2015,,Technical And Service Support,Utilities
141200,BRITISH GAS BUSINESS==========,4303709153,12,106.14,ELECTRICITY,01/10/2015,,Technical And Service Support,Utilities
141200,BRITISH GAS BUSINESS==========,4303709153,13,97.99,ELECTRICITY,01/10/2015,,Technical And Service Support,Utilities
141200,BRITISH GAS BUSINESS==========,4303709153,14,475.16,ELECTRICITY,01/10/2015,,Technical And Service Support,Utilities
141200,BRITISH GAS BUSINESS==========,4303709153,15,541.13,ELECTRICITY,01/10/2015,,Technical And Service Support,Utilities
141200,BRITISH GAS BUSINESS==========,4303709153,16,423.85,ELECTRICITY,01/10/2015,,Technical And Service Support,Utilities
141200,BRITISH GAS BUSINESS==========,4303709153,17,631.1,ELECTRICITY,01/10/2015,,Technical And Service Support,Utilities
141200,BRITISH GAS BUSINESS==========,4303709153,18,797.86,ELECTRICITY,01/10/2015,,Technical And Service Support,Utilities
141200,BRITISH GAS BUSINESS==========,4303709153,19,646.81,ELECTRICITY,01/10/2015,,Technical And Service Support,Utilities
141200,BRITISH GAS BUSINESS==========,4303709153,20,462.26,ELECTRICITY,01/10/2015,,Technical And Service Support,Utilities
141200,BRITISH GAS BUSINESS==========,4303709153,21,"1,278.66",ELECTRICITY,01/10/2015,,Technical And Service Support,Utilities
141200,BRITISH GAS BUSINESS==========,4303709153,22,"1,485.27",ELECTRICITY,01/10/2015,,Technical And Service Support,Utilities
141200,BRITISH GAS BUSINESS==========,4303709153,23,"1,539.90",ELECTRICITY,01/10/2015,,Technical And Service Support,Utilities
141200,BRITISH GAS BUSINESS==========,4303709153,24,"1,606.96",ELECTRICITY,01/10/2015,,Technical And Service Support,Utilities
141200,BRITISH GAS BUSINESS==========,4303709153,25,"1,715.69",ELECTRICITY,01/10/2015,,Technical And Service Support,Utilities
141200,BRITISH GAS BUSINESS==========,4303709153,26,"1,612.61",ELECTRICITY,01/10/2015,,Technical And Service Support,Utilities
141200,BRITISH GAS BUSINESS==========,4303709153,27,"1,614.18",ELECTRICITY,01/10/2015,,Technical And Service Support,Utilities
280915H,KNIGHTON CLEANING SERVICES LTD,48610,1,"1,937.39",GENERAL CLEANS,01/10/2015,"71,837.23",Technical And Service Support,Cleaning & Janitorial
280915H,KNIGHTON CLEANING SERVICES LTD,48610,2,"1,159.23",GENERAL CLEANS,01/10/2015,,Technical And Service Support,Cleaning & Janitorial
280915H,KNIGHTON CLEANING SERVICES LTD,48610,3,"1,392.51",GENERAL CLEANS,01/10/2015,,Technical And Service Support,Cleaning & Janitorial
280915H,KNIGHTON CLEANING SERVICES LTD,48610,4,"1,111.46",GENERAL CLEANS,01/10/2015,,Technical And Service Support,Cleaning & Janitorial
280915H,KNIGHTON CLEANING SERVICES LTD,48610,5,"1,128.39",GENERAL CLEANS,01/10/2015,,Technical And Service Support,Cleaning & Janitorial
280915H,KNIGHTON CLEANING SERVICES LTD,48610,6,"1,015.32",GENERAL CLEANS,01/10/2015,,Technical And Service Support,Cleaning & Janitorial
280915H,KNIGHTON CLEANING SERVICES LTD,48610,7,735.03,GENERAL CLEANS,01/10/2015,,Technical And Service Support,Cleaning & Janitorial
280915H,KNIGHTON CLEANING SERVICES LTD,48610,8,"1,223.11",GENERAL CLEANS,01/10/2015,,Technical And Service Support,Cleaning & Janitorial
280915H,KNIGHTON CLEANING SERVICES LTD,48610,9,"1,032.81",GENERAL CLEANS,01/10/2015,,Technical And Service Support,Cleaning & Janitorial
280915H,KNIGHTON CLEANING SERVICES LTD,48610,10,"1,852.47",GENERAL CLEANS,01/10/2015,,Technical And Service Support,Cleaning & Janitorial
280915H,KNIGHTON CLEANING SERVICES LTD,48610,11,"2,157.21",GENERAL CLEANS,01/10/2015,,Technical And Service Support,Cleaning & Janitorial
280915H,KNIGHTON CLEANING SERVICES LTD,48610,12,747,GENERAL CLEANS,01/10/2015,,Technical And Service Support,Cleaning & Janitorial
280915H,KNIGHTON CLEANING SERVICES LTD,48610,13,"1,412.19",GENERAL CLEANS,01/10/2015,,Technical And Service Support,Cleaning & Janitorial
280915H,KNIGHTON CLEANING SERVICES LTD,48610,14,735.03,GENERAL CLEANS,01/10/2015,,Technical And Service Support,Cleaning & Janitorial
280915H,KNIGHTON CLEANING SERVICES LTD,48610,15,"1,459.69",GENERAL CLEANS,01/10/2015,,Technical And Service Support,Cleaning & Janitorial
280915H,KNIGHTON CLEANING SERVICES LTD,48610,16,"1,773.54",GENERAL CLEANS,01/10/2015,,Technical And Service Support,Cleaning & Janitorial
280915H,KNIGHTON CLEANING SERVICES LTD,48610,17,661.99,GENERAL CLEANS,01/10/2015,,Technical And Service Support,Cleaning & Janitorial
280915H,KNIGHTON CLEANING SERVICES LTD,48610,18,"2,326.67",GENERAL CLEANS,01/10/2015,,Technical And Service Support,Cleaning & Janitorial
280915H,KNIGHTON CLEANING SERVICES LTD,48610,19,"1,745.02",GENERAL CLEANS,01/10/2015,,Technical And Service Support,Cleaning & Janitorial
280915H,KNIGHTON CLEANING SERVICES LTD,48610,20,908.28,GENERAL CLEANS,01/10/2015,,Technical And Service Support,Cleaning & Janitorial
280915H,KNIGHTON CLEANING SERVICES LTD,48610,21,904.47,GENERAL CLEANS,01/10/2015,,Technical And Service Support,Cleaning & Janitorial
280915H,KNIGHTON CLEANING SERVICES LTD,48610,22,"1,037.70",GENERAL CLEANS,01/10/2015,,Technical And Service Support,Cleaning & Janitorial
280915H,KNIGHTON CLEANING SERVICES LTD,48610,23,"1,641.36",GENERAL CLEANS,01/10/2015,,Technical And Service Support,Cleaning & Janitorial
280915H,KNIGHTON CLEANING SERVICES LTD,48610,24,"1,041.03",GENERAL CLEANS,01/10/2015,,Technical And Service Support,Cleaning & Janitorial
280915H,KNIGHTON CLEANING SERVICES LTD,48610,25,811.24,GENERAL CLEANS,01/10/2015,,Technical And Service Support,Cleaning & Janitorial
280915H,KNIGHTON CLEANING SERVICES LTD,48610,26,947.55,GENERAL CLEANS,01/10/2015,,Technical And Service Support,Cleaning & Janitorial
280915H,KNIGHTON CLEANING SERVICES LTD,48610,27,"1,336.03",GENERAL CLEANS,01/10/2015,,Technical And Service Support,Cleaning & Janitorial
280915H,KNIGHTON CLEANING SERVICES LTD,48610,28,743.61,GENERAL CLEANS,01/10/2015,,Technical And Service Support,Cleaning & Janitorial
280915H,KNIGHTON CLEANING SERVICES LTD,48610,29,"1,417.59",GENERAL CLEANS,01/10/2015,,Technical And Service Support,Cleaning & Janitorial
280915H,KNIGHTON CLEANING SERVICES LTD,48610,30,"1,232.72",GENERAL CLEANS,01/10/2015,,Technical And Service Support,Cleaning & Janitorial
280915H,KNIGHTON CLEANING SERVICES LTD,48610,31,"1,412.86",GENERAL CLEANS,01/10/2015,,Technical And Service Support,Cleaning & Janitorial
280915H,KNIGHTON CLEANING SERVICES LTD,48610,32,755.87,GENERAL CLEANS,01/10/2015,,Technical And Service Support,Cleaning & Janitorial
280915H,KNIGHTON CLEANING SERVICES LTD,48610,33,946.73,GENERAL CLEANS,01/10/2015,,Technical And Service Support,Cleaning & Janitorial
280915H,KNIGHTON CLEANING SERVICES LTD,48610,34,582.98,GENERAL CLEANS,01/10/2015,,Technical And Service Support,Cleaning & Janitorial
280915H,KNIGHTON CLEANING SERVICES LTD,48610,35,"1,456.30",GENERAL CLEANS,01/10/2015,,Technical And Service Support,Cleaning & Janitorial
280915H,KNIGHTON CLEANING SERVICES LTD,48610,36,"1,342.90",GENERAL CLEANS,01/10/2015,,Technical And Service Support,Cleaning & Janitorial
280915H,KNIGHTON CLEANING SERVICES LTD,48610,37,927.61,GENERAL CLEANS,01/10/2015,,Technical And Service Support,Cleaning & Janitorial
280915H,KNIGHTON CLEANING SERVICES LTD,48610,38,"2,752.85",GENERAL CLEANS,01/10/2015,,Technical And Service Support,Cleaning & Janitorial
280915H,KNIGHTON CLEANING SERVICES LTD,48610,39,"1,013.29",GENERAL CLEANS,01/10/2015,,Technical And Service Support,Cleaning & Janitorial
280915H,KNIGHTON CLEANING SERVICES LTD,48610,40,"1,067.45",GENERAL CLEANS,01/10/2015,,Technical And Service Support,Cleaning & Janitorial
280915H,KNIGHTON CLEANING SERVICES LTD,48610,41,"1,001.55",GENERAL CLEANS,01/10/2015,,Technical And Service Support,Cleaning & Janitorial
280915H,KNIGHTON CLEANING SERVICES LTD,48610,42,860.3,GENERAL CLEANS,01/10/2015,,Technical And Service Support,Cleaning & Janitorial
280915H,KNIGHTON CLEANING SERVICES LTD,48610,43,"2,189.11",GENERAL CLEANS,01/10/2015,,Technical And Service Support,Cleaning & Janitorial
280915H,KNIGHTON CLEANING SERVICES LTD,48610,44,"1,809.45",GENERAL CLEANS,01/10/2015,,Technical And Service Support,Cleaning & Janitorial
280915H,KNIGHTON CLEANING SERVICES LTD,48610,45,999.39,GENERAL CLEANS,01/10/2015,,Technical And Service Support,Cleaning & Janitorial
280915H,KNIGHTON CLEANING SERVICES LTD,48610,46,658.54,GENERAL CLEANS,01/10/2015,,Technical And Service Support,Cleaning & Janitorial
280915H,KNIGHTON CLEANING SERVICES LTD,48610,47,649.96,GENERAL CLEANS,01/10/2015,,Technical And Service Support,Cleaning & Janitorial
280915H,KNIGHTON CLEANING SERVICES LTD,48610,48,762.65,GENERAL CLEANS,01/10/2015,,Technical And Service Support,Cleaning & Janitorial
280915H,KNIGHTON CLEANING SERVICES LTD,48610,49,"2,282.17",GENERAL CLEANS,01/10/2015,,Technical And Service Support,Cleaning & Janitorial
280915H,KNIGHTON CLEANING SERVICES LTD,48610,50,"1,023.20",GENERAL CLEANS,01/10/2015,,Technical And Service Support,Cleaning & Janitorial
280915H,KNIGHTON CLEANING SERVICES LTD,48610,51,"1,535.80",GENERAL CLEANS,01/10/2015,,Technical And Service Support,Cleaning & Janitorial
280915H,KNIGHTON CLEANING SERVICES LTD,48610,52,"2,610.43",GENERAL CLEANS,01/10/2015,,Technical And Service Support,Cleaning & Janitorial
280915H,KNIGHTON CLEANING SERVICES LTD,48610,53,740.87,GENERAL CLEANS,01/10/2015,,Technical And Service Support,Cleaning & Janitorial
280915H,KNIGHTON CLEANING SERVICES LTD,48610,54,757.73,GENERAL CLEANS,01/10/2015,,Technical And Service Support,Cleaning & Janitorial
280915H,KNIGHTON CLEANING SERVICES LTD,48610,55,13.61,GENERAL CLEANS,01/10/2015,,Technical And Service Support,Cleaning & Janitorial
280915H,KNIGHTON CLEANING SERVICES LTD,48610,56,"1,023.28",GENERAL CLEANS,01/10/2015,,Technical And Service Support,Cleaning & Janitorial
280915H,KNIGHTON CLEANING SERVICES LTD,48610,57,826.33,GENERAL CLEANS,01/10/2015,,Technical And Service Support,Cleaning & Janitorial
280915H,KNIGHTON CLEANING SERVICES LTD,48610,58,966,GENERAL CLEANS,01/10/2015,,Technical And Service Support,Cleaning & Janitorial
280915H,KNIGHTON CLEANING SERVICES LTD,48610,59,"1,240.38",GENERAL CLEANS,01/10/2015,,Technical And Service Support,Cleaning & Janitorial
280915H,KNIGHTON CLEANING SERVICES LTD,48611,1,957.91,GENERAL CLEANS,01/10/2015,"63,698.31",Technical And Service Support,Cleaning & Janitorial
280915H,KNIGHTON CLEANING SERVICES LTD,48611,2,"1,000.99",GENERAL CLEANS,01/10/2015,,Technical And Service Support,Cleaning & Janitorial
280915H,KNIGHTON CLEANING SERVICES LTD,48611,3,"1,005.24",GENERAL CLEANS,01/10/2015,,Technical And Service Support,Cleaning & Janitorial
280915H,KNIGHTON CLEANING SERVICES LTD,48611,4,"1,197.97",GENERAL CLEANS,01/10/2015,,Technical And Service Support,Cleaning & Janitorial
280915H,KNIGHTON CLEANING SERVICES LTD,48611,5,570.13,GENERAL CLEANS,01/10/2015,,Technical And Service Support,Cleaning & Janitorial
280915H,KNIGHTON CLEANING SERVICES LTD,48611,6,"1,368.30",GENERAL CLEANS,01/10/2015,,Technical And Service Support,Cleaning & Janitorial
280915H,KNIGHTON CLEANING SERVICES LTD,48611,7,"2,041.79",GENERAL CLEANS,01/10/2015,,Technical And Service Support,Cleaning & Janitorial
280915H,KNIGHTON CLEANING SERVICES LTD,48611,8,"1,966.48",GENERAL CLEANS,01/10/2015,,Technical And Service Support,Cleaning & Janitorial
280915H,KNIGHTON CLEANING SERVICES LTD,48611,9,"3,166.56",GENERAL CLEANS,01/10/2015,,Technical And Service Support,Cleaning & Janitorial
280915H,KNIGHTON CLEANING SERVICES LTD,48611,10,994.31,GENERAL CLEANS,01/10/2015,,Technical And Service Support,Cleaning & Janitorial
280915H,KNIGHTON CLEANING SERVICES LTD,48611,11,"1,215.82",GENERAL CLEANS,01/10/2015,,Technical And Service Support,Cleaning & Janitorial
280915H,KNIGHTON CLEANING SERVICES LTD,48611,12,"1,002.00",GENERAL CLEANS,01/10/2015,,Technical And Service Support,Cleaning & Janitorial
280915H,KNIGHTON CLEANING SERVICES LTD,48611,13,"1,048.06",GENERAL CLEANS,01/10/2015,,Technical And Service Support,Cleaning & Janitorial
280915H,KNIGHTON CLEANING SERVICES LTD,48611,14,"1,052.11",GENERAL CLEANS,01/10/2015,,Technical And Service Support,Cleaning & Janitorial
280915H,KNIGHTON CLEANING SERVICES LTD,48611,15,"1,418.09",GENERAL CLEANS,01/10/2015,,Technical And Service Support,Cleaning & Janitorial
280915H,KNIGHTON CLEANING SERVICES LTD,48611,16,"1,152.59",GENERAL CLEANS,01/10/2015,,Technical And Service Support,Cleaning & Janitorial
280915H,KNIGHTON CLEANING SERVICES LTD,48611,17,600.12,GENERAL CLEANS,01/10/2015,,Technical And Service Support,Cleaning & Janitorial
280915H,KNIGHTON CLEANING SERVICES LTD,48611,18,"12,136.16",GENERAL CLEANS,01/10/2015,,Technical And Service Support,Cleaning & Janitorial
280915H,KNIGHTON CLEANING SERVICES LTD,48611,19,"1,130.59",GENERAL CLEANS,01/10/2015,,Technical And Service Support,Cleaning & Janitorial
280915H,KNIGHTON CLEANING SERVICES LTD,48611,20,443.58,GENERAL CLEANS,01/10/2015,,Technical And Service Support,Cleaning & Janitorial
280915H,KNIGHTON CLEANING SERVICES LTD,48611,21,"1,501.17",GENERAL CLEANS,01/10/2015,,Technical And Service Support,Cleaning & Janitorial
280915H,KNIGHTON CLEANING SERVICES LTD,48611,22,"3,128.63",GENERAL CLEANS,01/10/2015,,Technical And Service Support,Cleaning & Janitorial
280915H,KNIGHTON CLEANING SERVICES LTD,48611,23,"1,701.28",GENERAL CLEANS,01/10/2015,,Technical And Service Support,Cleaning & Janitorial
280915H,KNIGHTON CLEANING SERVICES LTD,48611,24,827.92,GENERAL CLEANS,01/10/2015,,Technical And Service Support,Cleaning & Janitorial
280915H,KNIGHTON CLEANING SERVICES LTD,48611,25,"1,266.82",GENERAL CLEANS,01/10/2015,,Technical And Service Support,Cleaning & Janitorial
280915H,KNIGHTON CLEANING SERVICES LTD,48611,26,"1,928.03",GENERAL CLEANS,01/10/2015,,Technical And Service Support,Cleaning & Janitorial
280915H,KNIGHTON CLEANING SERVICES LTD,48611,27,"1,225.82",GENERAL CLEANS,01/10/2015,,Technical And Service Support,Cleaning & Janitorial
280915H,KNIGHTON CLEANING SERVICES LTD,48611,28,"1,039.90",GENERAL CLEANS,01/10/2015,,Technical And Service Support,Cleaning & Janitorial
280915H,KNIGHTON CLEANING SERVICES LTD,48611,29,"1,243.09",GENERAL CLEANS,01/10/2015,,Technical And Service Support,Cleaning & Janitorial
280915H,KNIGHTON CLEANING SERVICES LTD,48611,30,"2,965.43",GENERAL CLEANS,01/10/2015,,Technical And Service Support,Cleaning & Janitorial
280915H,KNIGHTON CLEANING SERVICES LTD,48611,31,753.6,GENERAL CLEANS,01/10/2015,,Technical And Service Support,Cleaning & Janitorial
280915H,KNIGHTON CLEANING SERVICES LTD,48611,32,938.13,GENERAL CLEANS,01/10/2015,,Technical And Service Support,Cleaning & Janitorial
280915H,KNIGHTON CLEANING SERVICES LTD,48611,33,"1,856.01",GENERAL CLEANS,01/10/2015,,Technical And Service Support,Cleaning & Janitorial
280915H,KNIGHTON CLEANING SERVICES LTD,48611,34,941.84,GENERAL CLEANS,01/10/2015,,Technical And Service Support,Cleaning & Janitorial
280915H,KNIGHTON CLEANING SERVICES LTD,48611,35,836.79,GENERAL CLEANS,01/10/2015,,Technical And Service Support,Cleaning & Janitorial
280915H,KNIGHTON CLEANING SERVICES LTD,48611,36,"1,564.97",GENERAL CLEANS,01/10/2015,,Technical And Service Support,Cleaning & Janitorial
280915H,KNIGHTON CLEANING SERVICES LTD,48611,37,"1,573.36",GENERAL CLEANS,01/10/2015,,Technical And Service Support,Cleaning & Janitorial
280915H,KNIGHTON CLEANING SERVICES LTD,48611,38,"1,272.89",GENERAL CLEANS,01/10/2015,,Technical And Service Support,Cleaning & Janitorial
280915H,KNIGHTON CLEANING SERVICES LTD,48611,39,"1,195.49",GENERAL CLEANS,01/10/2015,,Technical And Service Support,Cleaning & Janitorial
280915H,KNIGHTON CLEANING SERVICES LTD,48611,40,468.34,GENERAL CLEANS,01/10/2015,,Technical And Service Support,Cleaning & Janitorial
800065756,*OCS GROUP UK LTD,5000113203-4,1,687.72,CATERING,01/10/2015,687.72,Technical And Service Support,Catering
800065753,*OCS GROUP UK LTD,5000113217-1,1,"3,278.55",CATERING,01/10/2015,"3,278.55",Technical And Service Support,Catering
800066083,*OCS GROUP UK LTD,5000129071-18,1,367.2,REFRESHMENTS,01/10/2015,367.2,Community Safety Delivery,Catering
280915H,CK DIRECT,5687,1,"3,952.00",CATERING FIXTURES,01/10/2015,"3,952.00",Technical And Service Support,Facilities & Management S
280915H,AECOM INFRASTRUCTURE &,6285546,1,"5,557.45",PROF FEES-MISCELLANEOUS,01/10/2015,"5,557.45",Technical and Service Support,Consultancy
280915H,CORE SURVEYSLTD===============,6305,1,170,ASBESTOS,01/10/2015,510,Technical and Service Support,"Works - Construction, R&M"
280915H,CORE SURVEYSLTD===============,6305,2,170,ASBESTOS,01/10/2015,,Technical and Service Support,"Works - Construction, R&M"
280915H,CORE SURVEYSLTD===============,6305,3,170,ASBESTOS,01/10/2015,,Technical and Service Support,"Works - Construction, R&M"
280915H,CORE SURVEYSLTD===============,6319,1,750,DEVELOPMENT  EXPENSES-CONTRACT,01/10/2015,750,Technical and Service Support,"Works - Construction, R&M"
141203,DEFENCE BUSINESS SERVICES,7420706,1,"68,822.70",HIRE OF FACILITIES,01/10/2015,"68,822.70",Business Continuity,Consultancy
141203,THAMES WATER UTILITIES LTD====,7814156581I,1,384.12,WATER & SEWERAGE RATES,01/10/2015,384.12,Technical And Service Support,Utilities
280915H,G4S FIRE & SECURITY SYSTEMS UK,80018344,1,"7,587.30",STRATEGIC (CYCLICAL),01/10/2015,"7,587.30",Technical And Service Support,Facilities & Management S
240915M,FIRE SERVICE COLLEGE LTD======,804344,1,315,PROFESSIONAL DEVELOPMENT,01/10/2015,315,National Operational Guidance Project,Human Resources
280915G,TWO SERVICES LTD==============,84100,1,255.4,CATERING EQUIPMENT,01/10/2015,255.4,Operations Fire Stations,Catering
141203,THAMES WATER UTILITIES LTD====,8650440536I,1,303.28,WATER & SEWERAGE RATES,01/10/2015,303.28,Technical And Service Support,Utilities
141203,THAMES WATER UTILITIES LTD====,8696892161I,1,474.61,WATER & SEWERAGE RATES,01/10/2015,474.61,Technical And Service Support,Utilities
280915H,G4S FIRE & SECURITY SYSTEMS UK,886652,1,"7,272.31",STRATEGIC (CYCLICAL),01/10/2015,"7,272.31",Technical And Service Support,Facilities & Management S
280915H,G4S FIRE & SECURITY SYSTEMS UK,889195,1,"7,587.30",STRATEGIC (CYCLICAL),01/10/2015,"7,587.30",Technical And Service Support,Facilities & Management S
280915H,A.R.C.S. ENVIRONMENTAL LTD====,9326,1,100,ASBESTOS,01/10/2015,820,Technical and Service Support,Environmental Services
280915H,A.R.C.S. ENVIRONMENTAL LTD====,9326,2,420,ASBESTOS,01/10/2015,,Technical and Service Support,Environmental Services
280915H,A.R.C.S. ENVIRONMENTAL LTD====,9326,3,100,ASBESTOS,01/10/2015,,Technical and Service Support,Environmental Services
280915H,A.R.C.S. ENVIRONMENTAL LTD====,9326,4,200,ASBESTOS,01/10/2015,,Technical and Service Support,Environmental Services
141203,THAMES WATER UTILITIES LTD====,9570386229I,1,335.66,WATER & SEWERAGE RATES,01/10/2015,335.66,Technical And Service Support,Utilities
280915H,ASTEC SURVEYS LIMITED=========,ASL-15-261,1,175,ASBESTOS,01/10/2015,350,Technical and Service Support,Environmental Services
280915H,ASTEC SURVEYS LIMITED=========,ASL-15-261,2,175,ASBESTOS,01/10/2015,,Technical and Service Support,Environmental Services
280915G,E&S B DAVIS LTD,DAV/57798,1,295,OPERATIONAL EQUIP-PURCHASE,01/10/2015,295,Operations Fire Stations,Environmental Services
250915G,E&S B DAVIS LTD,DAV/57808,1,475,OPERATIONAL EQUIP-PURCHASE,01/10/2015,475,Operations Fire Stations,Environmental Services
240915M,E&S B DAVIS LTD,DAV/57897,1,295,OPERATIONAL EQUIP-PURCHASE,01/10/2015,295,Operations Fire Stations,Environmental Services
240915M,NCC SERVICES LTD==============,E919153,1,750,MAINTENANCE & SUPPORT,01/10/2015,750,Information and Communication Technology,ICT
280915H,HALL FUELS,I07753527,1,"2,691.53",FUEL,01/10/2015,"2,691.53",Operations Fire Stations,Vehicle Management
240915M,HALL FUELS,I07828166,1,"2,579.40",FUEL,01/10/2015,"2,579.40",Operations Fire Stations,Vehicle Management
170915M,HALL FUELS,I07848495,1,"3,617.00",FUEL,01/10/2015,"3,617.00",Operations Fire Stations,Vehicle Management
210915M,HALL FUELS,I07848496,1,"2,658.90",FUEL,01/10/2015,"2,658.90",Operations Fire Stations,Vehicle Management
210915M,HALL FUELS,I07851297,1,"1,516.46",FUEL,01/10/2015,"1,516.46",Operations Fire Stations,Vehicle Management
250915G,LPFA CONTRIBUTIONS ACCOUNT====,LPFA97,1,"63,947.00",PENSION SERVICES,01/10/2015,"63,947.00",Central Finance,Financial Services
280915H,COFELY WORKPLACE LIMITED,M136164,1,"3,012.51",STRATEGIC (NON CYCLICAL),01/10/2015,"3,012.51",Technical and Service Support,"Works - Construction, R&M"
280915H,COFELY WORKPLACE LIMITED,M136167,1,"1,832.22",STRATEGIC (NON CYCLICAL),01/10/2015,"1,832.22",Technical and Service Support,"Works - Construction, R&M"
280915H,COFELY WORKPLACE LIMITED,M136189,1,876.22,STRATEGIC (NON CYCLICAL),01/10/2015,876.22,Technical and Service Support,"Works - Construction, R&M"
280915H,COFELY WORKPLACE LIMITED,M136195,1,"1,348.22",STRATEGIC (NON CYCLICAL),01/10/2015,"1,348.22",Technical and Service Support,"Works - Construction, R&M"
280915H,COFELY WORKPLACE LIMITED,M137056,1,82.5,STRATEGIC (CYCLICAL),01/10/2015,"3,165.18",Technical and Service Support,"Works - Construction, R&M"
280915H,COFELY WORKPLACE LIMITED,M137056,2,348.1,STRATEGIC (CYCLICAL),01/10/2015,,Technical and Service Support,"Works - Construction, R&M"
280915H,COFELY WORKPLACE LIMITED,M137056,3,100,STRATEGIC (CYCLICAL),01/10/2015,,Technical and Service Support,"Works - Construction, R&M"
280915H,COFELY WORKPLACE LIMITED,M137056,4,343.75,STRATEGIC (NON CYCLICAL),01/10/2015,,Technical and Service Support,"Works - Construction, R&M"
280915H,COFELY WORKPLACE LIMITED,M137056,5,158.89,STRATEGIC (CYCLICAL),01/10/2015,,Technical and Service Support,"Works - Construction, R&M"
280915H,COFELY WORKPLACE LIMITED,M137056,6,432.26,STRATEGIC (NON CYCLICAL),01/10/2015,,Technical and Service Support,"Works - Construction, R&M"
280915H,COFELY WORKPLACE LIMITED,M137056,7,82.5,STRATEGIC (CYCLICAL),01/10/2015,,Technical and Service Support,"Works - Construction, R&M"
280915H,COFELY WORKPLACE LIMITED,M137056,8,549.48,STRATEGIC (CYCLICAL),01/10/2015,,Technical and Service Support,"Works - Construction, R&M"
280915H,COFELY WORKPLACE LIMITED,M137056,9,211.07,STRATEGIC (CYCLICAL),01/10/2015,,Technical and Service Support,"Works - Construction, R&M"
280915H,COFELY WORKPLACE LIMITED,M137056,10,505.18,STRATEGIC (CYCLICAL),01/10/2015,,Technical and Service Support,"Works - Construction, R&M"
280915H,COFELY WORKPLACE LIMITED,M137056,11,351.45,STRATEGIC (CYCLICAL),01/10/2015,,Technical and Service Support,"Works - Construction, R&M"
280915H,DODS PARLIAMENTARY COMM LTD==,PK090847,1,350,PROFESSIONAL DEVELOPMENT,01/10/2015,350,Fire Safety Regulation,Human Resources
902563,THERMO FISHER SCIENTIFIC MESST,RSI 497326,1,"6,050.00",REPAIR & MAINTENANCE,01/10/2015,"6,068.00",Technical And Service Support,Environmental Services
902563,THERMO FISHER SCIENTIFIC MESST,RSI 497326,2,18,REPAIR & MAINTENANCE,01/10/2015,,Technical And Service Support,Environmental Services
800065738,*THOMAS KNEALE & CO LTD,TK110988,1,10.89,CLOTHING,01/10/2015,"1,231.41",Operations Fire Stations,Furniture
800065738,*THOMAS KNEALE & CO LTD,TK110988,2,0.99,CLOTHING,01/10/2015,,Operations Fire Stations,Furniture
800065738,*THOMAS KNEALE & CO LTD,TK110988,3,3.47,CLOTHING,01/10/2015,,Operations Fire Stations,Furniture
800065738,*THOMAS KNEALE & CO LTD,TK110988,4,10.89,CLOTHING,01/10/2015,,Operations Fire Stations,Furniture
800065738,*THOMAS KNEALE & CO LTD,TK110988,5,0.99,CLOTHING,01/10/2015,,Operations Fire Stations,Furniture
800065738,*THOMAS KNEALE & CO LTD,TK110988,6,3.47,CLOTHING,01/10/2015,,Operations Fire Stations,Furniture
800065738,*THOMAS KNEALE & CO LTD,TK110988,7,1.48,CLOTHING,01/10/2015,,Operations Fire Stations,Furniture
800065738,*THOMAS KNEALE & CO LTD,TK110988,8,10.89,CLOTHING,01/10/2015,,Operations Fire Stations,Furniture
800065738,*THOMAS KNEALE & CO LTD,TK110988,9,1.98,CLOTHING,01/10/2015,,Operations Fire Stations,Furniture
800065738,*THOMAS KNEALE & CO LTD,TK110988,10,10.89,CLOTHING,01/10/2015,,Operations Fire Stations,Furniture
800065738,*THOMAS KNEALE & CO LTD,TK110988,11,1.48,CLOTHING,01/10/2015,,Operations Fire Stations,Furniture
800065738,*THOMAS KNEALE & CO LTD,TK110988,12,3.47,CLOTHING,01/10/2015,,Operations Fire Stations,Furniture
800065738,*THOMAS KNEALE & CO LTD,TK110988,13,2.59,OFFICE FURNITURE,01/10/2015,,Operations Fire Stations,Furniture
800065738,*THOMAS KNEALE & CO LTD,TK110988,14,1.48,CLOTHING,01/10/2015,,Operations Fire Stations,Furniture
800065738,*THOMAS KNEALE & CO LTD,TK110988,15,3.47,CLOTHING,01/10/2015,,Operations Fire Stations,Furniture
800065738,*THOMAS KNEALE & CO LTD,TK110988,16,10.89,CLOTHING,01/10/2015,,Operations Fire Stations,Furniture
800065738,*THOMAS KNEALE & CO LTD,TK110988,17,0.99,CLOTHING,01/10/2015,,Operations Fire Stations,Furniture
800065738,*THOMAS KNEALE & CO LTD,TK110988,18,2.96,CLOTHING,01/10/2015,,Operations Fire Stations,Furniture
800065738,*THOMAS KNEALE & CO LTD,TK110988,19,6.94,CLOTHING,01/10/2015,,Operations Fire Stations,Furniture
800065738,*THOMAS KNEALE & CO LTD,TK110988,20,10.89,CLOTHING,01/10/2015,,Operations Fire Stations,Furniture
800065738,*THOMAS KNEALE & CO LTD,TK110988,21,0.99,CLOTHING,01/10/2015,,Operations Fire Stations,Furniture
800065738,*THOMAS KNEALE & CO LTD,TK110988,22,10.89,CLOTHING,01/10/2015,,Operations Fire Stations,Furniture
800065738,*THOMAS KNEALE & CO LTD,TK110988,23,3.47,CLOTHING,01/10/2015,,Operations Fire Stations,Furniture
800065738,*THOMAS KNEALE & CO LTD,TK110988,24,10.89,CLOTHING,01/10/2015,,Operations Fire Stations,Furniture
800065738,*THOMAS KNEALE & CO LTD,TK110988,25,3.47,CLOTHING,01/10/2015,,Operations Fire Stations,Furniture
800065738,*THOMAS KNEALE & CO LTD,TK110988,26,1.48,CLOTHING,01/10/2015,,Operations Fire Stations,Furniture
800065738,*THOMAS KNEALE & CO LTD,TK110988,27,10.89,CLOTHING,01/10/2015,,Operations Fire Stations,Furniture
800065738,*THOMAS KNEALE & CO LTD,TK110988,28,3.47,CLOTHING,01/10/2015,,Operations Fire Stations,Furniture
800065738,*THOMAS KNEALE & CO LTD,TK110988,29,3.47,CLOTHING,01/10/2015,,Operations Fire Stations,Furniture
800065738,*THOMAS KNEALE & CO LTD,TK110988,30,10.89,CLOTHING,01/10/2015,,Operations Fire Stations,Furniture
800065738,*THOMAS KNEALE & CO LTD,TK110988,31,10.89,CLOTHING,01/10/2015,,Operations Fire Stations,Furniture
800065738,*THOMAS KNEALE & CO LTD,TK110988,32,10.89,CLOTHING,01/10/2015,,Operations Fire Stations,Furniture
800065738,*THOMAS KNEALE & CO LTD,TK110988,33,10.89,CLOTHING,01/10/2015,,Operations Fire Stations,Furniture
800065738,*THOMAS KNEALE & CO LTD,TK110988,34,10.89,CLOTHING,01/10/2015,,Operations Fire Stations,Furniture
800065738,*THOMAS KNEALE & CO LTD,TK110988,35,3.47,CLOTHING,01/10/2015,,Operations Fire Stations,Furniture
800065738,*THOMAS KNEALE & CO LTD,TK110988,36,1.48,CLOTHING,01/10/2015,,Operations Fire Stations,Furniture
800065738,*THOMAS KNEALE & CO LTD,TK110988,37,10.89,CLOTHING,01/10/2015,,Operations Fire Stations,Furniture
800065738,*THOMAS KNEALE & CO LTD,TK110988,38,1.48,CLOTHING,01/10/2015,,Operations Fire Stations,Furniture
800065738,*THOMAS KNEALE & CO LTD,TK110988,39,3.47,CLOTHING,01/10/2015,,Operations Fire Stations,Furniture
800065738,*THOMAS KNEALE & CO LTD,TK110988,40,2.84,OFFICE FURNITURE,01/10/2015,,Operations Fire Stations,Furniture
800065738,*THOMAS KNEALE & CO LTD,TK110988,41,10.89,CLOTHING,01/10/2015,,Operations Fire Stations,Furniture
800065738,*THOMAS KNEALE & CO LTD,TK110988,42,0.99,CLOTHING,01/10/2015,,Operations Fire Stations,Furniture
800065738,*THOMAS KNEALE & CO LTD,TK110988,43,3.47,CLOTHING,01/10/2015,,Operations Fire Stations,Furniture
800065738,*THOMAS KNEALE & CO LTD,TK110988,44,1.48,CLOTHING,01/10/2015,,Operations Fire Stations,Furniture
800065738,*THOMAS KNEALE & CO LTD,TK110988,45,1.48,CLOTHING,01/10/2015,,Operations Fire Stations,Furniture
800065738,*THOMAS KNEALE & CO LTD,TK110988,46,10.89,CLOTHING,01/10/2015,,Operations Fire Stations,Furniture
800065738,*THOMAS KNEALE & CO LTD,TK110988,47,0.99,CLOTHING,01/10/2015,,Operations Fire Stations,Furniture
800065738,*THOMAS KNEALE & CO LTD,TK110988,48,10.89,CLOTHING,01/10/2015,,Operations Fire Stations,Furniture
800065738,*THOMAS KNEALE & CO LTD,TK110988,49,10.89,CLOTHING,01/10/2015,,Operations Fire Stations,Furniture
800065738,*THOMAS KNEALE & CO LTD,TK110988,50,0.99,CLOTHING,01/10/2015,,Operations Fire Stations,Furniture
800065738,*THOMAS KNEALE & CO LTD,TK110988,51,10.89,CLOTHING,01/10/2015,,Operations Fire Stations,Furniture
800065738,*THOMAS KNEALE & CO LTD,TK110988,52,0.99,CLOTHING,01/10/2015,,Operations Fire Stations,Furniture
800065738,*THOMAS KNEALE & CO LTD,TK110988,53,3.47,CLOTHING,01/10/2015,,Operations Fire Stations,Furniture
800065738,*THOMAS KNEALE & CO LTD,TK110988,54,1.48,CLOTHING,01/10/2015,,Operations Fire Stations,Furniture
800065738,*THOMAS KNEALE & CO LTD,TK110988,55,10.89,CLOTHING,01/10/2015,,Operations Fire Stations,Furniture
800065738,*THOMAS KNEALE & CO LTD,TK110988,56,10.89,CLOTHING,01/10/2015,,Operations Fire Stations,Furniture
800065738,*THOMAS KNEALE & CO LTD,TK110988,57,10.89,CLOTHING,01/10/2015,,Operations Fire Stations,Furniture
800065738,*THOMAS KNEALE & CO LTD,TK110988,58,10.89,CLOTHING,01/10/2015,,Operations Fire Stations,Furniture
800065738,*THOMAS KNEALE & CO LTD,TK110988,59,0.99,CLOTHING,01/10/2015,,Operations Fire Stations,Furniture
800065738,*THOMAS KNEALE & CO LTD,TK110988,60,3.47,CLOTHING,01/10/2015,,Operations Fire Stations,Furniture
800065738,*THOMAS KNEALE & CO LTD,TK110988,61,4.98,OFFICE FURNITURE,01/10/2015,,Operations Fire Stations,Furniture
800065738,*THOMAS KNEALE & CO LTD,TK110988,62,10.89,CLOTHING,01/10/2015,,Operations Fire Stations,Furniture
800065738,*THOMAS KNEALE & CO LTD,TK110988,63,6.94,CLOTHING,01/10/2015,,Operations Fire Stations,Furniture
800065738,*THOMAS KNEALE & CO LTD,TK110988,64,2.96,CLOTHING,01/10/2015,,Operations Fire Stations,Furniture
800065738,*THOMAS KNEALE & CO LTD,TK110988,65,0.99,CLOTHING,01/10/2015,,Operations Fire Stations,Furniture
800065738,*THOMAS KNEALE & CO LTD,TK110988,66,2.84,OFFICE FURNITURE,01/10/2015,,Operations Fire Stations,Furniture
800065738,*THOMAS KNEALE & CO LTD,TK110988,67,2.96,CLOTHING,01/10/2015,,Operations Fire Stations,Furniture
800065738,*THOMAS KNEALE & CO LTD,TK110988,68,2.96,CLOTHING,01/10/2015,,Operations Fire Stations,Furniture
800065738,*THOMAS KNEALE & CO LTD,TK110988,69,10.89,CLOTHING,01/10/2015,,Operations Fire Stations,Furniture
800065738,*THOMAS KNEALE & CO LTD,TK110988,70,1.48,CLOTHING,01/10/2015,,Operations Fire Stations,Furniture
800065738,*THOMAS KNEALE & CO LTD,TK110988,71,10.89,CLOTHING,01/10/2015,,Operations Fire Stations,Furniture
800065738,*THOMAS KNEALE & CO LTD,TK110988,72,6.94,CLOTHING,01/10/2015,,Operations Fire Stations,Furniture
800065738,*THOMAS KNEALE & CO LTD,TK110988,73,3.47,CLOTHING,01/10/2015,,Operations Fire Stations,Furniture
800065738,*THOMAS KNEALE & CO LTD,TK110988,74,1.48,CLOTHING,01/10/2015,,Operations Fire Stations,Furniture
800065738,*THOMAS KNEALE & CO LTD,TK110988,75,10.89,CLOTHING,01/10/2015,,Operations Fire Stations,Furniture
800065738,*THOMAS KNEALE & CO LTD,TK110988,76,0.99,CLOTHING,01/10/2015,,Operations Fire Stations,Furniture
800065738,*THOMAS KNEALE & CO LTD,TK110988,77,10.89,CLOTHING,01/10/2015,,Operations Fire Stations,Furniture
800065738,*THOMAS KNEALE & CO LTD,TK110988,78,10.89,CLOTHING,01/10/2015,,Operations Fire Stations,Furniture
800065738,*THOMAS KNEALE & CO LTD,TK110988,79,2.96,CLOTHING,01/10/2015,,Operations Fire Stations,Furniture
800065738,*THOMAS KNEALE & CO LTD,TK110988,80,10.89,CLOTHING,01/10/2015,,Operations Fire Stations,Furniture
800065738,*THOMAS KNEALE & CO LTD,TK110988,81,3.47,CLOTHING,01/10/2015,,Operations Fire Stations,Furniture
800065738,*THOMAS KNEALE & CO LTD,TK110988,82,1.48,CLOTHING,01/10/2015,,Operations Fire Stations,Furniture
800065738,*THOMAS KNEALE & CO LTD,TK110988,83,10.89,CLOTHING,01/10/2015,,Operations Fire Stations,Furniture
800065738,*THOMAS KNEALE & CO LTD,TK110988,84,3.47,CLOTHING,01/10/2015,,Operations Fire Stations,Furniture
800065738,*THOMAS KNEALE & CO LTD,TK110988,85,1.48,CLOTHING,01/10/2015,,Operations Fire Stations,Furniture
800065738,*THOMAS KNEALE & CO LTD,TK110988,86,6.94,CLOTHING,01/10/2015,,Operations Fire Stations,Furniture
800065738,*THOMAS KNEALE & CO LTD,TK110988,87,2.96,CLOTHING,01/10/2015,,Operations Fire Stations,Furniture
800065738,*THOMAS KNEALE & CO LTD,TK110988,88,10.89,CLOTHING,01/10/2015,,Operations Fire Stations,Furniture
800065738,*THOMAS KNEALE & CO LTD,TK110988,89,2.96,CLOTHING,01/10/2015,,Operations Fire Stations,Furniture
800065738,*THOMAS KNEALE & CO LTD,TK110988,90,3.47,CLOTHING,01/10/2015,,Operations Fire Stations,Furniture
800065738,*THOMAS KNEALE & CO LTD,TK110988,91,10.89,CLOTHING,01/10/2015,,Operations Fire Stations,Furniture
800065738,*THOMAS KNEALE & CO LTD,TK110988,92,0.99,CLOTHING,01/10/2015,,Operations Fire Stations,Furniture
800065738,*THOMAS KNEALE & CO LTD,TK110988,93,3.47,CLOTHING,01/10/2015,,Operations Fire Stations,Furniture
800065738,*THOMAS KNEALE & CO LTD,TK110988,94,1.48,CLOTHING,01/10/2015,,Operations Fire Stations,Furniture
800065738,*THOMAS KNEALE & CO LTD,TK110988,95,10.89,CLOTHING,01/10/2015,,Operations Fire Stations,Furniture
800065738,*THOMAS KNEALE & CO LTD,TK110988,96,3.47,CLOTHING,01/10/2015,,Operations Fire Stations,Furniture
800065738,*THOMAS KNEALE & CO LTD,TK110988,97,10.89,CLOTHING,01/10/2015,,Operations Fire Stations,Furniture
800065738,*THOMAS KNEALE & CO LTD,TK110988,98,5.35,CLOTHING,01/10/2015,,Operations Fire Stations,Furniture
800065738,*THOMAS KNEALE & CO LTD,TK110988,99,2.84,OFFICE FURNITURE,01/10/2015,,Operations Fire Stations,Furniture
800065738,*THOMAS KNEALE & CO LTD,TK110988,100,10.89,CLOTHING,01/10/2015,,Operations Fire Stations,Furniture
800065738,*THOMAS KNEALE & CO LTD,TK110988,101,1.48,CLOTHING,01/10/2015,,Operations Fire Stations,Furniture
800065738,*THOMAS KNEALE & CO LTD,TK110988,102,3.47,CLOTHING,01/10/2015,,Operations Fire Stations,Furniture
800065738,*THOMAS KNEALE & CO LTD,TK110988,103,10.89,CLOTHING,01/10/2015,,Operations Fire Stations,Furniture
800065738,*THOMAS KNEALE & CO LTD,TK110988,104,3.47,CLOTHING,01/10/2015,,Operations Fire Stations,Furniture
800065738,*THOMAS KNEALE & CO LTD,TK110988,105,10.89,CLOTHING,01/10/2015,,Operations Fire Stations,Furniture
800065738,*THOMAS KNEALE & CO LTD,TK110988,106,2.96,CLOTHING,01/10/2015,,Operations Fire Stations,Furniture
800065738,*THOMAS KNEALE & CO LTD,TK110988,107,6.94,CLOTHING,01/10/2015,,Operations Fire Stations,Furniture
800065738,*THOMAS KNEALE & CO LTD,TK110988,108,10.89,CLOTHING,01/10/2015,,Operations Fire Stations,Furniture
800065738,*THOMAS KNEALE & CO LTD,TK110988,109,10.89,CLOTHING,01/10/2015,,Operations Fire Stations,Furniture
800065738,*THOMAS KNEALE & CO LTD,TK110988,110,10.89,CLOTHING,01/10/2015,,Operations Fire Stations,Furniture
800065738,*THOMAS KNEALE & CO LTD,TK110988,111,2.59,OFFICE FURNITURE,01/10/2015,,Operations Fire Stations,Furniture
800065738,*THOMAS KNEALE & CO LTD,TK110988,112,10.89,CLOTHING,01/10/2015,,Operations Fire Stations,Furniture
800065738,*THOMAS KNEALE & CO LTD,TK110988,113,10.89,CLOTHING,01/10/2015,,Operations Fire Stations,Furniture
800065738,*THOMAS KNEALE & CO LTD,TK110988,114,3.47,CLOTHING,01/10/2015,,Operations Fire Stations,Furniture
800065738,*THOMAS KNEALE & CO LTD,TK110988,115,1.48,CLOTHING,01/10/2015,,Operations Fire Stations,Furniture
800065738,*THOMAS KNEALE & CO LTD,TK110988,116,10.89,CLOTHING,01/10/2015,,Operations Fire Stations,Furniture
800065738,*THOMAS KNEALE & CO LTD,TK110988,117,1.48,CLOTHING,01/10/2015,,Operations Fire Stations,Furniture
800065738,*THOMAS KNEALE & CO LTD,TK110988,118,3.47,CLOTHING,01/10/2015,,Operations Fire Stations,Furniture
800065738,*THOMAS KNEALE & CO LTD,TK110988,119,10.89,CLOTHING,01/10/2015,,Operations Fire Stations,Furniture
800065738,*THOMAS KNEALE & CO LTD,TK110988,120,3.47,CLOTHING,01/10/2015,,Operations Fire Stations,Furniture
800065738,*THOMAS KNEALE & CO LTD,TK110988,121,10.89,CLOTHING,01/10/2015,,Operations Fire Stations,Furniture
800065738,*THOMAS KNEALE & CO LTD,TK110988,122,0.99,CLOTHING,01/10/2015,,Operations Fire Stations,Furniture
800065738,*THOMAS KNEALE & CO LTD,TK110988,123,3.47,CLOTHING,01/10/2015,,Operations Fire Stations,Furniture
800065738,*THOMAS KNEALE & CO LTD,TK110988,124,1.48,CLOTHING,01/10/2015,,Operations Fire Stations,Furniture
800065738,*THOMAS KNEALE & CO LTD,TK110988,125,10.89,CLOTHING,01/10/2015,,Operations Fire Stations,Furniture
800065738,*THOMAS KNEALE & CO LTD,TK110988,126,53.98,OFFICE FURNITURE,01/10/2015,,Operations Fire Stations,Furniture
800065738,*THOMAS KNEALE & CO LTD,TK110988,127,3.47,CLOTHING,01/10/2015,,Operations Fire Stations,Furniture
800065738,*THOMAS KNEALE & CO LTD,TK110988,128,3.47,CLOTHING,01/10/2015,,Operations Fire Stations,Furniture
800065738,*THOMAS KNEALE & CO LTD,TK110988,129,1.48,CLOTHING,01/10/2015,,Operations Fire Stations,Furniture
800065738,*THOMAS KNEALE & CO LTD,TK110988,130,10.89,CLOTHING,01/10/2015,,Operations Fire Stations,Furniture
800065738,*THOMAS KNEALE & CO LTD,TK110988,131,10.89,CLOTHING,01/10/2015,,Operations Fire Stations,Furniture
800065738,*THOMAS KNEALE & CO LTD,TK110988,132,0.99,CLOTHING,01/10/2015,,Operations Fire Stations,Furniture
800065738,*THOMAS KNEALE & CO LTD,TK110988,133,2.84,OFFICE FURNITURE,01/10/2015,,Operations Fire Stations,Furniture
800065738,*THOMAS KNEALE & CO LTD,TK110988,134,10.89,CLOTHING,01/10/2015,,Operations Fire Stations,Furniture
800065738,*THOMAS KNEALE & CO LTD,TK110988,135,10.89,CLOTHING,01/10/2015,,Operations Fire Stations,Furniture
800065738,*THOMAS KNEALE & CO LTD,TK110988,136,10.89,CLOTHING,01/10/2015,,Operations Fire Stations,Furniture
800065738,*THOMAS KNEALE & CO LTD,TK110988,137,10.89,CLOTHING,01/10/2015,,Operations Fire Stations,Furniture
800065738,*THOMAS KNEALE & CO LTD,TK110988,138,6.94,CLOTHING,01/10/2015,,Operations Fire Stations,Furniture
800065738,*THOMAS KNEALE & CO LTD,TK110988,139,2.96,CLOTHING,01/10/2015,,Operations Fire Stations,Furniture
800065738,*THOMAS KNEALE & CO LTD,TK110988,140,2.84,OFFICE FURNITURE,01/10/2015,,Operations Fire Stations,Furniture
800065738,*THOMAS KNEALE & CO LTD,TK110988,141,10.89,CLOTHING,01/10/2015,,Operations Fire Stations,Furniture
800065738,*THOMAS KNEALE & CO LTD,TK110988,142,0.99,CLOTHING,01/10/2015,,Operations Fire Stations,Furniture
800065738,*THOMAS KNEALE & CO LTD,TK110988,143,6.94,CLOTHING,01/10/2015,,Operations Fire Stations,Furniture
800065738,*THOMAS KNEALE & CO LTD,TK110988,144,2.96,CLOTHING,01/10/2015,,Operations Fire Stations,Furniture
800065738,*THOMAS KNEALE & CO LTD,TK110988,145,10.89,CLOTHING,01/10/2015,,Operations Fire Stations,Furniture
800065738,*THOMAS KNEALE & CO LTD,TK110988,146,10.89,CLOTHING,01/10/2015,,Operations Fire Stations,Furniture
800065738,*THOMAS KNEALE & CO LTD,TK110988,147,0.99,CLOTHING,01/10/2015,,Operations Fire Stations,Furniture
800065738,*THOMAS KNEALE & CO LTD,TK110988,148,3.47,CLOTHING,01/10/2015,,Operations Fire Stations,Furniture
800065738,*THOMAS KNEALE & CO LTD,TK110988,149,1.48,CLOTHING,01/10/2015,,Operations Fire Stations,Furniture
800065738,*THOMAS KNEALE & CO LTD,TK110988,150,5.35,CLOTHING,01/10/2015,,Operations Fire Stations,Furniture
800065738,*THOMAS KNEALE & CO LTD,TK110988,151,2.84,OFFICE FURNITURE,01/10/2015,,Operations Fire Stations,Furniture
800065738,*THOMAS KNEALE & CO LTD,TK110988,152,5.35,CLOTHING,01/10/2015,,Operations Fire Stations,Furniture
800065738,*THOMAS KNEALE & CO LTD,TK110988,153,10.89,CLOTHING,01/10/2015,,Operations Fire Stations,Furniture
800065738,*THOMAS KNEALE & CO LTD,TK110988,154,10.89,CLOTHING,01/10/2015,,Operations Fire Stations,Furniture
800065738,*THOMAS KNEALE & CO LTD,TK110988,155,10.89,CLOTHING,01/10/2015,,Operations Fire Stations,Furniture
800065738,*THOMAS KNEALE & CO LTD,TK110988,156,10.89,CLOTHING,01/10/2015,,Fire Safety Regulation,Furniture
800065738,*THOMAS KNEALE & CO LTD,TK110988,157,10.89,CLOTHING,01/10/2015,,Operations Fire Stations,Furniture
800065738,*THOMAS KNEALE & CO LTD,TK110988,158,3.47,CLOTHING,01/10/2015,,Operations Fire Stations,Furniture
800065738,*THOMAS KNEALE & CO LTD,TK110988,159,10.89,CLOTHING,01/10/2015,,Operations Fire Stations,Furniture
800065738,*THOMAS KNEALE & CO LTD,TK110988,160,10.89,CLOTHING,01/10/2015,,Operations Fire Stations,Furniture
800065738,*THOMAS KNEALE & CO LTD,TK110988,161,10.89,CLOTHING,01/10/2015,,Operations Fire Stations,Furniture
800065738,*THOMAS KNEALE & CO LTD,TK110988,162,6.94,CLOTHING,01/10/2015,,Operations Fire Stations,Furniture
800065738,*THOMAS KNEALE & CO LTD,TK110988,163,2.96,CLOTHING,01/10/2015,,Operations Fire Stations,Furniture
800065738,*THOMAS KNEALE & CO LTD,TK110988,164,10.89,CLOTHING,01/10/2015,,Operations Fire Stations,Furniture
800065738,*THOMAS KNEALE & CO LTD,TK110988,165,2.59,OFFICE FURNITURE,01/10/2015,,Operations Fire Stations,Furniture
800065738,*THOMAS KNEALE & CO LTD,TK110988,166,6.94,CLOTHING,01/10/2015,,Operations Fire Stations,Furniture
800065738,*THOMAS KNEALE & CO LTD,TK110988,167,2.96,CLOTHING,01/10/2015,,Operations Fire Stations,Furniture
800065738,*THOMAS KNEALE & CO LTD,TK110988,168,10.89,CLOTHING,01/10/2015,,Operations Fire Stations,Furniture
800065738,*THOMAS KNEALE & CO LTD,TK110988,169,10.89,CLOTHING,01/10/2015,,Operations Fire Stations,Furniture
800065738,*THOMAS KNEALE & CO LTD,TK110988,170,3.47,CLOTHING,01/10/2015,,Operations Fire Stations,Furniture
800065738,*THOMAS KNEALE & CO LTD,TK110988,171,1.48,CLOTHING,01/10/2015,,Operations Fire Stations,Furniture
800065738,*THOMAS KNEALE & CO LTD,TK110988,172,10.89,CLOTHING,01/10/2015,,Operations Fire Stations,Furniture
800065738,*THOMAS KNEALE & CO LTD,TK110988,173,10.89,CLOTHING,01/10/2015,,Operations Fire Stations,Furniture
800065738,*THOMAS KNEALE & CO LTD,TK110988,174,10.89,CLOTHING,01/10/2015,,Operations Fire Stations,Furniture
800065738,*THOMAS KNEALE & CO LTD,TK110988,175,10.89,CLOTHING,01/10/2015,,Operations Fire Stations,Furniture
800065738,*THOMAS KNEALE & CO LTD,TK110988,176,3.47,CLOTHING,01/10/2015,,Operations Fire Stations,Furniture
800065738,*THOMAS KNEALE & CO LTD,TK110988,177,1.48,CLOTHING,01/10/2015,,Operations Fire Stations,Furniture
800065738,*THOMAS KNEALE & CO LTD,TK110988,178,3.47,CLOTHING,01/10/2015,,Operations Fire Stations,Furniture
800065738,*THOMAS KNEALE & CO LTD,TK110988,179,1.48,CLOTHING,01/10/2015,,Operations Fire Stations,Furniture
800065738,*THOMAS KNEALE & CO LTD,TK110988,180,10.89,CLOTHING,01/10/2015,,Operations Fire Stations,Furniture
800065738,*THOMAS KNEALE & CO LTD,TK110988,181,0.99,CLOTHING,01/10/2015,,Operations Fire Stations,Furniture
800065738,*THOMAS KNEALE & CO LTD,TK110988,182,6.94,CLOTHING,01/10/2015,,Operations Fire Stations,Furniture
800065738,*THOMAS KNEALE & CO LTD,TK110988,183,2.96,CLOTHING,01/10/2015,,Operations Fire Stations,Furniture
800065738,*THOMAS KNEALE & CO LTD,TK110988,184,3.47,CLOTHING,01/10/2015,,Operations Fire Stations,Furniture
800065738,*THOMAS KNEALE & CO LTD,TK110988,185,10.89,CLOTHING,01/10/2015,,Operations Fire Stations,Furniture
800065738,*THOMAS KNEALE & CO LTD,TK110988,186,10.89,CLOTHING,01/10/2015,,Operations Fire Stations,Furniture
800065738,*THOMAS KNEALE & CO LTD,TK110988,187,0.99,CLOTHING,01/10/2015,,Operations Fire Stations,Furniture
800065738,*THOMAS KNEALE & CO LTD,TK110988,188,3.47,CLOTHING,01/10/2015,,Operations Fire Stations,Furniture
800065738,*THOMAS KNEALE & CO LTD,TK110988,189,1.48,CLOTHING,01/10/2015,,Operations Fire Stations,Furniture
800065738,*THOMAS KNEALE & CO LTD,TK110988,190,10.89,CLOTHING,01/10/2015,,Operations Fire Stations,Furniture
800065738,*THOMAS KNEALE & CO LTD,TK110988,191,3.47,CLOTHING,01/10/2015,,Operations Fire Stations,Furniture
800065738,*THOMAS KNEALE & CO LTD,TK110988,192,1.48,CLOTHING,01/10/2015,,Operations Fire Stations,Furniture
800065738,*THOMAS KNEALE & CO LTD,TK110988,193,0.99,CLOTHING,01/10/2015,,Operations Fire Stations,Furniture
800065738,*THOMAS KNEALE & CO LTD,TK110988,194,10.89,CLOTHING,01/10/2015,,Operations Fire Stations,Furniture
800065738,*THOMAS KNEALE & CO LTD,TK110988,195,0.99,CLOTHING,01/10/2015,,Operations Fire Stations,Furniture
800065738,*THOMAS KNEALE & CO LTD,TK110988,196,1.48,CLOTHING,01/10/2015,,Operations Fire Stations,Furniture
800065738,*THOMAS KNEALE & CO LTD,TK110988,197,3.47,CLOTHING,01/10/2015,,Operations Fire Stations,Furniture
180915M,*XMA LTD,Y950567,1,"14,948.00",MAINTENANCE & SUPPORT,01/10/2015,"14,948.00",Information and Communication Technology,ICT
290915H,GOVNET COMMUNICATIONS=========,89767,1,325,PROFESSIONAL DEVELOPMENT,05/10/2015,650,Operations Non Fire Stations,Human Resources
290915H,GOVNET COMMUNICATIONS=========,89767,2,325,PROFESSIONAL DEVELOPMENT,05/10/2015,,Operations Non Fire Stations,Human Resources
290915H,MOOLANDS LTD,3000,1,"1,900.00",STRATEGIC (NON CYCLICAL),05/10/2015,"1,900.00",Technical and Service Support,"Works - Construction, R&M"
141208,ARVAL UK LTD,1019879399,1,"3,741.08",LEASE CAR CHARGES,05/10/2015,"5,307.12",Procurement,Vehicle Management
141208,ARVAL UK LTD,1019879399,2,"1,566.04",P/PAYMTS-CAR LEASG-RENTAL,05/10/2015,,Finance Services,Vehicle Management
141208,ARVAL UK LTD,1019879399,3,-477.31,VAT CAR LEASING,05/10/2015,,Finance Services,Vehicle Management
141208,ARVAL UK LTD,1019879399,4,477.31,LEASE CAR CHARGES,05/10/2015,,Procurement,Vehicle Management
141208,ARVAL UK LTD,1019880817,1,"3,034.27",LEASE CAR CHARGES,05/10/2015,"4,190.73",Procurement,Vehicle Management
141208,ARVAL UK LTD,1019880817,2,"1,156.46",P/PAYMTS-CAR LEASG-RENTAL,05/10/2015,,Finance Services,Vehicle Management
141208,ARVAL UK LTD,1019880817,3,-373.02,VAT CAR LEASING,05/10/2015,,Finance Services,Vehicle Management
141208,ARVAL UK LTD,1019880817,4,373.02,LEASE CAR CHARGES,05/10/2015,,Procurement,Vehicle Management
230915M,MULTITONE ELECTRONICS PLC=====,103172,1,600,ACQUISITIONS,05/10/2015,615,Information and Communication Technology,ICT
230915M,MULTITONE ELECTRONICS PLC=====,103172,2,15,ACQUISITIONS,05/10/2015,,Information and Communication Technology,ICT
290915H,PA GROUP (UK) LTD=============,10708,1,540,ASBESTOS,05/10/2015,720,Technical and Service Support,Environmental Services
290915H,PA GROUP (UK) LTD=============,10708,2,180,ASBESTOS,05/10/2015,,Technical and Service Support,Environmental Services
280915G,*SPRUE SAFETY PRODUCTS LTD====,1080763,1,"1,112.40",FIRE DETECTORS,05/10/2015,"1,112.40",Operations Non Fire Stations,Health & Safety
230915M,*SPRUE SAFETY PRODUCTS LTD====,1080765,1,"1,112.40",FIRE DETECTORS,05/10/2015,"1,112.40",Operations Non Fire Stations,Health & Safety
220915M,*SPRUE SAFETY PRODUCTS LTD====,1080769,1,618,FIRE DETECTORS,05/10/2015,618,Operations Non Fire Stations,Health & Safety
290915H,*SPRUE SAFETY PRODUCTS LTD====,1080782,1,"2,224.80",FIRE DETECTORS,05/10/2015,"2,224.80",Operations Non Fire Stations,Health & Safety
290915H,*SPRUE SAFETY PRODUCTS LTD====,1080783,1,494.4,FIRE DETECTORS,05/10/2015,494.4,Operations Non Fire Stations,Health & Safety
290915H,*SPRUE SAFETY PRODUCTS LTD====,1080784,1,988.8,FIRE DETECTORS,05/10/2015,988.8,Operations Non Fire Stations,Health & Safety
290915H,*SPRUE SAFETY PRODUCTS LTD====,1080785,1,618,FIRE DETECTORS,05/10/2015,618,Operations Non Fire Stations,Health & Safety
290915H,*SPRUE SAFETY PRODUCTS LTD====,1080786,1,741.6,FIRE DETECTORS,05/10/2015,741.6,Operations Non Fire Stations,Health & Safety
290915H,*SPRUE SAFETY PRODUCTS LTD====,1080787,1,"3,090.00",FIRE DETECTORS,05/10/2015,"3,090.00",Operations Non Fire Stations,Health & Safety
800066146,*JAMES HUNTER (OUTFITTERS) LTD,108309,1,294.48,CLOTHING,05/10/2015,294.48,Operations Fire Stations,Clothing
800066160,*JAMES HUNTER (OUTFITTERS) LTD,108323,1,239.44,CLOTHING,05/10/2015,378.26,Operations Fire Stations,Clothing
800066160,*JAMES HUNTER (OUTFITTERS) LTD,108323,2,138.82,CLOTHING,05/10/2015,,Operations Fire Stations,Clothing
800066162,*JAMES HUNTER (OUTFITTERS) LTD,108325,1,188.17,CLOTHING,05/10/2015,311.75,Operations Fire Stations,Clothing
800066162,*JAMES HUNTER (OUTFITTERS) LTD,108325,2,123.58,CLOTHING,05/10/2015,,Operations Fire Stations,Clothing
800066163,*JAMES HUNTER (OUTFITTERS) LTD,108326,1,5.36,CLOTHING,05/10/2015,427.01,Operations Non Fire Stations,Clothing
800066163,*JAMES HUNTER (OUTFITTERS) LTD,108326,2,138.82,CLOTHING,05/10/2015,,Operations Non Fire Stations,Clothing
800066163,*JAMES HUNTER (OUTFITTERS) LTD,108326,3,282.83,CLOTHING,05/10/2015,,Operations Non Fire Stations,Clothing
290915H,CARLTON TRAINING LTD,14096,1,"3,750.00",PROFESSIONAL DEVELOPMENT,05/10/2015,"3,750.00",Fire Safety Regulation,Human Resources
290915H,RESPIREX======================,152812,1,"2,025.00",GENERAL,05/10/2015,"2,025.00",Gas Tight Suits,Clothing
290915H,GP CONTRACTS==================,15339,1,295,OFFICE FURNITURE,05/10/2015,295,Operations Fire Stations,Furniture
290915H,DRON & WRIGHT=================,17853,1,"4,003.50",PROFESSIONAL SERVICES,05/10/2015,"4,003.50",Technical And Service Support,Facilities & Management S
141205,MISS SARAH LE FEVRE===========,236559,1,"1,480.00",PROFESSIONAL FEES ENFORCEMENT,05/10/2015,"1,480.00",Legal & Democratic Services,Legal Services
210915M,FUTURE SAFETY LTD=============,2707,1,750,PROTECTIVE EQUIPMENT,05/10/2015,761,Technical And Service Support,Clothing
210915M,FUTURE SAFETY LTD=============,2707,2,11,PROTECTIVE EQUIPMENT,05/10/2015,,Technical And Service Support,Clothing
800065707,ADECCO UK LIMITED=============,27104466,1,"1,138.79",SUBSISTENCE,05/10/2015,"1,138.79",National Operational Guidance Project,Human Resources
800065685,ADECCO UK LIMITED=============,27111323,1,614.39,FRS STAFF AGENCY,05/10/2015,614.39,Technical And Service Support,Human Resources
800063272,ADECCO UK LIMITED=============,27123980,1,528.36,FRS STAFF AGENCY,05/10/2015,528.36,Communications,Human Resources
800063273,ADECCO UK LIMITED=============,27123981,1,528.36,FRS STAFF AGENCY,05/10/2015,528.36,Communications,Human Resources
800063235,ADECCO UK LIMITED=============,27123983,1,443.8,PROF FEES-SOFTWARE CONSULTANTS,05/10/2015,443.8,Information and Communication Technology,Human Resources
800065686,ADECCO UK LIMITED=============,27123995,1,504.35,FRS STAFF AGENCY,05/10/2015,504.35,Technical And Service Support,Human Resources
800063236,ADECCO UK LIMITED=============,27130224,1,554.75,PROF FEES-SOFTWARE CONSULTANTS,05/10/2015,554.75,Information and Communication Technology,Human Resources
800063461,ADECCO UK LIMITED=============,27130261,1,351.68,FRS STAFF AGENCY,05/10/2015,351.68,Technical And Service Support,Human Resources
800063274,ADECCO UK LIMITED=============,27136269,1,660.45,FRS STAFF AGENCY,05/10/2015,660.45,Communications,Human Resources
800065688,ADECCO UK LIMITED=============,27136279,1,641.9,FRS STAFF AGENCY,05/10/2015,641.9,Technical And Service Support,Human Resources
800065644,ADECCO UK LIMITED=============,27136286,1,"1,270.34",FRS STAFF AGENCY,05/10/2015,"1,270.34",Communications,Human Resources
800063317,ADECCO UK LIMITED=============,27136289,1,428.16,FRS STAFF AGENCY,05/10/2015,428.16,Fire Safety Regulation,Human Resources
800063577,ADECCO UK LIMITED=============,27143327,1,437.08,FRS STAFF AGENCY,05/10/2015,437.08,Fire Safety Regulation,Human Resources
800063436,ADECCO UK LIMITED=============,27143329,1,757.05,FRS STAFF AGENCY,05/10/2015,757.05,Fire Safety Regulation,Human Resources
800063633,ADECCO UK LIMITED=============,27143330,1,757.05,FRS STAFF AGENCY,05/10/2015,757.05,Fire Safety Regulation,Human Resources
800063463,ADECCO UK LIMITED=============,27143332,1,351.68,FRS STAFF AGENCY,05/10/2015,351.68,Technical And Service Support,Human Resources
800065645,ADECCO UK LIMITED=============,27143339,1,"1,270.34",FRS STAFF AGENCY,05/10/2015,"1,270.34",Communications,Human Resources
800063318,ADECCO UK LIMITED=============,27143345,1,624.4,FRS STAFF AGENCY,05/10/2015,624.4,Fire Safety Regulation,Human Resources
800065689,ADECCO UK LIMITED=============,27143348,1,641.9,FRS STAFF AGENCY,05/10/2015,641.9,Technical And Service Support,Human Resources
800063516,ADECCO UK LIMITED=============,27149162,1,454.23,FRS STAFF AGENCY,05/10/2015,454.23,Information Management,Human Resources
800065646,ADECCO UK LIMITED=============,27149180,1,"1,270.34",FRS STAFF AGENCY,05/10/2015,"1,270.34",Communications,Human Resources
800065690,ADECCO UK LIMITED=============,27149186,1,504.35,FRS STAFF AGENCY,05/10/2015,504.35,Technical And Service Support,Human Resources
800063437,ADECCO UK LIMITED=============,27149193,1,605.64,FRS STAFF AGENCY,05/10/2015,605.64,Fire Safety Regulation,Human Resources
800063634,ADECCO UK LIMITED=============,27149194,1,605.64,FRS STAFF AGENCY,05/10/2015,605.64,Fire Safety Regulation,Human Resources
800063464,ADECCO UK LIMITED=============,27149196,1,351.68,FRS STAFF AGENCY,05/10/2015,351.68,Technical And Service Support,Human Resources
800066102,ADECCO UK LIMITED=============,27155291,1,973.14,FRS STAFF AGENCY,05/10/2015,973.14,Review of Property Services,Human Resources
800063465,ADECCO UK LIMITED=============,27155308,1,351.68,FRS STAFF AGENCY,05/10/2015,351.68,Technical And Service Support,Human Resources
800066103,ADECCO UK LIMITED=============,27162057,1,973.14,FRS STAFF AGENCY,05/10/2015,973.14,Review of Property Services,Human Resources
800063466,ADECCO UK LIMITED=============,27162075,1,351.68,FRS STAFF AGENCY,05/10/2015,351.68,Technical And Service Support,Human Resources
800066104,ADECCO UK LIMITED=============,27168547,1,973.14,FRS STAFF AGENCY,05/10/2015,973.14,Review of Property Services,Human Resources
800063425,ADECCO UK LIMITED=============,27175037,1,"1,270.34",FRS STAFF AGENCY,05/10/2015,"1,270.34",Communications,Human Resources
800066105,ADECCO UK LIMITED=============,27175060,1,973.14,FRS STAFF AGENCY,05/10/2015,973.14,Review of Property Services,Human Resources
800066106,ADECCO UK LIMITED=============,27181430,1,973.14,FRS STAFF AGENCY,05/10/2015,973.14,Review of Property Services,Human Resources
800063376,ADECCO UK LIMITED=============,27181435,1,942.2,FRS STAFF AGENCY,05/10/2015,942.2,Technical And Service Support,Human Resources
800065638,ADECCO UK LIMITED=============,27181454,1,523.54,FRS STAFF AGENCY,05/10/2015,523.54,National Operational Guidance Project,Human Resources
800065639,ADECCO UK LIMITED=============,27181455,1,523.54,FRS STAFF AGENCY,05/10/2015,523.54,National Operational Guidance Project,Human Resources
800063406,ADECCO UK LIMITED=============,27187677,1,499.52,FRS STAFF AGENCY,05/10/2015,499.52,Fire Safety Regulation,Human Resources
800065640,ADECCO UK LIMITED=============,27187714,1,523.54,FRS STAFF AGENCY,05/10/2015,523.54,National Operational Guidance Project,Human Resources
800063326,ADECCO UK LIMITED=============,27193964,1,499.52,FRS STAFF AGENCY,05/10/2015,499.52,Fire Safety Regulation,Human Resources
800063508,ADECCO UK LIMITED=============,27193965,1,624.4,FRS STAFF AGENCY,05/10/2015,624.4,Fire Safety Regulation,Human Resources
800063407,ADECCO UK LIMITED=============,27193966,1,374.64,FRS STAFF AGENCY,05/10/2015,374.64,Fire Safety Regulation,Human Resources
800063585,ADECCO UK LIMITED=============,27193967,1,624.4,FRS STAFF AGENCY,05/10/2015,624.4,Fire Safety Regulation,Human Resources
800063685,ADECCO UK LIMITED=============,27193968,1,499.52,FRS STAFF AGENCY,05/10/2015,499.52,Fire Safety Regulation,Human Resources
800063471,ADECCO UK LIMITED=============,27193983,1,374.64,FRS STAFF AGENCY,05/10/2015,374.64,Fire Safety Regulation,Human Resources
800063426,ADECCO UK LIMITED=============,27193991,1,"1,270.34",FRS STAFF AGENCY,05/10/2015,"1,270.34",Communications,Human Resources
800065517,ADECCO UK LIMITED=============,27207050,1,624.4,FRS STAFF AGENCY,05/10/2015,624.4,Fire Safety Regulation,Human Resources
800065533,ADECCO UK LIMITED=============,27213760,1,899.25,FRS STAFF AGENCY,05/10/2015,899.25,National Operational Guidance Project,Human Resources
800065518,ADECCO UK LIMITED=============,27213766,1,624.4,FRS STAFF AGENCY,05/10/2015,624.4,Fire Safety Regulation,Human Resources
800065564,ADECCO UK LIMITED=============,27213781,1,624.4,FRS STAFF AGENCY,05/10/2015,624.4,HR Management,Human Resources
800065359,ADECCO UK LIMITED=============,27213783,1,252.43,FRS STAFF AGENCY,05/10/2015,252.43,Operational Resilience,Human Resources
800065528,ADECCO UK LIMITED=============,27220219,1,900.2,FRS STAFF AGENCY,05/10/2015,900.2,National Operational Guidance Project,Human Resources
800065535,ADECCO UK LIMITED=============,27220233,1,299.75,FRS STAFF AGENCY,05/10/2015,299.75,National Operational Guidance Project,Human Resources
800065371,ADECCO UK LIMITED=============,27220241,1,561.96,FRS STAFF AGENCY,05/10/2015,561.96,Development and Training,Human Resources
800065471,ADECCO UK LIMITED=============,27220250,1,"1,035.12",FRS STAFF AGENCY,05/10/2015,"1,035.12",Technical And Service Support,Human Resources
800065361,ADECCO UK LIMITED=============,27220255,1,843.15,FRS STAFF AGENCY,05/10/2015,843.15,Communications,Human Resources
800065347,ADECCO UK LIMITED=============,27220256,1,554.75,FRS STAFF AGENCY,05/10/2015,554.75,Communications,Human Resources
800065333,ADECCO UK LIMITED=============,27220262,1,439.6,FRS STAFF AGENCY,05/10/2015,439.6,Operations Non Fire Stations,Human Resources
800065529,ADECCO UK LIMITED=============,27226547,1,900.2,FRS STAFF AGENCY,05/10/2015,900.2,National Operational Guidance Project,Human Resources
800065483,ADECCO UK LIMITED=============,27226556,1,615.48,FRS STAFF AGENCY,05/10/2015,615.48,Fire Safety Regulation,Human Resources
800065537,ADECCO UK LIMITED=============,27226558,1,899.25,FRS STAFF AGENCY,05/10/2015,899.25,National Operational Guidance Project,Human Resources
800065472,ADECCO UK LIMITED=============,27226570,1,603.82,FRS STAFF AGENCY,05/10/2015,603.82,Technical And Service Support,Human Resources
800065362,ADECCO UK LIMITED=============,27226572,1,337.26,FRS STAFF AGENCY,05/10/2015,337.26,Communications,Human Resources
800065348,ADECCO UK LIMITED=============,27226573,1,443.8,FRS STAFF AGENCY,05/10/2015,443.8,Communications,Human Resources
800065519,ADECCO UK LIMITED=============,27226578,1,624.4,FRS STAFF AGENCY,05/10/2015,624.4,Fire Safety Regulation,Human Resources
800065334,ADECCO UK LIMITED=============,27226582,1,439.6,FRS STAFF AGENCY,05/10/2015,439.6,Operations Non Fire Stations,Human Resources
800065445,ADECCO UK LIMITED=============,27233160,1,439.6,FRS STAFF AGENCY,05/10/2015,439.6,Technical And Service Support,Human Resources
800065473,ADECCO UK LIMITED=============,27233179,1,603.82,FRS STAFF AGENCY,05/10/2015,603.82,Technical And Service Support,Human Resources
800065335,ADECCO UK LIMITED=============,27233188,1,439.6,FRS STAFF AGENCY,05/10/2015,439.6,Operations Non Fire Stations,Human Resources
800065446,ADECCO UK LIMITED=============,27239158,1,439.6,FRS STAFF AGENCY,05/10/2015,439.6,Technical And Service Support,Human Resources
800065570,ADECCO UK LIMITED=============,27239165,1,720.16,FRS STAFF AGENCY,05/10/2015,720.16,National Operational Guidance Project,Human Resources
800065474,ADECCO UK LIMITED=============,27239175,1,603.82,FRS STAFF AGENCY,05/10/2015,603.82,Technical And Service Support,Human Resources
800065336,ADECCO UK LIMITED=============,27239184,1,439.6,FRS STAFF AGENCY,05/10/2015,439.6,Operations Non Fire Stations,Human Resources
800065357,ADECCO UK LIMITED=============,27239190,1,335.98,FRS STAFF AGENCY,05/10/2015,335.98,Operations Non Fire Stations,Human Resources
800065521,ADECCO UK LIMITED=============,27239196,1,624.4,FRS STAFF AGENCY,05/10/2015,624.4,Fire Safety Regulation,Human Resources
800065447,ADECCO UK LIMITED=============,27245373,1,439.6,FRS STAFF AGENCY,05/10/2015,439.6,Technical And Service Support,Human Resources
800065337,ADECCO UK LIMITED=============,27245391,1,439.6,FRS STAFF AGENCY,05/10/2015,439.6,Operations Non Fire Stations,Human Resources
800065542,ADECCO UK LIMITED=============,27245393,1,449.63,FRS STAFF AGENCY,05/10/2015,449.63,National Operational Guidance Project,Human Resources
800065358,ADECCO UK LIMITED=============,27245396,1,439.6,FRS STAFF AGENCY,05/10/2015,439.6,Operations Non Fire Stations,Human Resources
800065520,ADECCO UK LIMITED=============,27245401,1,535.2,FRS STAFF AGENCY,05/10/2015,535.2,Fire Safety Regulation,Human Resources
800065530,ADECCO UK LIMITED=============,27245411,1,900.2,FRS STAFF AGENCY,05/10/2015,900.2,National Operational Guidance Project,Human Resources
800065571,ADECCO UK LIMITED=============,27245413,1,720.16,FRS STAFF AGENCY,05/10/2015,720.16,National Operational Guidance Project,Human Resources
800065886,ADECCO UK LIMITED=============,27251497,1,603.82,FRS STAFF AGENCY,05/10/2015,603.82,Technical And Service Support,Human Resources
800065892,ADECCO UK LIMITED=============,27251503,1,439.6,FRS STAFF AGENCY,05/10/2015,439.6,Operations Non Fire Stations,Human Resources
800065896,ADECCO UK LIMITED=============,27251507,1,439.6,FRS STAFF AGENCY,05/10/2015,439.6,Operations Non Fire Stations,Human Resources
800065910,ADECCO UK LIMITED=============,27251522,1,823.04,FRS STAFF AGENCY,05/10/2015,823.04,National Operational Guidance Project,Human Resources
800065912,ADECCO UK LIMITED=============,27251524,1,900.2,FRS STAFF AGENCY,05/10/2015,900.2,National Operational Guidance Project,Human Resources
800065913,ADECCO UK LIMITED=============,27251525,1,499.52,FRS STAFF AGENCY,05/10/2015,499.52,Operations Non Fire Stations,Human Resources
800065982,ADECCO UK LIMITED=============,27257918,1,720.16,FRS STAFF AGENCY,05/10/2015,720.16,National Operational Guidance Project,Human Resources
800065990,ADECCO UK LIMITED=============,27257924,1,540.12,FRS STAFF AGENCY,05/10/2015,540.12,National Operational Guidance Project,Human Resources
800065994,ADECCO UK LIMITED=============,27257928,1,605.64,FRS STAFF AGENCY,05/10/2015,605.64,Communications,Human Resources
800066001,ADECCO UK LIMITED=============,27263830,1,704.9,FRS STAFF AGENCY,05/10/2015,704.9,HR Management,Human Resources
800066011,ADECCO UK LIMITED=============,27263840,1,401.92,FRS STAFF AGENCY,05/10/2015,401.92,Operations Non Fire Stations,Human Resources
800066014,ADECCO UK LIMITED=============,27263843,1,345.52,FRS STAFF AGENCY,05/10/2015,345.52,Communications,Human Resources
800066015,ADECCO UK LIMITED=============,27263845,1,603.82,FRS STAFF AGENCY,05/10/2015,603.82,Technical And Service Support,Human Resources
800066021,ADECCO UK LIMITED=============,27263851,1,439.6,FRS STAFF AGENCY,05/10/2015,439.6,Technical And Service Support,Human Resources
800066023,ADECCO UK LIMITED=============,27263853,1,900.2,FRS STAFF AGENCY,05/10/2015,900.2,National Operational Guidance Project,Human Resources
800066025,ADECCO UK LIMITED=============,27263855,1,599.5,FRS STAFF AGENCY,05/10/2015,599.5,National Operational Guidance Project,Human Resources
800066026,ADECCO UK LIMITED=============,27263856,1,922.25,FRS STAFF AGENCY,05/10/2015,922.25,Technical And Service Support,Human Resources
800066045,ADECCO UK LIMITED=============,27263857,1,900.2,FRS STAFF AGENCY,05/10/2015,900.2,Information Management,Human Resources
800066028,ADECCO UK LIMITED=============,27263859,1,757.05,FRS STAFF AGENCY,05/10/2015,757.05,Communications,Human Resources
800066029,ADECCO UK LIMITED=============,27263860,1,263.76,FRS STAFF AGENCY,05/10/2015,263.76,Technical And Service Support,Human Resources
800066035,ADECCO UK LIMITED=============,27263866,1,523.54,FRS STAFF AGENCY,05/10/2015,523.54,National Operational Guidance Project,Human Resources
800066038,ADECCO UK LIMITED=============,27263869,1,554.75,FRS STAFF AGENCY,05/10/2015,554.75,Exercise Unified Response,Human Resources
800066039,ADECCO UK LIMITED=============,27263870,1,624.4,FRS STAFF AGENCY,05/10/2015,624.4,Technical And Service Support,Human Resources
800066205,*BANNER BUSINESS SUPPLIES LTD=,30462772,1,159,STATIONERY CONSUMABLES,05/10/2015,432.7,Technical And Service Support,Stationery
800066205,*BANNER BUSINESS SUPPLIES LTD=,30462772,2,188.5,STATIONERY CONSUMABLES,05/10/2015,,Technical And Service Support,Stationery
800066205,*BANNER BUSINESS SUPPLIES LTD=,30462772,3,16,STATIONERY CONSUMABLES,05/10/2015,,Technical And Service Support,Stationery
800066205,*BANNER BUSINESS SUPPLIES LTD=,30462772,4,42.9,STATIONERY CONSUMABLES,05/10/2015,,Technical And Service Support,Stationery
800066205,*BANNER BUSINESS SUPPLIES LTD=,30462772,5,26.3,STATIONERY CONSUMABLES,05/10/2015,,Technical And Service Support,Stationery
290915H,BRISTOL UNIFORMS LTD==========,316281,1,766.38,CLOTHING,05/10/2015,766.38,Procurement,Clothing
290915H,BRISTOL UNIFORMS LTD==========,316282,1,"4,027.79",CLOTHING,05/10/2015,"4,027.79",Procurement,Clothing
290915H,BRISTOL UNIFORMS LTD==========,316283,1,"197,575.56",CLOTHING,05/10/2015,"197,575.56",Procurement,Clothing
290915H,CARPETS & FLOOR COVERS DIRECT=,4068,1,"9,037.24",STRATEGIC (NON CYCLICAL),05/10/2015,"9,037.24",Technical and Service Support,Building Constr Materials
141208,LONDON PENSIONS FUND AUTHORITY,436,1,"84,815.99",LOCAL GOVT PENSION SCHEME PAYM,05/10/2015,"84,815.99",Central Finance,Financial Services
290915H,FIRESAFE CONSULTANTS LIMITED,5/16/6,1,400,GENERAL,05/10/2015,400,Central Finance,Fire & Rescue
290915H,CK DIRECT,5663,1,"3,524.90",CATERING FIXTURES,05/10/2015,"3,524.90",Technical And Service Support,Facilities & Management S
290915H,CK DIRECT,5664,1,"3,524.90",CATERING FIXTURES,05/10/2015,"3,524.90",Technical And Service Support,Facilities & Management S
290915H,CK DIRECT,5696,1,"3,524.90",CATERING FIXTURES,05/10/2015,"3,524.90",Technical And Service Support,Facilities & Management S
290915H,CK DIRECT,5697,1,"3,524.90",CATERING FIXTURES,05/10/2015,"3,524.90",Technical And Service Support,Facilities & Management S
280915H,CK DIRECT,5713,1,"2,322.90",STRATEGIC (NON CYCLICAL),05/10/2015,"2,322.90",Technical and Service Support,Facilities & Management S
290915H,*OCS GROUP UK LTD,5800015433,1,"4,328.25",REFRESHMENTS,05/10/2015,"4,328.25",Communications,Catering
290915H,GAS & AIR SERVICES (UK)=======,6733,1,"1,321.42",REPAIR & MAINTENANCE,05/10/2015,"1,321.42",Technical And Service Support,Building Constr Materials
290915H,TWO SERVICES LTD==============,84176,1,272.05,TACTICAL DAY TO DAY,05/10/2015,272.05,Technical And Service Support,Catering
290915H,TSI INSTRUMENTS LTD===========,90745877,1,445,REPAIR & MAINTENANCE,05/10/2015,454.72,Technical And Service Support,Fire & Rescue
290915H,TSI INSTRUMENTS LTD===========,90745877,2,9.72,REPAIR & MAINTENANCE,05/10/2015,,Technical And Service Support,Fire & Rescue
290915H,PITNEY BOWES PURCHASE POWER,BD007446,1,"8,759.48",POSTAL SERVICES,05/10/2015,"8,759.48",Information Management,Mail Services
290915H,INFOR (UNITED KINGDOM) LIMITED,CLINV5666305,1,"3,840.00",MAINTENANCE & SUPPORT,05/10/2015,"3,840.00",Information and Communication Technology,ICT
290915H,INFOR (UNITED KINGDOM) LIMITED,CLINV5666307,1,640,MAINTENANCE & SUPPORT,05/10/2015,640,Information and Communication Technology,ICT
290915H,E&S B DAVIS LTD,DAV/57930,1,295,OPERATIONAL EQUIP-PURCHASE,05/10/2015,295,Operations Fire Stations,Environmental Services
800066134,ALLSTAR BUSINESS SOLUTIONS LTD,E2005411842,1,685.62,FUEL,05/10/2015,"14,319.48",Operations Non Fire Stations,Vehicle Management
800066134,ALLSTAR BUSINESS SOLUTIONS LTD,E2005411842,2,498.38,FUEL,05/10/2015,,Procurement,Vehicle Management
800066134,ALLSTAR BUSINESS SOLUTIONS LTD,E2005411842,3,414.17,FUEL,05/10/2015,,Operations Fire Stations,Vehicle Management
800066134,ALLSTAR BUSINESS SOLUTIONS LTD,E2005411842,4,341.37,FUEL,05/10/2015,,Operations Fire Stations,Vehicle Management
800066134,ALLSTAR BUSINESS SOLUTIONS LTD,E2005411842,5,333.93,FUEL,05/10/2015,,Operations Fire Stations,Vehicle Management
800066134,ALLSTAR BUSINESS SOLUTIONS LTD,E2005411842,6,296.05,FUEL,05/10/2015,,Operations Fire Stations,Vehicle Management
800066134,ALLSTAR BUSINESS SOLUTIONS LTD,E2005411842,7,279.78,FUEL,05/10/2015,,Operations Fire Stations,Vehicle Management
800066134,ALLSTAR BUSINESS SOLUTIONS LTD,E2005411842,8,273.49,FUEL,05/10/2015,,Operations Fire Stations,Vehicle Management
800066134,ALLSTAR BUSINESS SOLUTIONS LTD,E2005411842,9,269.54,FUEL,05/10/2015,,Operations Fire Stations,Vehicle Management
800066134,ALLSTAR BUSINESS SOLUTIONS LTD,E2005411842,10,266.01,FUEL,05/10/2015,,Operations Fire Stations,Vehicle Management
800066134,ALLSTAR BUSINESS SOLUTIONS LTD,E2005411842,11,261.91,FUEL,05/10/2015,,Operations Fire Stations,Vehicle Management
800066134,ALLSTAR BUSINESS SOLUTIONS LTD,E2005411842,12,239.1,FUEL,05/10/2015,,Operations Fire Stations,Vehicle Management
800066134,ALLSTAR BUSINESS SOLUTIONS LTD,E2005411842,13,238.57,FUEL,05/10/2015,,Operations Fire Stations,Vehicle Management
800066134,ALLSTAR BUSINESS SOLUTIONS LTD,E2005411842,14,237.66,FUEL,05/10/2015,,Operations Fire Stations,Vehicle Management
800066134,ALLSTAR BUSINESS SOLUTIONS LTD,E2005411842,15,234.74,FUEL,05/10/2015,,Operations Fire Stations,Vehicle Management
800066134,ALLSTAR BUSINESS SOLUTIONS LTD,E2005411842,16,234.5,FUEL,05/10/2015,,Operations Fire Stations,Vehicle Management
800066134,ALLSTAR BUSINESS SOLUTIONS LTD,E2005411842,17,232.34,FUEL,05/10/2015,,Operations Fire Stations,Vehicle Management
800066134,ALLSTAR BUSINESS SOLUTIONS LTD,E2005411842,18,226.87,FUEL,05/10/2015,,Operations Fire Stations,Vehicle Management
800066134,ALLSTAR BUSINESS SOLUTIONS LTD,E2005411842,19,219.73,FUEL,05/10/2015,,Operations Fire Stations,Vehicle Management
800066134,ALLSTAR BUSINESS SOLUTIONS LTD,E2005411842,20,219.51,FUEL,05/10/2015,,Operations Fire Stations,Vehicle Management
800066134,ALLSTAR BUSINESS SOLUTIONS LTD,E2005411842,21,219.09,FUEL,05/10/2015,,Operations Fire Stations,Vehicle Management
800066134,ALLSTAR BUSINESS SOLUTIONS LTD,E2005411842,22,212.65,FUEL,05/10/2015,,Operations Fire Stations,Vehicle Management
800066134,ALLSTAR BUSINESS SOLUTIONS LTD,E2005411842,23,212.1,FUEL,05/10/2015,,Operations Fire Stations,Vehicle Management
800066134,ALLSTAR BUSINESS SOLUTIONS LTD,E2005411842,24,204.61,FUEL,05/10/2015,,Operations Fire Stations,Vehicle Management
800066134,ALLSTAR BUSINESS SOLUTIONS LTD,E2005411842,25,198.22,FUEL,05/10/2015,,Operations Fire Stations,Vehicle Management
800066134,ALLSTAR BUSINESS SOLUTIONS LTD,E2005411842,26,193.4,FUEL,05/10/2015,,Operations Fire Stations,Vehicle Management
800066134,ALLSTAR BUSINESS SOLUTIONS LTD,E2005411842,27,192.4,FUEL,05/10/2015,,Operations Fire Stations,Vehicle Management
800066134,ALLSTAR BUSINESS SOLUTIONS LTD,E2005411842,28,192.16,FUEL,05/10/2015,,Operations Fire Stations,Vehicle Management
800066134,ALLSTAR BUSINESS SOLUTIONS LTD,E2005411842,29,190.75,FUEL,05/10/2015,,Operations Fire Stations,Vehicle Management
800066134,ALLSTAR BUSINESS SOLUTIONS LTD,E2005411842,30,188.45,FUEL,05/10/2015,,Operations Fire Stations,Vehicle Management
800066134,ALLSTAR BUSINESS SOLUTIONS LTD,E2005411842,31,181.63,FUEL,05/10/2015,,Operations Fire Stations,Vehicle Management
800066134,ALLSTAR BUSINESS SOLUTIONS LTD,E2005411842,32,177.14,FUEL,05/10/2015,,Operations Fire Stations,Vehicle Management
800066134,ALLSTAR BUSINESS SOLUTIONS LTD,E2005411842,33,175.81,FUEL,05/10/2015,,Operations Fire Stations,Vehicle Management
800066134,ALLSTAR BUSINESS SOLUTIONS LTD,E2005411842,34,175.51,FUEL,05/10/2015,,Operations Fire Stations,Vehicle Management
800066134,ALLSTAR BUSINESS SOLUTIONS LTD,E2005411842,35,174.99,FUEL,05/10/2015,,Operations Fire Stations,Vehicle Management
800066134,ALLSTAR BUSINESS SOLUTIONS LTD,E2005411842,36,168.44,FUEL,05/10/2015,,Operations Fire Stations,Vehicle Management
800066134,ALLSTAR BUSINESS SOLUTIONS LTD,E2005411842,37,161.64,FUEL,05/10/2015,,Operations Non Fire Stations,Vehicle Management
800066134,ALLSTAR BUSINESS SOLUTIONS LTD,E2005411842,38,157.5,FUEL,05/10/2015,,Operations Fire Stations,Vehicle Management
800066134,ALLSTAR BUSINESS SOLUTIONS LTD,E2005411842,39,150.75,FUEL,05/10/2015,,Operations Fire Stations,Vehicle Management
800066134,ALLSTAR BUSINESS SOLUTIONS LTD,E2005411842,40,146.67,FUEL,05/10/2015,,Operations Fire Stations,Vehicle Management
800066134,ALLSTAR BUSINESS SOLUTIONS LTD,E2005411842,41,146.41,FUEL,05/10/2015,,Operations Fire Stations,Vehicle Management
800066134,ALLSTAR BUSINESS SOLUTIONS LTD,E2005411842,42,145.17,FUEL,05/10/2015,,Operations Fire Stations,Vehicle Management
800066134,ALLSTAR BUSINESS SOLUTIONS LTD,E2005411842,43,137.48,FUEL,05/10/2015,,Operations Fire Stations,Vehicle Management
800066134,ALLSTAR BUSINESS SOLUTIONS LTD,E2005411842,44,136.74,FUEL,05/10/2015,,Operations Fire Stations,Vehicle Management
800066134,ALLSTAR BUSINESS SOLUTIONS LTD,E2005411842,45,134.43,FUEL,05/10/2015,,Operations Fire Stations,Vehicle Management
800066134,ALLSTAR BUSINESS SOLUTIONS LTD,E2005411842,46,134.12,FUEL,05/10/2015,,Information and Communication Technology,Vehicle Management
800066134,ALLSTAR BUSINESS SOLUTIONS LTD,E2005411842,47,133.52,FUEL,05/10/2015,,Operations Fire Stations,Vehicle Management
800066134,ALLSTAR BUSINESS SOLUTIONS LTD,E2005411842,48,130.65,FUEL,05/10/2015,,Operations Fire Stations,Vehicle Management
800066134,ALLSTAR BUSINESS SOLUTIONS LTD,E2005411842,49,129.15,FUEL,05/10/2015,,Operations Fire Stations,Vehicle Management
800066134,ALLSTAR BUSINESS SOLUTIONS LTD,E2005411842,50,128.65,FUEL,05/10/2015,,Operations Fire Stations,Vehicle Management
800066134,ALLSTAR BUSINESS SOLUTIONS LTD,E2005411842,51,124.81,FUEL,05/10/2015,,Operations Fire Stations,Vehicle Management
800066134,ALLSTAR BUSINESS SOLUTIONS LTD,E2005411842,52,122.8,FUEL,05/10/2015,,Fire Safety Regulation,Vehicle Management
800066134,ALLSTAR BUSINESS SOLUTIONS LTD,E2005411842,53,118.17,FUEL,05/10/2015,,Operations Fire Stations,Vehicle Management
800066134,ALLSTAR BUSINESS SOLUTIONS LTD,E2005411842,54,116.4,FUEL,05/10/2015,,Operations Fire Stations,Vehicle Management
800066134,ALLSTAR BUSINESS SOLUTIONS LTD,E2005411842,55,114.76,FUEL,05/10/2015,,Operations Fire Stations,Vehicle Management
800066134,ALLSTAR BUSINESS SOLUTIONS LTD,E2005411842,56,111.93,FUEL,05/10/2015,,Operations Fire Stations,Vehicle Management
800066134,ALLSTAR BUSINESS SOLUTIONS LTD,E2005411842,57,111.61,FUEL,05/10/2015,,Operations Fire Stations,Vehicle Management
800066134,ALLSTAR BUSINESS SOLUTIONS LTD,E2005411842,58,110.46,FUEL,05/10/2015,,Operations Fire Stations,Vehicle Management
800066134,ALLSTAR BUSINESS SOLUTIONS LTD,E2005411842,59,109.7,FUEL,05/10/2015,,Operations Fire Stations,Vehicle Management
800066134,ALLSTAR BUSINESS SOLUTIONS LTD,E2005411842,60,109.55,FUEL,05/10/2015,,Operations Fire Stations,Vehicle Management
800066134,ALLSTAR BUSINESS SOLUTIONS LTD,E2005411842,61,107.58,FUEL,05/10/2015,,Operations Fire Stations,Vehicle Management
800066134,ALLSTAR BUSINESS SOLUTIONS LTD,E2005411842,62,106.06,FUEL,05/10/2015,,Operations Fire Stations,Vehicle Management
800066134,ALLSTAR BUSINESS SOLUTIONS LTD,E2005411842,63,102.76,FUEL,05/10/2015,,Operations Fire Stations,Vehicle Management
800066134,ALLSTAR BUSINESS SOLUTIONS LTD,E2005411842,64,100.24,FUEL,05/10/2015,,Operations Fire Stations,Vehicle Management
800066134,ALLSTAR BUSINESS SOLUTIONS LTD,E2005411842,65,97.63,FUEL,05/10/2015,,Operations Fire Stations,Vehicle Management
800066134,ALLSTAR BUSINESS SOLUTIONS LTD,E2005411842,66,96.52,FUEL,05/10/2015,,Operations Fire Stations,Vehicle Management
800066134,ALLSTAR BUSINESS SOLUTIONS LTD,E2005411842,67,92.44,FUEL,05/10/2015,,Operations Fire Stations,Vehicle Management
800066134,ALLSTAR BUSINESS SOLUTIONS LTD,E2005411842,68,84.57,FUEL,05/10/2015,,Operations Fire Stations,Vehicle Management
800066134,ALLSTAR BUSINESS SOLUTIONS LTD,E2005411842,69,81.02,FUEL,05/10/2015,,Operations Fire Stations,Vehicle Management
800066134,ALLSTAR BUSINESS SOLUTIONS LTD,E2005411842,70,79.8,FUEL,05/10/2015,,Operations Fire Stations,Vehicle Management
800066134,ALLSTAR BUSINESS SOLUTIONS LTD,E2005411842,71,79.6,FUEL,05/10/2015,,Operations Fire Stations,Vehicle Management
800066134,ALLSTAR BUSINESS SOLUTIONS LTD,E2005411842,72,79.39,FUEL,05/10/2015,,Operations Fire Stations,Vehicle Management
800066134,ALLSTAR BUSINESS SOLUTIONS LTD,E2005411842,73,78.55,FUEL,05/10/2015,,Operations Fire Stations,Vehicle Management
800066134,ALLSTAR BUSINESS SOLUTIONS LTD,E2005411842,74,73.39,FUEL,05/10/2015,,Operations Fire Stations,Vehicle Management
800066134,ALLSTAR BUSINESS SOLUTIONS LTD,E2005411842,75,68.66,FUEL,05/10/2015,,Command Units,Vehicle Management
800066134,ALLSTAR BUSINESS SOLUTIONS LTD,E2005411842,76,66.12,FUEL,05/10/2015,,Operations Fire Stations,Vehicle Management
800066134,ALLSTAR BUSINESS SOLUTIONS LTD,E2005411842,77,65.34,FUEL,05/10/2015,,Command Units,Vehicle Management
800066134,ALLSTAR BUSINESS SOLUTIONS LTD,E2005411842,78,62.95,FUEL,05/10/2015,,LIFE - LFB Funded,Vehicle Management
800066134,ALLSTAR BUSINESS SOLUTIONS LTD,E2005411842,79,62.78,FUEL,05/10/2015,,Operations Fire Stations,Vehicle Management
800066134,ALLSTAR BUSINESS SOLUTIONS LTD,E2005411842,80,58.75,FUEL,05/10/2015,,Command Units,Vehicle Management
800066134,ALLSTAR BUSINESS SOLUTIONS LTD,E2005411842,81,55.08,FUEL,05/10/2015,,Operational Policy,Vehicle Management
800066134,ALLSTAR BUSINESS SOLUTIONS LTD,E2005411842,82,50.93,FUEL,05/10/2015,,Operations Fire Stations,Vehicle Management
800066134,ALLSTAR BUSINESS SOLUTIONS LTD,E2005411842,83,50.02,FUEL,05/10/2015,,Command Units,Vehicle Management
800066134,ALLSTAR BUSINESS SOLUTIONS LTD,E2005411842,84,47.5,FUEL,05/10/2015,,Operational Resilience,Vehicle Management
800066134,ALLSTAR BUSINESS SOLUTIONS LTD,E2005411842,85,47.41,FUEL,05/10/2015,,Operations Fire Stations,Vehicle Management
800066134,ALLSTAR BUSINESS SOLUTIONS LTD,E2005411842,86,42.72,FUEL,05/10/2015,,Command Units,Vehicle Management
800066134,ALLSTAR BUSINESS SOLUTIONS LTD,E2005411842,87,41.78,FUEL,05/10/2015,,CBRN RRT,Vehicle Management
800066134,ALLSTAR BUSINESS SOLUTIONS LTD,E2005411842,88,35.32,FUEL,05/10/2015,,Operations Fire Stations,Vehicle Management
800066134,ALLSTAR BUSINESS SOLUTIONS LTD,E2005411842,89,34.28,FUEL,05/10/2015,,Command Units,Vehicle Management
800066134,ALLSTAR BUSINESS SOLUTIONS LTD,E2005411842,90,34.28,FUEL,05/10/2015,,Technical And Service Support,Vehicle Management
800066134,ALLSTAR BUSINESS SOLUTIONS LTD,E2005411842,91,22.35,FUEL,05/10/2015,,Technical And Service Support,Vehicle Management
800066134,ALLSTAR BUSINESS SOLUTIONS LTD,E2005411842,92,21.28,FUEL,05/10/2015,,Operations Fire Stations,Vehicle Management
800066134,ALLSTAR BUSINESS SOLUTIONS LTD,E2005411842,93,8.69,FUEL,05/10/2015,,Operations Fire Stations,Vehicle Management
290915H,KIER BUILDING SERV ENGINEERS==,F00055339,1,"9,189.80",STRATEGIC (NON CYCLICAL),05/10/2015,"9,189.80",Technical and Service Support,"Works - Construction, R&M"
290915H,KIER BUILDING SERV ENGINEERS==,F00055340,1,"3,832.06",STRATEGIC (NON CYCLICAL),05/10/2015,"3,832.06",Technical and Service Support,"Works - Construction, R&M"
141208,JCT600 VEHICLE LEASING,INV00095507,1,"3,948.33",LEASE CAR CHARGES,05/10/2015,"5,558.04",Procurement,Vehicle Management
141208,JCT600 VEHICLE LEASING,INV00095507,2,"1,609.71",P/PAYMTS-CAR LEASG-RENTAL,05/10/2015,,Finance Services,Vehicle Management
141208,JCT600 VEHICLE LEASING,INV00095507,3,-498.12,VAT CAR LEASING,05/10/2015,,Finance Services,Vehicle Management
141208,JCT600 VEHICLE LEASING,INV00095507,4,498.12,LEASE CAR CHARGES,05/10/2015,,Procurement,Vehicle Management
141208,JCT600 VEHICLE LEASING,INV00095508,1,"2,615.61",LEASE CAR CHARGES,05/10/2015,"3,506.64",Procurement,Vehicle Management
141208,JCT600 VEHICLE LEASING,INV00095508,2,891.03,P/PAYMTS-CAR LEASG-RENTAL,05/10/2015,,Finance Services,Vehicle Management
141208,JCT600 VEHICLE LEASING,INV00095508,3,-315.12,VAT CAR LEASING,05/10/2015,,Finance Services,Vehicle Management
141208,JCT600 VEHICLE LEASING,INV00095508,4,315.12,LEASE CAR CHARGES,05/10/2015,,Procurement,Vehicle Management
141208,JCT600 VEHICLE LEASING,INV00099550,1,465.78,LEASE CAR CHARGES,05/10/2015,465.78,Procurement,Vehicle Management
141208,JCT600 VEHICLE LEASING,INV00099550,2,-40.31,VAT CAR LEASING,05/10/2015,,Finance Services,Vehicle Management
141208,JCT600 VEHICLE LEASING,INV00099550,3,40.31,LEASE CAR CHARGES,05/10/2015,,Procurement,Vehicle Management
141208,JCT600 VEHICLE LEASING,INV00099551,1,533.51,LEASE CAR CHARGES,05/10/2015,533.51,Procurement,Vehicle Management
141208,JCT600 VEHICLE LEASING,INV00099551,2,-47.37,VAT CAR LEASING,05/10/2015,,Finance Services,Vehicle Management
141208,JCT600 VEHICLE LEASING,INV00099551,3,47.37,LEASE CAR CHARGES,05/10/2015,,Procurement,Vehicle Management
141208,JCT600 VEHICLE LEASING,INV00099552,1,306.03,LEASE CAR CHARGES,05/10/2015,306.03,Procurement,Vehicle Management
141208,JCT600 VEHICLE LEASING,INV00099552,2,-26.92,VAT CAR LEASING,05/10/2015,,Finance Services,Vehicle Management
141208,JCT600 VEHICLE LEASING,INV00099552,3,26.92,LEASE CAR CHARGES,05/10/2015,,Procurement,Vehicle Management
141208,JCT600 VEHICLE LEASING,INV00099553,1,370.39,LEASE CAR CHARGES,05/10/2015,370.39,Procurement,Vehicle Management
141208,JCT600 VEHICLE LEASING,INV00099553,2,-32.96,VAT CAR LEASING,05/10/2015,,Finance Services,Vehicle Management
141208,JCT600 VEHICLE LEASING,INV00099553,3,32.96,LEASE CAR CHARGES,05/10/2015,,Procurement,Vehicle Management
141208,JCT600 VEHICLE LEASING,INV00099554,1,419.3,LEASE CAR CHARGES,05/10/2015,419.3,Procurement,Vehicle Management
141208,JCT600 VEHICLE LEASING,INV00099554,2,-37.89,VAT CAR LEASING,05/10/2015,,Finance Services,Vehicle Management
141208,JCT600 VEHICLE LEASING,INV00099554,3,37.89,LEASE CAR CHARGES,05/10/2015,,Procurement,Vehicle Management
141208,LEX AUTOLEASE,IRIN419699,1,"1,571.25",LEASE CAR CHARGES,05/10/2015,"2,995.20",Procurement,Vehicle Management
141208,LEX AUTOLEASE,IRIN419699,2,"1,423.95",P/PAYMTS-CAR LEASG-RENTAL,05/10/2015,,Finance Services,Vehicle Management
141208,LEX AUTOLEASE,IRIN419699,3,-243.82,VAT CAR LEASING,05/10/2015,,Finance Services,Vehicle Management
141208,LEX AUTOLEASE,IRIN419699,4,243.82,LEASE CAR CHARGES,05/10/2015,,Procurement,Vehicle Management
290915H,GROUND CONTROL LIMITED,SIN060934,1,45,GROUNDS MAINTENANCE,05/10/2015,720,Technical And Service Support,"Works - Construction, R&M"
290915H,GROUND CONTROL LIMITED,SIN060934,2,45,GROUNDS MAINTENANCE,05/10/2015,,Technical And Service Support,"Works - Construction, R&M"
290915H,GROUND CONTROL LIMITED,SIN060934,3,45,GROUNDS MAINTENANCE,05/10/2015,,Technical And Service Support,"Works - Construction, R&M"
290915H,GROUND CONTROL LIMITED,SIN060934,4,45,GROUNDS MAINTENANCE,05/10/2015,,Technical And Service Support,"Works - Construction, R&M"
290915H,GROUND CONTROL LIMITED,SIN060934,5,45,GROUNDS MAINTENANCE,05/10/2015,,Technical And Service Support,"Works - Construction, R&M"
290915H,GROUND CONTROL LIMITED,SIN060934,6,45,GROUNDS MAINTENANCE,05/10/2015,,Technical And Service Support,"Works - Construction, R&M"
290915H,GROUND CONTROL LIMITED,SIN060934,7,45,GROUNDS MAINTENANCE,05/10/2015,,Technical And Service Support,"Works - Construction, R&M"
290915H,GROUND CONTROL LIMITED,SIN060934,8,45,GROUNDS MAINTENANCE,05/10/2015,,Technical And Service Support,"Works - Construction, R&M"
290915H,GROUND CONTROL LIMITED,SIN060934,9,45,GROUNDS MAINTENANCE,05/10/2015,,Technical And Service Support,"Works - Construction, R&M"
290915H,GROUND CONTROL LIMITED,SIN060934,10,45,GROUNDS MAINTENANCE,05/10/2015,,Technical And Service Support,"Works - Construction, R&M"
290915H,GROUND CONTROL LIMITED,SIN060934,11,45,GROUNDS MAINTENANCE,05/10/2015,,Technical And Service Support,"Works - Construction, R&M"
290915H,GROUND CONTROL LIMITED,SIN060934,12,45,GROUNDS MAINTENANCE,05/10/2015,,Technical And Service Support,"Works - Construction, R&M"
290915H,GROUND CONTROL LIMITED,SIN060934,13,45,GROUNDS MAINTENANCE,05/10/2015,,Technical And Service Support,"Works - Construction, R&M"
290915H,GROUND CONTROL LIMITED,SIN060934,14,45,GROUNDS MAINTENANCE,05/10/2015,,Technical And Service Support,"Works - Construction, R&M"
290915H,GROUND CONTROL LIMITED,SIN060934,15,45,GROUNDS MAINTENANCE,05/10/2015,,Technical And Service Support,"Works - Construction, R&M"
290915H,GROUND CONTROL LIMITED,SIN060934,16,45,GROUNDS MAINTENANCE,05/10/2015,,Technical And Service Support,"Works - Construction, R&M"
290915H,BLACK AND WHITE TRADING LTD,SYM2127,1,399,PROFESSIONAL DEVELOPMENT,05/10/2015,399,Development and Training,Human Resources
051015M,MOOLANDS LTD,1079,1,799,STRATEGIC (NON CYCLICAL),08/10/2015,799,Technical and Service Support,"Works - Construction, R&M"
051015M,MOOLANDS LTD,3030,1,795,STRATEGIC (NON CYCLICAL),08/10/2015,"7,155.00",Technical and Service Support,"Works - Construction, R&M"
051015M,MOOLANDS LTD,3030,2,795,STRATEGIC (NON CYCLICAL),08/10/2015,,Technical and Service Support,"Works - Construction, R&M"
051015M,MOOLANDS LTD,3030,3,795,STRATEGIC (NON CYCLICAL),08/10/2015,,Technical and Service Support,"Works - Construction, R&M"
051015M,MOOLANDS LTD,3030,4,795,STRATEGIC (NON CYCLICAL),08/10/2015,,Technical and Service Support,"Works - Construction, R&M"
051015M,MOOLANDS LTD,3030,5,795,STRATEGIC (NON CYCLICAL),08/10/2015,,Technical and Service Support,"Works - Construction, R&M"
051015M,MOOLANDS LTD,3030,6,795,STRATEGIC (NON CYCLICAL),08/10/2015,,Technical and Service Support,"Works - Construction, R&M"
051015M,MOOLANDS LTD,3030,7,795,STRATEGIC (NON CYCLICAL),08/10/2015,,Technical and Service Support,"Works - Construction, R&M"
051015M,MOOLANDS LTD,3030,8,795,STRATEGIC (NON CYCLICAL),08/10/2015,,Technical and Service Support,"Works - Construction, R&M"
051015M,MOOLANDS LTD,3030,9,795,STRATEGIC (NON CYCLICAL),08/10/2015,,Technical and Service Support,"Works - Construction, R&M"
141210,AUSTIN ALLEN,015/08451,1,"1,659.00",ENQUIRY AGENTS FEES,08/10/2015,"1,659.00",Compensation Budgets,Legal Services
021015H,LAWRIE (J.G) CONSULTING,Apr-15,1,"1,080.72",PROFESSIONAL DEVELOPMENT,08/10/2015,"1,080.72",Central Finance,Legal Services
180915M,CARILLION COMMUNICATIONS LTD==,1013214,1,"10,367.00",MAINTENANCE & SUPPORT,08/10/2015,"10,367.00",Information and Communication Technology,"Works - Construction, R&M"
051015M,PRENAX LIMITED,10642784,1,330.96,BOOKS & JOURNALS,08/10/2015,330.96,Information Management,Financial Services
051015M,PRENAX LIMITED,10642810,1,509.29,BOOKS & JOURNALS,08/10/2015,509.29,Information Management,Financial Services
800060971,*JAMES HUNTER (OUTFITTERS) LTD,108103,1,251.09,CLOTHING,08/10/2015,251.09,Fire Safety Regulation,Clothing
800060976,*JAMES HUNTER (OUTFITTERS) LTD,108108,1,294.48,CLOTHING,08/10/2015,294.48,Operations Fire Stations,Clothing
800062397,*JAMES HUNTER (OUTFITTERS) LTD,108166,1,293.13,CLOTHING,08/10/2015,293.13,Operations Fire Stations,Clothing
021015H,BT GLOBAL SERVICES============,1134578,1,541.66,TELECOMMUNICATIONS,08/10/2015,541.66,Information and Communication Technology,ICT
011015H,AUXQUIMIA S.A.U,115689,1,"1,320.00",OPERATIONAL EQUIP-PURCHASE,08/10/2015,"1,320.00",Operations Fire Stations,Fire & Rescue
051015M,SAFER LONDON FOUNDATION,1415,1,750,GENERAL,08/10/2015,750,LIFE - LFB Funded,Human Resources
240915M,H J HALL & SON================,145172,1,562.46,UNIFORMS - POMS,08/10/2015,562.46,Procurement,Clothing
280915G,BUREAU VERITAS HS&E LTD=======,15014701,1,"97,510.95",SCIENTIFIC SERVICES,08/10/2015,"97,510.95",Procurement,Environmental Services
021015H,FALTECH LIMITED,1509-018,1,"5,497.70",RADIO,08/10/2015,"7,762.25",Information and Communication Technology,ICT
021015H,FALTECH LIMITED,1509-018,2,162.5,RADIO,08/10/2015,,Information and Communication Technology,ICT
021015H,FALTECH LIMITED,1509-018,3,172.3,RADIO,08/10/2015,,Information and Communication Technology,ICT
021015H,FALTECH LIMITED,1509-018,4,746.1,RADIO,08/10/2015,,Information and Communication Technology,ICT
021015H,FALTECH LIMITED,1509-018,5,"1,183.65",RADIO,08/10/2015,,Information and Communication Technology,ICT
051015G,*NPS (SHOES) LTD,15195/15396,1,30.05,CLOTHING,08/10/2015,"3,534.70",Control and Mobilising,Clothing
051015G,*NPS (SHOES) LTD,15195/15396,2,30.05,CLOTHING,08/10/2015,,Operations Fire Stations,Clothing
051015G,*NPS (SHOES) LTD,15195/15396,3,30.05,CLOTHING,08/10/2015,,Operations Fire Stations,Clothing
051015G,*NPS (SHOES) LTD,15195/15396,4,30.05,CLOTHING,08/10/2015,,Operations Fire Stations,Clothing
051015G,*NPS (SHOES) LTD,15195/15396,5,30.05,CLOTHING,08/10/2015,,Operations Fire Stations,Clothing
051015G,*NPS (SHOES) LTD,15195/15396,6,30.05,CLOTHING,08/10/2015,,Operations Fire Stations,Clothing
051015G,*NPS (SHOES) LTD,15195/15396,7,30.05,CLOTHING,08/10/2015,,Operations Fire Stations,Clothing
051015G,*NPS (SHOES) LTD,15195/15396,8,30.05,CLOTHING,08/10/2015,,Operations Fire Stations,Clothing
051015G,*NPS (SHOES) LTD,15195/15396,9,30.05,CLOTHING,08/10/2015,,Operations Fire Stations,Clothing
051015G,*NPS (SHOES) LTD,15195/15396,10,30.05,CLOTHING,08/10/2015,,Operations Fire Stations,Clothing
051015G,*NPS (SHOES) LTD,15195/15396,11,30.05,CLOTHING,08/10/2015,,Operations Fire Stations,Clothing
051015G,*NPS (SHOES) LTD,15195/15396,12,30.05,CLOTHING,08/10/2015,,Operations Fire Stations,Clothing
051015G,*NPS (SHOES) LTD,15195/15396,13,35,CLOTHING,08/10/2015,,Operations Fire Stations,Clothing
051015G,*NPS (SHOES) LTD,15195/15396,14,35,CLOTHING,08/10/2015,,Operations Fire Stations,Clothing
051015G,*NPS (SHOES) LTD,15195/15396,15,35,CLOTHING,08/10/2015,,Operations Fire Stations,Clothing
051015G,*NPS (SHOES) LTD,15195/15396,16,70,CLOTHING,08/10/2015,,Operations Fire Stations,Clothing
051015G,*NPS (SHOES) LTD,15195/15396,17,35,CLOTHING,08/10/2015,,Operations Fire Stations,Clothing
051015G,*NPS (SHOES) LTD,15195/15396,18,35,CLOTHING,08/10/2015,,Operations Fire Stations,Clothing
051015G,*NPS (SHOES) LTD,15195/15396,19,35,CLOTHING,08/10/2015,,Operations Fire Stations,Clothing
051015G,*NPS (SHOES) LTD,15195/15396,20,30.05,CLOTHING,08/10/2015,,Operations Fire Stations,Clothing
051015G,*NPS (SHOES) LTD,15195/15396,21,30.05,CLOTHING,08/10/2015,,Operations Fire Stations,Clothing
051015G,*NPS (SHOES) LTD,15195/15396,22,30.05,CLOTHING,08/10/2015,,Operations Fire Stations,Clothing
051015G,*NPS (SHOES) LTD,15195/15396,23,30.05,CLOTHING,08/10/2015,,Operations Fire Stations,Clothing
051015G,*NPS (SHOES) LTD,15195/15396,24,30.05,CLOTHING,08/10/2015,,Operations Fire Stations,Clothing
051015G,*NPS (SHOES) LTD,15195/15396,25,29.45,CLOTHING,08/10/2015,,Operations Fire Stations,Clothing
051015G,*NPS (SHOES) LTD,15195/15396,26,29.45,CLOTHING,08/10/2015,,Operations Fire Stations,Clothing
051015G,*NPS (SHOES) LTD,15195/15396,27,29.45,CLOTHING,08/10/2015,,Operations Fire Stations,Clothing
051015G,*NPS (SHOES) LTD,15195/15396,28,58.9,CLOTHING,08/10/2015,,Operations Fire Stations,Clothing
051015G,*NPS (SHOES) LTD,15195/15396,29,29.45,CLOTHING,08/10/2015,,Operations Fire Stations,Clothing
051015G,*NPS (SHOES) LTD,15195/15396,30,29.45,CLOTHING,08/10/2015,,Operations Fire Stations,Clothing
051015G,*NPS (SHOES) LTD,15195/15396,31,29.45,CLOTHING,08/10/2015,,Operations Fire Stations,Clothing
051015G,*NPS (SHOES) LTD,15195/15396,32,29.45,CLOTHING,08/10/2015,,Operations Fire Stations,Clothing
051015G,*NPS (SHOES) LTD,15195/15396,33,29.45,CLOTHING,08/10/2015,,Operations Fire Stations,Clothing
051015G,*NPS (SHOES) LTD,15195/15396,34,29.45,CLOTHING,08/10/2015,,Operations Fire Stations,Clothing
051015G,*NPS (SHOES) LTD,15195/15396,35,29.45,CLOTHING,08/10/2015,,Operations Fire Stations,Clothing
051015G,*NPS (SHOES) LTD,15195/15396,36,29.45,CLOTHING,08/10/2015,,Operations Fire Stations,Clothing
051015G,*NPS (SHOES) LTD,15195/15396,37,29.45,CLOTHING,08/10/2015,,Operations Fire Stations,Clothing
051015G,*NPS (SHOES) LTD,15195/15396,38,29.45,CLOTHING,08/10/2015,,Operations Fire Stations,Clothing
051015G,*NPS (SHOES) LTD,15195/15396,39,29.45,CLOTHING,08/10/2015,,Operations Fire Stations,Clothing
051015G,*NPS (SHOES) LTD,15195/15396,40,29.45,CLOTHING,08/10/2015,,Operations Fire Stations,Clothing
051015G,*NPS (SHOES) LTD,15195/15396,41,29.45,CLOTHING,08/10/2015,,Operations Fire Stations,Clothing
051015G,*NPS (SHOES) LTD,15195/15396,42,29.45,CLOTHING,08/10/2015,,Operations Fire Stations,Clothing
051015G,*NPS (SHOES) LTD,15195/15396,43,29.45,CLOTHING,08/10/2015,,Operations Fire Stations,Clothing
051015G,*NPS (SHOES) LTD,15195/15396,44,29.45,CLOTHING,08/10/2015,,Operations Fire Stations,Clothing
051015G,*NPS (SHOES) LTD,15195/15396,45,29.45,CLOTHING,08/10/2015,,Operations Fire Stations,Clothing
051015G,*NPS (SHOES) LTD,15195/15396,46,29.45,CLOTHING,08/10/2015,,Operations Fire Stations,Clothing
051015G,*NPS (SHOES) LTD,15195/15396,47,29.45,CLOTHING,08/10/2015,,Operations Fire Stations,Clothing
051015G,*NPS (SHOES) LTD,15195/15396,48,29.45,CLOTHING,08/10/2015,,Operations Fire Stations,Clothing
051015G,*NPS (SHOES) LTD,15195/15396,49,29.45,CLOTHING,08/10/2015,,Operations Fire Stations,Clothing
051015G,*NPS (SHOES) LTD,15195/15396,50,35,CLOTHING,08/10/2015,,Operations Fire Stations,Clothing
051015G,*NPS (SHOES) LTD,15195/15396,51,35,CLOTHING,08/10/2015,,Operations Fire Stations,Clothing
051015G,*NPS (SHOES) LTD,15195/15396,52,35,CLOTHING,08/10/2015,,Operations Fire Stations,Clothing
051015G,*NPS (SHOES) LTD,15195/15396,53,35,CLOTHING,08/10/2015,,Operations Fire Stations,Clothing
051015G,*NPS (SHOES) LTD,15195/15396,54,35,CLOTHING,08/10/2015,,Operations Fire Stations,Clothing
051015G,*NPS (SHOES) LTD,15195/15396,55,35,CLOTHING,08/10/2015,,Operations Fire Stations,Clothing
051015G,*NPS (SHOES) LTD,15195/15396,56,41.1,CLOTHING,08/10/2015,,Operations Fire Stations,Clothing
051015G,*NPS (SHOES) LTD,15195/15396,57,41.1,CLOTHING,08/10/2015,,Operational Policy,Clothing
051015G,*NPS (SHOES) LTD,15195/15396,58,41.1,CLOTHING,08/10/2015,,Operations Non Fire Stations,Clothing
051015G,*NPS (SHOES) LTD,15195/15396,59,41.1,CLOTHING,08/10/2015,,Strategy & Inclusion,Clothing
051015G,*NPS (SHOES) LTD,15195/15396,60,41.1,CLOTHING,08/10/2015,,Operations Fire Stations,Clothing
051015G,*NPS (SHOES) LTD,15195/15396,61,30.05,CLOTHING,08/10/2015,,Operations Fire Stations,Clothing
051015G,*NPS (SHOES) LTD,15195/15396,62,30.05,CLOTHING,08/10/2015,,Operations Fire Stations,Clothing
051015G,*NPS (SHOES) LTD,15195/15396,63,30.05,CLOTHING,08/10/2015,,Operations Non Fire Stations,Clothing
051015G,*NPS (SHOES) LTD,15195/15396,64,30.05,CLOTHING,08/10/2015,,Fire Safety Regulation,Clothing
051015G,*NPS (SHOES) LTD,15195/15396,65,60.1,CLOTHING,08/10/2015,,Fire Safety Regulation,Clothing
051015G,*NPS (SHOES) LTD,15195/15396,66,35,CLOTHING,08/10/2015,,Operations Fire Stations,Clothing
051015G,*NPS (SHOES) LTD,15195/15396,67,30.05,CLOTHING,08/10/2015,,Operations Fire Stations,Clothing
051015G,*NPS (SHOES) LTD,15195/15396,68,30.05,CLOTHING,08/10/2015,,Operations Fire Stations,Clothing
051015G,*NPS (SHOES) LTD,15195/15396,69,30.05,CLOTHING,08/10/2015,,Operations Fire Stations,Clothing
051015G,*NPS (SHOES) LTD,15195/15396,70,30.05,CLOTHING,08/10/2015,,Operations Fire Stations,Clothing
051015G,*NPS (SHOES) LTD,15195/15396,71,29.45,CLOTHING,08/10/2015,,Operations Fire Stations,Clothing
051015G,*NPS (SHOES) LTD,15195/15396,72,29.45,CLOTHING,08/10/2015,,Operations Fire Stations,Clothing
051015G,*NPS (SHOES) LTD,15195/15396,73,29.45,CLOTHING,08/10/2015,,Operations Fire Stations,Clothing
051015G,*NPS (SHOES) LTD,15195/15396,74,29.45,CLOTHING,08/10/2015,,Fire Safety Regulation,Clothing
051015G,*NPS (SHOES) LTD,15195/15396,75,29.45,CLOTHING,08/10/2015,,Operations Fire Stations,Clothing
051015G,*NPS (SHOES) LTD,15195/15396,76,29.45,CLOTHING,08/10/2015,,Operations Fire Stations,Clothing
051015G,*NPS (SHOES) LTD,15195/15396,77,29.45,CLOTHING,08/10/2015,,Operations Fire Stations,Clothing
051015G,*NPS (SHOES) LTD,15195/15396,78,29.45,CLOTHING,08/10/2015,,Operations Fire Stations,Clothing
051015G,*NPS (SHOES) LTD,15195/15396,79,29.45,CLOTHING,08/10/2015,,Operations Fire Stations,Clothing
051015G,*NPS (SHOES) LTD,15195/15396,80,29.45,CLOTHING,08/10/2015,,Operations Fire Stations,Clothing
051015G,*NPS (SHOES) LTD,15195/15396,81,29.45,CLOTHING,08/10/2015,,Technical And Service Support,Clothing
051015G,*NPS (SHOES) LTD,15195/15396,82,29.45,CLOTHING,08/10/2015,,Operations Fire Stations,Clothing
051015G,*NPS (SHOES) LTD,15195/15396,83,58.9,CLOTHING,08/10/2015,,Fire Safety Regulation,Clothing
051015G,*NPS (SHOES) LTD,15195/15396,84,35,CLOTHING,08/10/2015,,Operations Fire Stations,Clothing
051015G,*NPS (SHOES) LTD,15195/15396,85,35,CLOTHING,08/10/2015,,Operations Fire Stations,Clothing
051015G,*NPS (SHOES) LTD,15195/15396,86,30.05,CLOTHING,08/10/2015,,Operations Fire Stations,Clothing
051015G,*NPS (SHOES) LTD,15195/15396,87,30.05,CLOTHING,08/10/2015,,Operations Fire Stations,Clothing
051015G,*NPS (SHOES) LTD,15195/15396,88,30.05,CLOTHING,08/10/2015,,Operations Fire Stations,Clothing
051015G,*NPS (SHOES) LTD,15195/15396,89,30.05,CLOTHING,08/10/2015,,Operations Fire Stations,Clothing
051015G,*NPS (SHOES) LTD,15195/15396,90,35,CLOTHING,08/10/2015,,Operations Fire Stations,Clothing
051015G,*NPS (SHOES) LTD,15195/15396,91,35,CLOTHING,08/10/2015,,Operations Fire Stations,Clothing
051015G,*NPS (SHOES) LTD,15195/15396,92,30.05,CLOTHING,08/10/2015,,Operations Fire Stations,Clothing
051015G,*NPS (SHOES) LTD,15195/15396,93,30.05,CLOTHING,08/10/2015,,Operations Fire Stations,Clothing
051015G,*NPS (SHOES) LTD,15195/15396,94,30.05,CLOTHING,08/10/2015,,Operations Fire Stations,Clothing
051015G,*NPS (SHOES) LTD,15195/15396,95,29.45,CLOTHING,08/10/2015,,Operations Fire Stations,Clothing
051015G,*NPS (SHOES) LTD,15195/15396,96,29.45,CLOTHING,08/10/2015,,Operations Fire Stations,Clothing
051015G,*NPS (SHOES) LTD,15195/15396,97,29.45,CLOTHING,08/10/2015,,Operations Fire Stations,Clothing
051015G,*NPS (SHOES) LTD,15195/15396,98,29.45,CLOTHING,08/10/2015,,Operations Fire Stations,Clothing
051015G,*NPS (SHOES) LTD,15195/15396,99,29.45,CLOTHING,08/10/2015,,Operations Fire Stations,Clothing
051015G,*NPS (SHOES) LTD,15195/15396,100,29.45,CLOTHING,08/10/2015,,Operations Fire Stations,Clothing
051015G,*NPS (SHOES) LTD,15195/15396,101,29.45,CLOTHING,08/10/2015,,Operations Fire Stations,Clothing
051015G,*NPS (SHOES) LTD,15195/15396,102,29.45,CLOTHING,08/10/2015,,Operations Fire Stations,Clothing
051015G,*NPS (SHOES) LTD,15195/15396,103,29.45,CLOTHING,08/10/2015,,Operations Fire Stations,Clothing
051015G,*NPS (SHOES) LTD,15195/15396,104,29.45,CLOTHING,08/10/2015,,Operations Fire Stations,Clothing
051015G,*NPS (SHOES) LTD,15195/15396,105,29.45,CLOTHING,08/10/2015,,Operations Fire Stations,Clothing
051015G,*NPS (SHOES) LTD,15195/15396,106,29.45,CLOTHING,08/10/2015,,Operations Fire Stations,Clothing
051015G,*NPS (SHOES) LTD,15195/15396,107,35,CLOTHING,08/10/2015,,Operations Fire Stations,Clothing
051015G,*NPS (SHOES) LTD,15195/15396,108,35,CLOTHING,08/10/2015,,Operations Fire Stations,Clothing
051015G,*NPS (SHOES) LTD,15195/15396,109,41.1,CLOTHING,08/10/2015,,Operations Fire Stations,Clothing
011015H,REDFERN TRAVEL LTD,1541471,1,351.54,PUBLIC TRANSPORT,08/10/2015,351.54,National Operational Guidance Project,Human Resources
800066392,REDFERN TRAVEL LTD,1546290,1,264.35,PUBLIC TRANSPORT,08/10/2015,264.35,National Operational Guidance Project,Human Resources
800066395,REDFERN TRAVEL LTD,1550115,1,336.88,PUBLIC TRANSPORT,08/10/2015,336.88,National Operational Guidance Project,Human Resources
800066396,REDFERN TRAVEL LTD,1558315,1,"1,372.35",PUBLIC TRANSPORT,08/10/2015,"1,372.35",National Operational Guidance Project,Human Resources
021015H,DISCLOSURE SCOTLAND===========,1585359,1,"1,500.00",CRB CHECKS,08/10/2015,"1,500.00",HR Management,Human Resources
051015M,IRON MOUNTAIN (UK) LTD========,16198360,1,"2,113.39",MAINTENANCE & SUPPORT,08/10/2015,"2,113.39",Information and Communication Technology,ICT
021015H,HARRIS INSTALLATION SERVICES,18541,1,305.15,REMOVALS,08/10/2015,305.15,Technical And Service Support,Facilities & Management S
170915M,PAVILION PUBLISHING LTD,191200,1,990,PROFESSIONAL DEVELOPMENT,08/10/2015,990,National Operational Guidance Project,Education
141210,MISS BO-EUN JUNG==============,223985E,1,910,PROFESSIONAL FEES ENFORCEMENT,08/10/2015,910,Legal & Democratic Services,Legal Services
141210,MISS AILSA WILLIAMSON=========,231816,1,"3,150.00",PROFESSIONAL FEES ENFORCEMENT,08/10/2015,"3,150.00",Legal & Democratic Services,Legal Services
141210,MISS BO-EUN JUNG==============,233362B,1,420,PROFESSIONAL FEES ENFORCEMENT,08/10/2015,420,Legal & Democratic Services,Legal Services
011015H,INSIGHT DIRECT (UK) LTD=======,2542170,1,"3,686.00",STATIONERY CONSUMABLES,08/10/2015,"3,686.00",Information and Communication Technology,ICT
800066275,ADECCO UK LIMITED=============,27117900,1,973.14,FRS STAFF AGENCY,08/10/2015,973.14,Review of Property Services,Human Resources
800065647,ADECCO UK LIMITED=============,27155292,1,"1,270.34",FRS STAFF AGENCY,08/10/2015,"1,270.34",Communications,Human Resources
800065691,ADECCO UK LIMITED=============,27155297,1,614.39,FRS STAFF AGENCY,08/10/2015,614.39,Technical And Service Support,Human Resources
800065648,ADECCO UK LIMITED=============,27162059,1,635.17,FRS STAFF AGENCY,08/10/2015,635.17,Communications,Human Resources
800065692,ADECCO UK LIMITED=============,27168550,1,495.18,FRS STAFF AGENCY,08/10/2015,495.18,Technical And Service Support,Human Resources
800065693,ADECCO UK LIMITED=============,27175063,1,623.56,FRS STAFF AGENCY,08/10/2015,623.56,Technical And Service Support,Human Resources
800065694,ADECCO UK LIMITED=============,27181433,1,623.56,FRS STAFF AGENCY,08/10/2015,623.56,Technical And Service Support,Human Resources
800066107,ADECCO UK LIMITED=============,27187689,1,973.14,FRS STAFF AGENCY,08/10/2015,973.14,Review of Property Services,Human Resources
800065695,ADECCO UK LIMITED=============,27187710,1,641.9,FRS STAFF AGENCY,08/10/2015,641.9,Technical And Service Support,Human Resources
800066108,ADECCO UK LIMITED=============,27193976,1,973.14,FRS STAFF AGENCY,08/10/2015,973.14,Review of Property Services,Human Resources
800065696,ADECCO UK LIMITED=============,27193993,1,632.73,FRS STAFF AGENCY,08/10/2015,632.73,Technical And Service Support,Human Resources
800066364,ADECCO UK LIMITED=============,27207019,1,768.25,FRS STAFF AGENCY,08/10/2015,768.25,Procurement,Human Resources
800066385,ADECCO UK LIMITED=============,27207023,1,973.14,FRS STAFF AGENCY,08/10/2015,973.14,Review of Property Services,Human Resources
800066378,ADECCO UK LIMITED=============,27207025,1,"1,471.35",FRS STAFF AGENCY,08/10/2015,"1,471.35",Legal & Democratic Services,Human Resources
800066268,ADECCO UK LIMITED=============,27207052,1,439.6,FRS STAFF AGENCY,08/10/2015,439.6,Operations Non Fire Stations,Human Resources
800066365,ADECCO UK LIMITED=============,27213743,1,768.25,FRS STAFF AGENCY,08/10/2015,768.25,Procurement,Human Resources
800066379,ADECCO UK LIMITED=============,27213744,1,980.9,FRS STAFF AGENCY,08/10/2015,980.9,Legal & Democratic Services,Human Resources
800066269,ADECCO UK LIMITED=============,27213768,1,395.64,FRS STAFF AGENCY,08/10/2015,395.64,Operations Non Fire Stations,Human Resources
800066386,ADECCO UK LIMITED=============,27213774,1,973.14,FRS STAFF AGENCY,08/10/2015,973.14,Review of Property Services,Human Resources
800066380,ADECCO UK LIMITED=============,27220215,1,"1,471.35",FRS STAFF AGENCY,08/10/2015,"1,471.35",Legal & Democratic Services,Human Resources
800066270,ADECCO UK LIMITED=============,27220242,1,307.72,FRS STAFF AGENCY,08/10/2015,307.72,Operations Non Fire Stations,Human Resources
800066387,ADECCO UK LIMITED=============,27220247,1,973.14,FRS STAFF AGENCY,08/10/2015,973.14,Review of Property Services,Human Resources
800066366,ADECCO UK LIMITED=============,27220259,1,389.34,FRS STAFF AGENCY,08/10/2015,389.34,Procurement,Human Resources
800066271,ADECCO UK LIMITED=============,27226563,1,439.6,FRS STAFF AGENCY,08/10/2015,439.6,Operations Non Fire Stations,Human Resources
800066388,ADECCO UK LIMITED=============,27226568,1,"1,112.16",FRS STAFF AGENCY,08/10/2015,"1,112.16",Review of Property Services,Human Resources
800066381,ADECCO UK LIMITED=============,27226576,1,980.9,FRS STAFF AGENCY,08/10/2015,980.9,Legal & Democratic Services,Human Resources
800066272,ADECCO UK LIMITED=============,27233171,1,439.6,FRS STAFF AGENCY,08/10/2015,439.6,Operations Non Fire Stations,Human Resources
800066389,ADECCO UK LIMITED=============,27233176,1,"1,390.20",FRS STAFF AGENCY,08/10/2015,"1,390.20",Review of Property Services,Human Resources
800066382,ADECCO UK LIMITED=============,27233185,1,"1,471.35",FRS STAFF AGENCY,08/10/2015,"1,471.35",Legal & Democratic Services,Human Resources
800066273,ADECCO UK LIMITED=============,27239168,1,351.68,FRS STAFF AGENCY,08/10/2015,351.68,Operations Non Fire Stations,Human Resources
800066390,ADECCO UK LIMITED=============,27239173,1,"1,390.20",FRS STAFF AGENCY,08/10/2015,"1,390.20",Review of Property Services,Human Resources
800066377,ADECCO UK LIMITED=============,27245372,1,605.22,FRS STAFF AGENCY,08/10/2015,605.22,Technical And Service Support,Human Resources
800066274,ADECCO UK LIMITED=============,27245378,1,439.6,FRS STAFF AGENCY,08/10/2015,439.6,Operations Non Fire Stations,Human Resources
800065969,ADECCO UK LIMITED=============,27257903,1,351.68,FRS STAFF AGENCY,08/10/2015,351.68,Operations Non Fire Stations,Human Resources
800066009,ADECCO UK LIMITED=============,27263838,1,439.6,FRS STAFF AGENCY,08/10/2015,439.6,Operations Non Fire Stations,Human Resources
800066016,ADECCO UK LIMITED=============,27263846,1,603.82,FRS STAFF AGENCY,08/10/2015,603.82,Technical And Service Support,Human Resources
800066031,ADECCO UK LIMITED=============,27263862,1,900.2,FRS STAFF AGENCY,08/10/2015,900.2,National Operational Guidance Project,Human Resources
800066323,ADECCO UK LIMITED=============,27269777,1,499.52,FRS STAFF AGENCY,08/10/2015,499.52,Fire Safety Regulation,Human Resources
800066324,ADECCO UK LIMITED=============,27269778,1,439.6,FRS STAFF AGENCY,08/10/2015,439.6,HR Management,Human Resources
800066326,ADECCO UK LIMITED=============,27269780,1,942.2,FRS STAFF AGENCY,08/10/2015,942.2,Technical And Service Support,Human Resources
800066330,ADECCO UK LIMITED=============,27269784,1,829.08,FRS STAFF AGENCY,08/10/2015,829.08,National Operational Guidance Project,Human Resources
800066331,ADECCO UK LIMITED=============,27269785,1,"1,105.44",FRS STAFF AGENCY,08/10/2015,"1,105.44",National Operational Guidance Project,Human Resources
800066332,ADECCO UK LIMITED=============,27269786,1,829.08,FRS STAFF AGENCY,08/10/2015,829.08,National Operational Guidance Project,Human Resources
800066318,ADECCO UK LIMITED=============,27269788,1,276.36,FRS STAFF AGENCY,08/10/2015,276.36,National Operational Guidance Project,Human Resources
800066319,ADECCO UK LIMITED=============,27269789,1,"1,381.80",FRS STAFF AGENCY,08/10/2015,"1,381.80",National Operational Guidance Project,Human Resources
800066320,ADECCO UK LIMITED=============,27269790,1,552.72,FRS STAFF AGENCY,08/10/2015,552.72,National Operational Guidance Project,Human Resources
800066321,ADECCO UK LIMITED=============,27269791,1,439.6,FRS STAFF AGENCY,08/10/2015,439.6,Operations Non Fire Stations,Human Resources
800066339,ADECCO UK LIMITED=============,27269795,1,605.64,FRS STAFF AGENCY,08/10/2015,605.64,Communications,Human Resources
800066340,ADECCO UK LIMITED=============,27269796,1,332.84,FRS STAFF AGENCY,08/10/2015,332.84,Operations Non Fire Stations,Human Resources
800066342,ADECCO UK LIMITED=============,27269798,1,"1,471.35",FRS STAFF AGENCY,08/10/2015,"1,471.35",Legal & Democratic Services,Human Resources
800066344,ADECCO UK LIMITED=============,27269800,1,641.9,FRS STAFF AGENCY,08/10/2015,641.9,Technical And Service Support,Human Resources
800066345,ADECCO UK LIMITED=============,27269801,1,499.52,FRS STAFF AGENCY,08/10/2015,499.52,Operations Non Fire Stations,Human Resources
800066351,ADECCO UK LIMITED=============,27269812,1,624.4,FRS STAFF AGENCY,08/10/2015,624.4,HR Management,Human Resources
800066352,ADECCO UK LIMITED=============,27269813,1,"1,835.15",FRS STAFF AGENCY,08/10/2015,"1,835.15",Vehicle & Equipment Programme,Human Resources
800066353,ADECCO UK LIMITED=============,27269814,1,499.52,FRS STAFF AGENCY,08/10/2015,499.52,Procurement,Human Resources
021015H,B NOKES CONTRACTS LTD,2897,1,"1,547.50",TACTICAL DAY TO DAY,08/10/2015,"1,547.50",Technical And Service Support,"Works - Construction, R&M"
021015H,B NOKES CONTRACTS LTD,2898,1,800,TACTICAL DAY TO DAY,08/10/2015,800,Technical And Service Support,"Works - Construction, R&M"
051015M,B NOKES CONTRACTS LTD,2902,1,"8,175.50",STRATEGIC (NON CYCLICAL),08/10/2015,"8,175.50",Technical and Service Support,"Works - Construction, R&M"
051015M,B NOKES CONTRACTS LTD,2903,1,"6,756.00",STRATEGIC (NON CYCLICAL),08/10/2015,"6,756.00",Technical and Service Support,"Works - Construction, R&M"
021015H,B NOKES CONTRACTS LTD,2904,1,560,TACTICAL DAY TO DAY,08/10/2015,560,Technical And Service Support,"Works - Construction, R&M"
021015H,B NOKES CONTRACTS LTD,2908,1,"1,255.00",TACTICAL DAY TO DAY,08/10/2015,"1,255.00",Technical And Service Support,"Works - Construction, R&M"
051015M,B NOKES CONTRACTS LTD,2909,1,"2,999.50",STRATEGIC (NON CYCLICAL),08/10/2015,"2,999.50",Technical and Service Support,"Works - Construction, R&M"
051015M,B NOKES CONTRACTS LTD,2910,1,"1,392.50",STRATEGIC (NON CYCLICAL),08/10/2015,"1,392.50",Technical and Service Support,"Works - Construction, R&M"
011015H,DRAEGER SAFETY UK LIMITED=====,2910029672,1,717.5,PROTECTIVE EQUIPT - PARTS,08/10/2015,"1,346.40",Technical and Service Support,Fire & Rescue
011015H,DRAEGER SAFETY UK LIMITED=====,2910029672,2,567.4,PROTECTIVE EQUIPT - PARTS,08/10/2015,,Technical and Service Support,Fire & Rescue
011015H,DRAEGER SAFETY UK LIMITED=====,2910029672,3,61.5,PROTECTIVE EQUIPT - PARTS,08/10/2015,,Technical and Service Support,Fire & Rescue
051015M,B NOKES CONTRACTS LTD,2911,1,"1,282.50",STRATEGIC (NON CYCLICAL),08/10/2015,"1,282.50",Technical and Service Support,"Works - Construction, R&M"
051015M,B NOKES CONTRACTS LTD,2912,1,"3,030.00",STRATEGIC (NON CYCLICAL),08/10/2015,"9,090.00",Technical and Service Support,"Works - Construction, R&M"
051015M,B NOKES CONTRACTS LTD,2912,2,"3,030.00",STRATEGIC (NON CYCLICAL),08/10/2015,,Technical and Service Support,"Works - Construction, R&M"
051015M,B NOKES CONTRACTS LTD,2912,3,"3,030.00",STRATEGIC (NON CYCLICAL),08/10/2015,,Technical And Service Support,"Works - Construction, R&M"
141211,THAMES WATER UTILITIES LTD====,2935151458I,1,376.62,WATER & SEWERAGE RATES,08/10/2015,376.62,Technical And Service Support,Utilities
051015M,DEALERSHIP SERVICES LTD,3434,1,138,CLOTHING,08/10/2015,716.85,Cadets,Clothing
051015M,DEALERSHIP SERVICES LTD,3434,2,138,CLOTHING,08/10/2015,,Cadets,Clothing
051015M,DEALERSHIP SERVICES LTD,3434,3,138,CLOTHING,08/10/2015,,Cadets,Clothing
051015M,DEALERSHIP SERVICES LTD,3434,4,69,CLOTHING,08/10/2015,,Cadets,Clothing
051015M,DEALERSHIP SERVICES LTD,3434,5,138,CLOTHING,08/10/2015,,Cadets,Clothing
051015M,DEALERSHIP SERVICES LTD,3434,6,69,CLOTHING,08/10/2015,,Cadets,Clothing
051015M,DEALERSHIP SERVICES LTD,3434,7,26.85,CLOTHING,08/10/2015,,Cadets,Clothing
280915G,LIFTING GEAR AND SAFETY LTD,35845,1,362.8,OPERATIONAL EQUIP-PURCHASE,08/10/2015,362.8,Exercise Unified Response,Facilities & Management S
280915G,DEALERSHIP SERVICES LTD,3770,1,69,CLOTHING,08/10/2015,276,Cadets,Clothing
280915G,DEALERSHIP SERVICES LTD,3770,2,69,CLOTHING,08/10/2015,,Cadets,Clothing
280915G,DEALERSHIP SERVICES LTD,3770,3,138,CLOTHING,08/10/2015,,Cadets,Clothing
290915H,DEALERSHIP SERVICES LTD,3771,1,69,CLOTHING,08/10/2015,276,Cadets,Clothing
290915H,DEALERSHIP SERVICES LTD,3771,2,207,CLOTHING,08/10/2015,,Cadets,Clothing
051015M,PCS CONSULTING SERVICES LTD===,3865,1,"3,280.72",PROF FEES-MISCELLANEOUS,08/10/2015,"3,280.72",Technical and Service Support,"Works - Construction, R&M"
051015M,CARPETS & FLOOR COVERS DIRECT=,4082,1,"2,734.56",STRATEGIC (NON CYCLICAL),08/10/2015,"2,734.56",Technical and Service Support,Building Constr Materials
051015M,SAFEGUARD PEST CON. & ENV.LTD,42721,1,785,STRATEGIC (NON CYCLICAL),08/10/2015,785,Technical and Service Support,Environmental Services
021015H,FOCUS & VISION TECHNOLOGY LTD,48151,1,250.44,MEDICAL EXPENSES CONTRACT,08/10/2015,250.44,HR Management,Healthcare
021015H,FOCUS & VISION TECHNOLOGY LTD,48196,1,337.56,MEDICAL EXPENSES CONTRACT,08/10/2015,337.56,HR Management,Healthcare
021015H,FOCUS & VISION TECHNOLOGY LTD,48227,1,335.74,MEDICAL EXPENSES CONTRACT,08/10/2015,335.74,HR Management,Healthcare
141211,THAMES WATER UTILITIES LTD====,5880333492I,1,524.21,WATER & SEWERAGE RATES,08/10/2015,524.21,Technical And Service Support,Utilities
141211,ESSEX & SUFFOLK WATER PLC=====,602518200017R,1,816.58,WATER & SEWERAGE RATES,08/10/2015,816.58,Technical And Service Support,Utilities
141211,ESSEX & SUFFOLK WATER PLC=====,602686100012R,1,677.1,WATER & SEWERAGE RATES,08/10/2015,677.1,Technical And Service Support,Utilities
011015H,AECOM INFRASTRUCTURE &,6289576,1,"5,737.30",PROF FEES-MISCELLANEOUS,08/10/2015,"5,737.30",Technical and Service Support,Consultancy
051015M,AECOM INFRASTRUCTURE &,6290657,1,"9,658.17",PROF FEES-MISCELLANEOUS,08/10/2015,"9,658.17",Technical and Service Support,Consultancy
051015M,AECOM INFRASTRUCTURE &,6291038,1,"3,372.60",PROF FEES-MISCELLANEOUS,08/10/2015,"4,551.98",Technical and Service Support,Consultancy
051015M,AECOM INFRASTRUCTURE &,6291038,2,"1,179.38",PROF FEES-MISCELLANEOUS,08/10/2015,,Technical and Service Support,Consultancy
141211,THAMES WATER UTILITIES LTD====,6593815579I,1,400.56,WATER & SEWERAGE RATES,08/10/2015,400.56,Technical And Service Support,Utilities
141211,THAMES WATER UTILITIES LTD====,6599032529I,1,"1,204.67",WATER & SEWERAGE RATES,08/10/2015,"1,204.67",Technical And Service Support,Utilities
011015H,CANON (UK) LTD===============,770540265,1,390.86,OFFICE EQUIPMENT,08/10/2015,390.86,Information Management,ICT
011015H,CANON (UK) LTD===============,770543031,1,349.08,OFFICE EQUIPMENT,08/10/2015,349.08,Information Management,ICT
021015H,*SP SERVICES,786553,1,20.72,HYGIENE,08/10/2015,260.59,Operations Fire Stations,Healthcare
021015H,*SP SERVICES,786553,2,20.72,HYGIENE,08/10/2015,,Operations Fire Stations,Healthcare
021015H,*SP SERVICES,786553,3,5.18,HYGIENE,08/10/2015,,Operations Fire Stations,Healthcare
021015H,*SP SERVICES,786553,4,20.72,HYGIENE,08/10/2015,,Operations Fire Stations,Healthcare
021015H,*SP SERVICES,786553,5,7,HYGIENE,08/10/2015,,Operations Fire Stations,Healthcare
021015H,*SP SERVICES,786553,6,9.3,HYGIENE,08/10/2015,,Operations Fire Stations,Healthcare
021015H,*SP SERVICES,786553,7,13.2,HYGIENE,08/10/2015,,Operations Fire Stations,Healthcare
021015H,*SP SERVICES,786553,8,40.2,HYGIENE,08/10/2015,,Operations Fire Stations,Healthcare
021015H,*SP SERVICES,786553,9,10.5,HYGIENE,08/10/2015,,Operations Fire Stations,Healthcare
021015H,*SP SERVICES,786553,10,24.75,HYGIENE,08/10/2015,,Operations Fire Stations,Healthcare
021015H,*SP SERVICES,786553,11,84.8,HYGIENE,08/10/2015,,Operations Fire Stations,Healthcare
021015H,*SP SERVICES,786553,12,3.5,HYGIENE,08/10/2015,,Operations Fire Stations,Healthcare
051015M,BLUE KELD SPRINGS LTD=========,8005544,1,"1,386.00",UNIFORMS - POMS,08/10/2015,"1,386.00",Procurement,Catering
021015H,TWO SERVICES LTD==============,84278,1,700.5,CATERING EQUIPMENT,08/10/2015,700.5,Operations Fire Stations,Catering
021015H,TWO SERVICES LTD==============,84279,1,700.5,CATERING EQUIPMENT,08/10/2015,700.5,Operations Fire Stations,Catering
021015H,TWO SERVICES LTD==============,84280,1,700.5,CATERING EQUIPMENT,08/10/2015,700.5,Operations Fire Stations,Catering
021015H,TWO SERVICES LTD==============,84281,1,735.5,CATERING EQUIPMENT,08/10/2015,735.5,Operations Fire Stations,Catering
051015M,TWO SERVICES LTD==============,84353,1,700.5,CATERING EQUIPMENT,08/10/2015,700.5,Operations Fire Stations,Catering
141211,THAMES WATER UTILITIES LTD====,9540030278I,1,564.56,WATER & SEWERAGE RATES,08/10/2015,564.56,Technical And Service Support,Utilities
021015H,STONE COMPUTERS LIMITED,954521,1,"3,124.80",STATIONERY CONSUMABLES,08/10/2015,"3,124.80",Information and Communication Technology,ICT
141211,THAMES WATER UTILITIES LTD====,9695214057I,1,492.12,WATER & SEWERAGE RATES,08/10/2015,492.12,Technical And Service Support,Utilities
141211,THAMES WATER UTILITIES LTD====,9860242378I,1,844.41,WATER & SEWERAGE RATES,08/10/2015,844.41,Technical And Service Support,Utilities
280915G,*GRAFTON MERCHANTING GB LTD,CRO/358161,1,"1,495.00",OPERATIONAL EQUIP-PURCHASE,08/10/2015,"1,823.40",Exercise Unified Response,Building Constr Materials
280915G,*GRAFTON MERCHANTING GB LTD,CRO/358161,2,278.4,OPERATIONAL EQUIP-PURCHASE,08/10/2015,,Exercise Unified Response,Building Constr Materials
280915G,*GRAFTON MERCHANTING GB LTD,CRO/358161,3,50,OPERATIONAL EQUIP-PURCHASE,08/10/2015,,Exercise Unified Response,Building Constr Materials
141210,M & M MEDICAL REPORTS,CURTIS,1,750,DOCTORS/MEDICAL FEES,08/10/2015,750,Compensation Budgets,Medical Services
800066397,ALLSTAR BUSINESS SOLUTIONS LTD,E2005448928,1,816.1,FUEL,08/10/2015,"16,422.10",Operations Non Fire Stations,Vehicle Management
800066397,ALLSTAR BUSINESS SOLUTIONS LTD,E2005448928,2,575.76,FUEL,08/10/2015,,Operations Fire Stations,Vehicle Management
800066397,ALLSTAR BUSINESS SOLUTIONS LTD,E2005448928,3,501.56,FUEL,08/10/2015,,Procurement,Vehicle Management
800066397,ALLSTAR BUSINESS SOLUTIONS LTD,E2005448928,4,461.54,FUEL,08/10/2015,,Operations Fire Stations,Vehicle Management
800066397,ALLSTAR BUSINESS SOLUTIONS LTD,E2005448928,5,385.56,FUEL,08/10/2015,,Operations Fire Stations,Vehicle Management
800066397,ALLSTAR BUSINESS SOLUTIONS LTD,E2005448928,6,382.14,FUEL,08/10/2015,,Operations Fire Stations,Vehicle Management
800066397,ALLSTAR BUSINESS SOLUTIONS LTD,E2005448928,7,380.92,FUEL,08/10/2015,,Operations Fire Stations,Vehicle Management
800066397,ALLSTAR BUSINESS SOLUTIONS LTD,E2005448928,8,312.44,FUEL,08/10/2015,,Operations Fire Stations,Vehicle Management
800066397,ALLSTAR BUSINESS SOLUTIONS LTD,E2005448928,9,311.94,FUEL,08/10/2015,,Fire Safety Regulation,Vehicle Management
800066397,ALLSTAR BUSINESS SOLUTIONS LTD,E2005448928,10,306.03,FUEL,08/10/2015,,Operations Fire Stations,Vehicle Management
800066397,ALLSTAR BUSINESS SOLUTIONS LTD,E2005448928,11,303.99,FUEL,08/10/2015,,Operations Fire Stations,Vehicle Management
800066397,ALLSTAR BUSINESS SOLUTIONS LTD,E2005448928,12,303.43,FUEL,08/10/2015,,Operations Fire Stations,Vehicle Management
800066397,ALLSTAR BUSINESS SOLUTIONS LTD,E2005448928,13,298.41,FUEL,08/10/2015,,Operations Fire Stations,Vehicle Management
800066397,ALLSTAR BUSINESS SOLUTIONS LTD,E2005448928,14,297.82,FUEL,08/10/2015,,Operations Fire Stations,Vehicle Management
800066397,ALLSTAR BUSINESS SOLUTIONS LTD,E2005448928,15,280.27,FUEL,08/10/2015,,Operations Fire Stations,Vehicle Management
800066397,ALLSTAR BUSINESS SOLUTIONS LTD,E2005448928,16,268.54,FUEL,08/10/2015,,Operations Fire Stations,Vehicle Management
800066397,ALLSTAR BUSINESS SOLUTIONS LTD,E2005448928,17,248.67,FUEL,08/10/2015,,Operations Fire Stations,Vehicle Management
800066397,ALLSTAR BUSINESS SOLUTIONS LTD,E2005448928,18,246.97,FUEL,08/10/2015,,Operations Fire Stations,Vehicle Management
800066397,ALLSTAR BUSINESS SOLUTIONS LTD,E2005448928,19,246.23,FUEL,08/10/2015,,Operations Fire Stations,Vehicle Management
800066397,ALLSTAR BUSINESS SOLUTIONS LTD,E2005448928,20,244.52,FUEL,08/10/2015,,Operations Fire Stations,Vehicle Management
800066397,ALLSTAR BUSINESS SOLUTIONS LTD,E2005448928,21,236.6,FUEL,08/10/2015,,Operations Fire Stations,Vehicle Management
800066397,ALLSTAR BUSINESS SOLUTIONS LTD,E2005448928,22,235.54,FUEL,08/10/2015,,Operations Fire Stations,Vehicle Management
800066397,ALLSTAR BUSINESS SOLUTIONS LTD,E2005448928,23,232.69,FUEL,08/10/2015,,Operations Fire Stations,Vehicle Management
800066397,ALLSTAR BUSINESS SOLUTIONS LTD,E2005448928,24,223.28,FUEL,08/10/2015,,Operations Fire Stations,Vehicle Management
800066397,ALLSTAR BUSINESS SOLUTIONS LTD,E2005448928,25,217.09,FUEL,08/10/2015,,Command Units,Vehicle Management
800066397,ALLSTAR BUSINESS SOLUTIONS LTD,E2005448928,26,207.22,FUEL,08/10/2015,,Operations Fire Stations,Vehicle Management
800066397,ALLSTAR BUSINESS SOLUTIONS LTD,E2005448928,27,204.66,FUEL,08/10/2015,,Operations Fire Stations,Vehicle Management
800066397,ALLSTAR BUSINESS SOLUTIONS LTD,E2005448928,28,201.61,FUEL,08/10/2015,,Operations Fire Stations,Vehicle Management
800066397,ALLSTAR BUSINESS SOLUTIONS LTD,E2005448928,29,198.39,FUEL,08/10/2015,,Operations Fire Stations,Vehicle Management
800066397,ALLSTAR BUSINESS SOLUTIONS LTD,E2005448928,30,192.42,FUEL,08/10/2015,,Command Units,Vehicle Management
800066397,ALLSTAR BUSINESS SOLUTIONS LTD,E2005448928,31,191.36,FUEL,08/10/2015,,Operations Fire Stations,Vehicle Management
800066397,ALLSTAR BUSINESS SOLUTIONS LTD,E2005448928,32,190.28,FUEL,08/10/2015,,Operations Fire Stations,Vehicle Management
800066397,ALLSTAR BUSINESS SOLUTIONS LTD,E2005448928,33,189.85,FUEL,08/10/2015,,Operations Fire Stations,Vehicle Management
800066397,ALLSTAR BUSINESS SOLUTIONS LTD,E2005448928,34,189.26,FUEL,08/10/2015,,Operations Fire Stations,Vehicle Management
800066397,ALLSTAR BUSINESS SOLUTIONS LTD,E2005448928,35,186.72,FUEL,08/10/2015,,Operations Fire Stations,Vehicle Management
800066397,ALLSTAR BUSINESS SOLUTIONS LTD,E2005448928,36,173.23,FUEL,08/10/2015,,Operations Fire Stations,Vehicle Management
800066397,ALLSTAR BUSINESS SOLUTIONS LTD,E2005448928,37,173.01,FUEL,08/10/2015,,Operations Fire Stations,Vehicle Management
800066397,ALLSTAR BUSINESS SOLUTIONS LTD,E2005448928,38,169.03,FUEL,08/10/2015,,Operations Fire Stations,Vehicle Management
800066397,ALLSTAR BUSINESS SOLUTIONS LTD,E2005448928,39,165.73,FUEL,08/10/2015,,Operations Fire Stations,Vehicle Management
800066397,ALLSTAR BUSINESS SOLUTIONS LTD,E2005448928,40,157.37,FUEL,08/10/2015,,Operations Fire Stations,Vehicle Management
800066397,ALLSTAR BUSINESS SOLUTIONS LTD,E2005448928,41,155.43,FUEL,08/10/2015,,Operations Fire Stations,Vehicle Management
800066397,ALLSTAR BUSINESS SOLUTIONS LTD,E2005448928,42,154.6,FUEL,08/10/2015,,Operations Fire Stations,Vehicle Management
800066397,ALLSTAR BUSINESS SOLUTIONS LTD,E2005448928,43,154.11,FUEL,08/10/2015,,Operations Fire Stations,Vehicle Management
800066397,ALLSTAR BUSINESS SOLUTIONS LTD,E2005448928,44,153.96,FUEL,08/10/2015,,Operations Fire Stations,Vehicle Management
800066397,ALLSTAR BUSINESS SOLUTIONS LTD,E2005448928,45,151.64,FUEL,08/10/2015,,Operations Fire Stations,Vehicle Management
800066397,ALLSTAR BUSINESS SOLUTIONS LTD,E2005448928,46,146.73,FUEL,08/10/2015,,Operations Fire Stations,Vehicle Management
800066397,ALLSTAR BUSINESS SOLUTIONS LTD,E2005448928,47,141.06,FUEL,08/10/2015,,Operations Fire Stations,Vehicle Management
800066397,ALLSTAR BUSINESS SOLUTIONS LTD,E2005448928,48,139.97,FUEL,08/10/2015,,Information and Communication Technology,Vehicle Management
800066397,ALLSTAR BUSINESS SOLUTIONS LTD,E2005448928,49,135.86,FUEL,08/10/2015,,Operations Fire Stations,Vehicle Management
800066397,ALLSTAR BUSINESS SOLUTIONS LTD,E2005448928,50,132.36,FUEL,08/10/2015,,Operations Fire Stations,Vehicle Management
800066397,ALLSTAR BUSINESS SOLUTIONS LTD,E2005448928,51,129.33,FUEL,08/10/2015,,Operations Fire Stations,Vehicle Management
800066397,ALLSTAR BUSINESS SOLUTIONS LTD,E2005448928,52,124.35,FUEL,08/10/2015,,Operations Fire Stations,Vehicle Management
800066397,ALLSTAR BUSINESS SOLUTIONS LTD,E2005448928,53,123.43,FUEL,08/10/2015,,Operations Fire Stations,Vehicle Management
800066397,ALLSTAR BUSINESS SOLUTIONS LTD,E2005448928,54,118.19,FUEL,08/10/2015,,Operations Fire Stations,Vehicle Management
800066397,ALLSTAR BUSINESS SOLUTIONS LTD,E2005448928,55,117.81,FUEL,08/10/2015,,Command Units,Vehicle Management
800066397,ALLSTAR BUSINESS SOLUTIONS LTD,E2005448928,56,117.47,FUEL,08/10/2015,,Operations Fire Stations,Vehicle Management
800066397,ALLSTAR BUSINESS SOLUTIONS LTD,E2005448928,57,116.75,FUEL,08/10/2015,,Operations Fire Stations,Vehicle Management
800066397,ALLSTAR BUSINESS SOLUTIONS LTD,E2005448928,58,114.74,FUEL,08/10/2015,,Operations Fire Stations,Vehicle Management
800066397,ALLSTAR BUSINESS SOLUTIONS LTD,E2005448928,59,112.98,FUEL,08/10/2015,,Command Units,Vehicle Management
800066397,ALLSTAR BUSINESS SOLUTIONS LTD,E2005448928,60,111.73,FUEL,08/10/2015,,Operations Fire Stations,Vehicle Management
800066397,ALLSTAR BUSINESS SOLUTIONS LTD,E2005448928,61,110.07,FUEL,08/10/2015,,Operations Fire Stations,Vehicle Management
800066397,ALLSTAR BUSINESS SOLUTIONS LTD,E2005448928,62,109.83,FUEL,08/10/2015,,Operations Fire Stations,Vehicle Management
800066397,ALLSTAR BUSINESS SOLUTIONS LTD,E2005448928,63,108.5,FUEL,08/10/2015,,Operations Fire Stations,Vehicle Management
800066397,ALLSTAR BUSINESS SOLUTIONS LTD,E2005448928,64,103.16,FUEL,08/10/2015,,Command Units,Vehicle Management
800066397,ALLSTAR BUSINESS SOLUTIONS LTD,E2005448928,65,102.19,FUEL,08/10/2015,,Operations Fire Stations,Vehicle Management
800066397,ALLSTAR BUSINESS SOLUTIONS LTD,E2005448928,66,100.09,FUEL,08/10/2015,,Operations Fire Stations,Vehicle Management
800066397,ALLSTAR BUSINESS SOLUTIONS LTD,E2005448928,67,98.53,FUEL,08/10/2015,,Operations Fire Stations,Vehicle Management
800066397,ALLSTAR BUSINESS SOLUTIONS LTD,E2005448928,68,98.44,FUEL,08/10/2015,,Operations Fire Stations,Vehicle Management
800066397,ALLSTAR BUSINESS SOLUTIONS LTD,E2005448928,69,95.35,FUEL,08/10/2015,,Operations Fire Stations,Vehicle Management
800066397,ALLSTAR BUSINESS SOLUTIONS LTD,E2005448928,70,94.44,FUEL,08/10/2015,,Operations Fire Stations,Vehicle Management
800066397,ALLSTAR BUSINESS SOLUTIONS LTD,E2005448928,71,91.08,FUEL,08/10/2015,,Operations Fire Stations,Vehicle Management
800066397,ALLSTAR BUSINESS SOLUTIONS LTD,E2005448928,72,84.4,FUEL,08/10/2015,,Operations Fire Stations,Vehicle Management
800066397,ALLSTAR BUSINESS SOLUTIONS LTD,E2005448928,73,84.13,FUEL,08/10/2015,,Operations Fire Stations,Vehicle Management
800066397,ALLSTAR BUSINESS SOLUTIONS LTD,E2005448928,74,80.38,FUEL,08/10/2015,,Operations Fire Stations,Vehicle Management
800066397,ALLSTAR BUSINESS SOLUTIONS LTD,E2005448928,75,78.78,FUEL,08/10/2015,,LIFE - LFB Funded,Vehicle Management
800066397,ALLSTAR BUSINESS SOLUTIONS LTD,E2005448928,76,76.47,FUEL,08/10/2015,,Operations Fire Stations,Vehicle Management
800066397,ALLSTAR BUSINESS SOLUTIONS LTD,E2005448928,77,74.82,FUEL,08/10/2015,,Command Units,Vehicle Management
800066397,ALLSTAR BUSINESS SOLUTIONS LTD,E2005448928,78,73.01,FUEL,08/10/2015,,Operations Fire Stations,Vehicle Management
800066397,ALLSTAR BUSINESS SOLUTIONS LTD,E2005448928,79,71.92,FUEL,08/10/2015,,Technical And Service Support,Vehicle Management
800066397,ALLSTAR BUSINESS SOLUTIONS LTD,E2005448928,80,71.33,FUEL,08/10/2015,,Operations Fire Stations,Vehicle Management
800066397,ALLSTAR BUSINESS SOLUTIONS LTD,E2005448928,81,68.28,FUEL,08/10/2015,,Operations Fire Stations,Vehicle Management
800066397,ALLSTAR BUSINESS SOLUTIONS LTD,E2005448928,82,66.53,FUEL,08/10/2015,,Operations Fire Stations,Vehicle Management
800066397,ALLSTAR BUSINESS SOLUTIONS LTD,E2005448928,83,61.94,FUEL,08/10/2015,,Command Units,Vehicle Management
800066397,ALLSTAR BUSINESS SOLUTIONS LTD,E2005448928,84,59.5,FUEL,08/10/2015,,Operational Policy,Vehicle Management
800066397,ALLSTAR BUSINESS SOLUTIONS LTD,E2005448928,85,59.29,FUEL,08/10/2015,,Operations Fire Stations,Vehicle Management
800066397,ALLSTAR BUSINESS SOLUTIONS LTD,E2005448928,86,58.33,FUEL,08/10/2015,,Operational Resilience,Vehicle Management
800066397,ALLSTAR BUSINESS SOLUTIONS LTD,E2005448928,87,57.59,FUEL,08/10/2015,,Command Units,Vehicle Management
800066397,ALLSTAR BUSINESS SOLUTIONS LTD,E2005448928,88,53.77,FUEL,08/10/2015,,Operations Fire Stations,Vehicle Management
800066397,ALLSTAR BUSINESS SOLUTIONS LTD,E2005448928,89,49.86,FUEL,08/10/2015,,Operations Fire Stations,Vehicle Management
800066397,ALLSTAR BUSINESS SOLUTIONS LTD,E2005448928,90,48.92,FUEL,08/10/2015,,Operations Fire Stations,Vehicle Management
800066397,ALLSTAR BUSINESS SOLUTIONS LTD,E2005448928,91,48.64,FUEL,08/10/2015,,Operations Fire Stations,Vehicle Management
800066397,ALLSTAR BUSINESS SOLUTIONS LTD,E2005448928,92,48.59,FUEL,08/10/2015,,Operational Policy,Vehicle Management
800066397,ALLSTAR BUSINESS SOLUTIONS LTD,E2005448928,93,39.16,FUEL,08/10/2015,,Operations Fire Stations,Vehicle Management
800066397,ALLSTAR BUSINESS SOLUTIONS LTD,E2005448928,94,34.6,FUEL,08/10/2015,,Operations Fire Stations,Vehicle Management
800066397,ALLSTAR BUSINESS SOLUTIONS LTD,E2005448928,95,33.26,FUEL,08/10/2015,,Operations Fire Stations,Vehicle Management
800066397,ALLSTAR BUSINESS SOLUTIONS LTD,E2005448928,96,20.09,FUEL,08/10/2015,,Operations Fire Stations,Vehicle Management
800066397,ALLSTAR BUSINESS SOLUTIONS LTD,E2005448928,97,20,FUEL,08/10/2015,,Operations Non Fire Stations,Vehicle Management
800066397,ALLSTAR BUSINESS SOLUTIONS LTD,E2005448928,98,15.13,FUEL,08/10/2015,,CBRN RRT,Vehicle Management
800066397,ALLSTAR BUSINESS SOLUTIONS LTD,E2005448928,99,11.02,FUEL,08/10/2015,,Operations Fire Stations,Vehicle Management
021015H,FOOTPRINT UNIFORMS============,F5491,1,43.85,CLOTHING,08/10/2015,701.6,Cadets,Clothing
021015H,FOOTPRINT UNIFORMS============,F5491,2,263.1,CLOTHING,08/10/2015,,Cadets,Clothing
021015H,FOOTPRINT UNIFORMS============,F5491,3,350.8,CLOTHING,08/10/2015,,Cadets,Clothing
021015H,FOOTPRINT UNIFORMS============,F5491,4,43.85,CLOTHING,08/10/2015,,Cadets,Clothing
290915H,VODAFONE LIMITED==============,I015873,1,"1,030.00",ACQUISITIONS,08/10/2015,"1,030.00",Hazmat Project,ICT
021015H,CARDINUS RISK MANAGEMENT LTD,INV-60687-JJT6D1,1,500,MAINTENANCE & SUPPORT,08/10/2015,500,Information and Communication Technology,ICT
051015M,COFELY WORKPLACE LIMITED,M136196,1,"7,442.22",STRATEGIC (NON CYCLICAL),08/10/2015,"7,442.22",Technical and Service Support,"Works - Construction, R&M"
051015M,COFELY WORKPLACE LIMITED,M136197,1,"4,994.58",STRATEGIC (NON CYCLICAL),08/10/2015,"4,994.58",Technical and Service Support,"Works - Construction, R&M"
051015M,COFELY WORKPLACE LIMITED,M136202,1,"3,592.22",STRATEGIC (NON CYCLICAL),08/10/2015,"3,592.22",Technical and Service Support,"Works - Construction, R&M"
051015M,LOVELOCK & TAYLOUR LTD========,RWG/2539*,1,"9,500.00",DEVELOPMENT  EXPENSES-CONTRACT,08/10/2015,"9,500.00",Technical and Service Support,Building Constr Materials
051015M,LOVELOCK & TAYLOUR LTD========,RWG/2540*,1,"9,500.00",DEVELOPMENT  EXPENSES-CONTRACT,08/10/2015,"9,500.00",Technical and Service Support,Building Constr Materials
141211,VEOLIA WATER PROJECTS LTD=====,SI-15-0004737,1,"2,072.61",ELECTRICITY,08/10/2015,"2,072.61",Technical And Service Support,Utilities
051015M,EVENING STANDARD COMPANY LTD==,SIN029989,1,804,ADVERTISING,08/10/2015,804,Legal & Democratic Services,Facilities & Management S
021015H,GROUND CONTROL LIMITED,SIN060363,1,135.83,GROUNDS MAINTENANCE,08/10/2015,"1,047.21",Technical And Service Support,"Works - Construction, R&M"
021015H,GROUND CONTROL LIMITED,SIN060363,2,25.42,GROUNDS MAINTENANCE,08/10/2015,,Technical And Service Support,"Works - Construction, R&M"
021015H,GROUND CONTROL LIMITED,SIN060363,3,118.75,GROUNDS MAINTENANCE,08/10/2015,,Technical And Service Support,"Works - Construction, R&M"
021015H,GROUND CONTROL LIMITED,SIN060363,4,33.75,GROUNDS MAINTENANCE,08/10/2015,,Technical And Service Support,"Works - Construction, R&M"
021015H,GROUND CONTROL LIMITED,SIN060363,5,20,GROUNDS MAINTENANCE,08/10/2015,,Technical And Service Support,"Works - Construction, R&M"
021015H,GROUND CONTROL LIMITED,SIN060363,6,50.71,GROUNDS MAINTENANCE,08/10/2015,,Technical And Service Support,"Works - Construction, R&M"
021015H,GROUND CONTROL LIMITED,SIN060363,7,56.38,GROUNDS MAINTENANCE,08/10/2015,,Technical And Service Support,"Works - Construction, R&M"
021015H,GROUND CONTROL LIMITED,SIN060363,8,15.83,GROUNDS MAINTENANCE,08/10/2015,,Technical And Service Support,"Works - Construction, R&M"
021015H,GROUND CONTROL LIMITED,SIN060363,9,15.83,GROUNDS MAINTENANCE,08/10/2015,,Technical And Service Support,"Works - Construction, R&M"
021015H,GROUND CONTROL LIMITED,SIN060363,10,33.92,GROUNDS MAINTENANCE,08/10/2015,,Technical And Service Support,"Works - Construction, R&M"
021015H,GROUND CONTROL LIMITED,SIN060363,11,42.29,GROUNDS MAINTENANCE,08/10/2015,,Technical And Service Support,"Works - Construction, R&M"
021015H,GROUND CONTROL LIMITED,SIN060363,12,16.25,GROUNDS MAINTENANCE,08/10/2015,,Technical And Service Support,"Works - Construction, R&M"
021015H,GROUND CONTROL LIMITED,SIN060363,13,10.83,GROUNDS MAINTENANCE,08/10/2015,,Technical And Service Support,"Works - Construction, R&M"
021015H,GROUND CONTROL LIMITED,SIN060363,14,6.33,GROUNDS MAINTENANCE,08/10/2015,,Technical And Service Support,"Works - Construction, R&M"
021015H,GROUND CONTROL LIMITED,SIN060363,15,10.83,GROUNDS MAINTENANCE,08/10/2015,,Technical And Service Support,"Works - Construction, R&M"
021015H,GROUND CONTROL LIMITED,SIN060363,16,76.25,GROUNDS MAINTENANCE,08/10/2015,,Technical And Service Support,"Works - Construction, R&M"
021015H,GROUND CONTROL LIMITED,SIN060363,17,32.5,GROUNDS MAINTENANCE,08/10/2015,,Technical And Service Support,"Works - Construction, R&M"
021015H,GROUND CONTROL LIMITED,SIN060363,18,25.42,GROUNDS MAINTENANCE,08/10/2015,,Technical And Service Support,"Works - Construction, R&M"
021015H,GROUND CONTROL LIMITED,SIN060363,19,50.83,GROUNDS MAINTENANCE,08/10/2015,,Technical And Service Support,"Works - Construction, R&M"
021015H,GROUND CONTROL LIMITED,SIN060363,20,67.92,GROUNDS MAINTENANCE,08/10/2015,,Technical And Service Support,"Works - Construction, R&M"
021015H,GROUND CONTROL LIMITED,SIN060363,21,42.5,GROUNDS MAINTENANCE,08/10/2015,,Technical And Service Support,"Works - Construction, R&M"
021015H,GROUND CONTROL LIMITED,SIN060363,22,6.33,GROUNDS MAINTENANCE,08/10/2015,,Technical And Service Support,"Works - Construction, R&M"
021015H,GROUND CONTROL LIMITED,SIN060363,23,31.67,GROUNDS MAINTENANCE,08/10/2015,,Technical And Service Support,"Works - Construction, R&M"
021015H,GROUND CONTROL LIMITED,SIN060363,24,25.42,GROUNDS MAINTENANCE,08/10/2015,,Technical And Service Support,"Works - Construction, R&M"
021015H,GROUND CONTROL LIMITED,SIN060363,25,25.42,GROUNDS MAINTENANCE,08/10/2015,,Technical And Service Support,"Works - Construction, R&M"
021015H,GROUND CONTROL LIMITED,SIN060363,26,8.33,GROUNDS MAINTENANCE,08/10/2015,,Technical And Service Support,"Works - Construction, R&M"
021015H,GROUND CONTROL LIMITED,SIN060363,27,19.17,GROUNDS MAINTENANCE,08/10/2015,,Technical And Service Support,"Works - Construction, R&M"
021015H,GROUND CONTROL LIMITED,SIN060363,28,42.5,GROUNDS MAINTENANCE,08/10/2015,,Technical And Service Support,"Works - Construction, R&M"
290915H,GROUND CONTROL LIMITED,SIN061004,1,45,GROUNDS MAINTENANCE,08/10/2015,855,Technical And Service Support,"Works - Construction, R&M"
290915H,GROUND CONTROL LIMITED,SIN061004,2,45,GROUNDS MAINTENANCE,08/10/2015,,Technical And Service Support,"Works - Construction, R&M"
290915H,GROUND CONTROL LIMITED,SIN061004,3,45,GROUNDS MAINTENANCE,08/10/2015,,Technical And Service Support,"Works - Construction, R&M"
290915H,GROUND CONTROL LIMITED,SIN061004,4,45,GROUNDS MAINTENANCE,08/10/2015,,Technical And Service Support,"Works - Construction, R&M"
290915H,GROUND CONTROL LIMITED,SIN061004,5,45,GROUNDS MAINTENANCE,08/10/2015,,Technical And Service Support,"Works - Construction, R&M"
290915H,GROUND CONTROL LIMITED,SIN061004,6,45,GROUNDS MAINTENANCE,08/10/2015,,Technical And Service Support,"Works - Construction, R&M"
290915H,GROUND CONTROL LIMITED,SIN061004,7,45,GROUNDS MAINTENANCE,08/10/2015,,Technical And Service Support,"Works - Construction, R&M"
290915H,GROUND CONTROL LIMITED,SIN061004,8,45,GROUNDS MAINTENANCE,08/10/2015,,Technical And Service Support,"Works - Construction, R&M"
290915H,GROUND CONTROL LIMITED,SIN061004,9,45,GROUNDS MAINTENANCE,08/10/2015,,Technical And Service Support,"Works - Construction, R&M"
290915H,GROUND CONTROL LIMITED,SIN061004,10,45,GROUNDS MAINTENANCE,08/10/2015,,Technical And Service Support,"Works - Construction, R&M"
290915H,GROUND CONTROL LIMITED,SIN061004,11,45,GROUNDS MAINTENANCE,08/10/2015,,Technical And Service Support,"Works - Construction, R&M"
290915H,GROUND CONTROL LIMITED,SIN061004,12,45,GROUNDS MAINTENANCE,08/10/2015,,Technical And Service Support,"Works - Construction, R&M"
290915H,GROUND CONTROL LIMITED,SIN061004,13,45,GROUNDS MAINTENANCE,08/10/2015,,Technical And Service Support,"Works - Construction, R&M"
290915H,GROUND CONTROL LIMITED,SIN061004,14,45,GROUNDS MAINTENANCE,08/10/2015,,Technical And Service Support,"Works - Construction, R&M"
290915H,GROUND CONTROL LIMITED,SIN061004,15,45,GROUNDS MAINTENANCE,08/10/2015,,Technical And Service Support,"Works - Construction, R&M"
290915H,GROUND CONTROL LIMITED,SIN061004,16,45,GROUNDS MAINTENANCE,08/10/2015,,Technical And Service Support,"Works - Construction, R&M"
290915H,GROUND CONTROL LIMITED,SIN061004,17,45,GROUNDS MAINTENANCE,08/10/2015,,Technical And Service Support,"Works - Construction, R&M"
290915H,GROUND CONTROL LIMITED,SIN061004,18,45,GROUNDS MAINTENANCE,08/10/2015,,Technical And Service Support,"Works - Construction, R&M"
290915H,GROUND CONTROL LIMITED,SIN061004,19,45,GROUNDS MAINTENANCE,08/10/2015,,Technical And Service Support,"Works - Construction, R&M"
061015H,MOOLANDS LTD,2938,1,"4,289.00",STRATEGIC (NON CYCLICAL),12/10/2015,"4,289.00",Technical and Service Support,"Works - Construction, R&M"
061015H,MOOLANDS LTD,2988,1,900,STRATEGIC (NON CYCLICAL),12/10/2015,900,Technical and Service Support,"Works - Construction, R&M"
061015H,MOOLANDS LTD,2999,1,"1,900.00",STRATEGIC (NON CYCLICAL),12/10/2015,"1,900.00",Technical and Service Support,"Works - Construction, R&M"
061015H,MOOLANDS LTD,3035,1,"1,200.00",STRATEGIC (NON CYCLICAL),12/10/2015,"1,200.00",Technical and Service Support,"Works - Construction, R&M"
061015H,MOOLANDS LTD,3036,1,"1,200.00",STRATEGIC (NON CYCLICAL),12/10/2015,"1,200.00",Technical and Service Support,"Works - Construction, R&M"
071015M,MOOLANDS LTD,3037,1,"2,800.00",STRATEGIC (NON CYCLICAL),12/10/2015,"2,800.00",Technical and Service Support,"Works - Construction, R&M"
071015M,MOOLANDS LTD,3080,1,"2,870.00",STRATEGIC (NON CYCLICAL),12/10/2015,"2,870.00",Technical and Service Support,"Works - Construction, R&M"
071015M,RUTHIE SMITH,09/06/2015,1,325,CONSULTANTS,12/10/2015,325,HR Management,Human Resources
071015M,AFFINITY WATER,101061878,1,360,CURRENT HYDRANT COSTS,12/10/2015,360,Operational Resilience,Utilities
071015M,OPERATIONAL RESEARCH IN HEALTH,102A/LFBD4/8,1,"3,200.00",CONSULTANTS,12/10/2015,"3,200.00",Operations Non Fire Stations,Consultancy
250915G,MULTITONE ELECTRONICS PLC=====,103271,1,25,RADIO,12/10/2015,"4,620.75",Information and Communication Technology,ICT
250915G,MULTITONE ELECTRONICS PLC=====,103271,2,"2,673.00",RADIO,12/10/2015,,Information and Communication Technology,ICT
250915G,MULTITONE ELECTRONICS PLC=====,103271,3,786,RADIO,12/10/2015,,Information and Communication Technology,ICT
250915G,MULTITONE ELECTRONICS PLC=====,103271,4,469,RADIO,12/10/2015,,Information and Communication Technology,ICT
250915G,MULTITONE ELECTRONICS PLC=====,103271,5,590,RADIO,12/10/2015,,Information and Communication Technology,ICT
250915G,MULTITONE ELECTRONICS PLC=====,103271,6,32,RADIO,12/10/2015,,Information and Communication Technology,ICT
250915G,MULTITONE ELECTRONICS PLC=====,103271,7,45.75,RADIO,12/10/2015,,Information and Communication Technology,ICT
061015H,KJA- ARTISTS,1041,1,330,PRINTING,12/10/2015,330,Communications,Facilities & Management S
290915H,*SPRUE SAFETY PRODUCTS LTD====,1081040,1,"2,200.00",FIRE DETECTORS,12/10/2015,"2,200.00",Operations Non Fire Stations,Health & Safety
051015M,*SPRUE SAFETY PRODUCTS LTD====,1081196,1,"1,730.40",FIRE DETECTORS,12/10/2015,"1,730.40",Operations Non Fire Stations,Health & Safety
061015H,*SPRUE SAFETY PRODUCTS LTD====,1081197,1,741.6,FIRE DETECTORS,12/10/2015,741.6,Operations Non Fire Stations,Health & Safety
021015H,*SPRUE SAFETY PRODUCTS LTD====,1081198,1,988.8,FIRE DETECTORS,12/10/2015,988.8,Operations Non Fire Stations,Health & Safety
061015H,*SPRUE SAFETY PRODUCTS LTD====,1081199,1,"1,483.20",FIRE DETECTORS,12/10/2015,"1,483.20",Operations Non Fire Stations,Health & Safety
051015M,*SPRUE SAFETY PRODUCTS LTD====,1081201,1,"3,708.00",FIRE DETECTORS,12/10/2015,"3,708.00",Operations Non Fire Stations,Health & Safety
021015H,*SPRUE SAFETY PRODUCTS LTD====,1081202,1,741.6,FIRE DETECTORS,12/10/2015,741.6,Operations Non Fire Stations,Health & Safety
021015H,*SPRUE SAFETY PRODUCTS LTD====,1081203,1,494.4,FIRE DETECTORS,12/10/2015,494.4,Operations Non Fire Stations,Health & Safety
021015H,*SPRUE SAFETY PRODUCTS LTD====,1081204,1,494.4,FIRE DETECTORS,12/10/2015,494.4,Operations Non Fire Stations,Health & Safety
021015H,*SPRUE SAFETY PRODUCTS LTD====,1081205,1,370.8,FIRE DETECTORS,12/10/2015,370.8,Operations Non Fire Stations,Health & Safety
021015H,*SPRUE SAFETY PRODUCTS LTD====,1081206,1,618,FIRE DETECTORS,12/10/2015,618,Operations Non Fire Stations,Health & Safety
021015H,*SPRUE SAFETY PRODUCTS LTD====,1081207,1,988.8,FIRE DETECTORS,12/10/2015,988.8,Operations Non Fire Stations,Health & Safety
021015H,*SPRUE SAFETY PRODUCTS LTD====,1081208,1,988.8,FIRE DETECTORS,12/10/2015,988.8,Operations Non Fire Stations,Health & Safety
021015H,*SPRUE SAFETY PRODUCTS LTD====,1081210,1,988.8,FIRE DETECTORS,12/10/2015,988.8,Operations Non Fire Stations,Health & Safety
021015H,*SPRUE SAFETY PRODUCTS LTD====,1081211,1,"1,730.40",FIRE DETECTORS,12/10/2015,"1,730.40",Operations Non Fire Stations,Health & Safety
021015H,*SPRUE SAFETY PRODUCTS LTD====,1081212,1,"1,236.00",FIRE DETECTORS,12/10/2015,"1,236.00",Operations Non Fire Stations,Health & Safety
021015H,*SPRUE SAFETY PRODUCTS LTD====,1081213,1,741.6,FIRE DETECTORS,12/10/2015,741.6,Operations Non Fire Stations,Health & Safety
021015H,*SPRUE SAFETY PRODUCTS LTD====,1081215,1,"1,730.40",FIRE DETECTORS,12/10/2015,"1,730.40",Operations Non Fire Stations,Health & Safety
021015H,*SPRUE SAFETY PRODUCTS LTD====,1081216,1,"1,730.40",FIRE DETECTORS,12/10/2015,"1,730.40",Operations Non Fire Stations,Health & Safety
021015H,*SPRUE SAFETY PRODUCTS LTD====,1081217,1,618,FIRE DETECTORS,12/10/2015,618,Operations Non Fire Stations,Health & Safety
011015H,*SPRUE SAFETY PRODUCTS LTD====,1081218,1,494.4,FIRE DETECTORS,12/10/2015,494.4,Operations Non Fire Stations,Health & Safety
021015H,*SPRUE SAFETY PRODUCTS LTD====,1081219,1,"1,730.40",FIRE DETECTORS,12/10/2015,"1,730.40",Operations Non Fire Stations,Health & Safety
021015H,*SPRUE SAFETY PRODUCTS LTD====,1081220,1,"1,730.40",FIRE DETECTORS,12/10/2015,"1,730.40",Operations Non Fire Stations,Health & Safety
021015H,*SPRUE SAFETY PRODUCTS LTD====,1081221,1,"1,236.00",FIRE DETECTORS,12/10/2015,"1,236.00",Operations Non Fire Stations,Health & Safety
021015H,*SPRUE SAFETY PRODUCTS LTD====,1081223,1,988.8,FIRE DETECTORS,12/10/2015,988.8,Operations Non Fire Stations,Health & Safety
021015H,*SPRUE SAFETY PRODUCTS LTD====,1081224,1,618,FIRE DETECTORS,12/10/2015,618,Operations Non Fire Stations,Health & Safety
021015H,*SPRUE SAFETY PRODUCTS LTD====,1081225,1,741.6,FIRE DETECTORS,12/10/2015,741.6,Operations Non Fire Stations,Health & Safety
071015M,G WORRALL & SON LIMITED=======,112618,1,300,TACTICAL DAY TO DAY,12/10/2015,300,Technical And Service Support,Facilities & Management S
071015M,VISTA LANDSCAPE MANAGEMENT LTD,121210,1,95.83,GROUNDS MAINTENANCE,12/10/2015,"2,232.46",Technical And Service Support,"Works - Construction, R&M"
071015M,VISTA LANDSCAPE MANAGEMENT LTD,121210,2,23,GROUNDS MAINTENANCE,12/10/2015,,Technical And Service Support,"Works - Construction, R&M"
071015M,VISTA LANDSCAPE MANAGEMENT LTD,121210,3,22.12,GROUNDS MAINTENANCE,12/10/2015,,Technical And Service Support,"Works - Construction, R&M"
071015M,VISTA LANDSCAPE MANAGEMENT LTD,121210,4,24.94,GROUNDS MAINTENANCE,12/10/2015,,Technical And Service Support,"Works - Construction, R&M"
071015M,VISTA LANDSCAPE MANAGEMENT LTD,121210,5,75,GROUNDS MAINTENANCE,12/10/2015,,Technical And Service Support,"Works - Construction, R&M"
071015M,VISTA LANDSCAPE MANAGEMENT LTD,121210,6,17.25,GROUNDS MAINTENANCE,12/10/2015,,Technical And Service Support,"Works - Construction, R&M"
071015M,VISTA LANDSCAPE MANAGEMENT LTD,121210,7,25.77,GROUNDS MAINTENANCE,12/10/2015,,Technical And Service Support,"Works - Construction, R&M"
071015M,VISTA LANDSCAPE MANAGEMENT LTD,121210,8,17.25,GROUNDS MAINTENANCE,12/10/2015,,Technical And Service Support,"Works - Construction, R&M"
071015M,VISTA LANDSCAPE MANAGEMENT LTD,121210,9,46,GROUNDS MAINTENANCE,12/10/2015,,Technical And Service Support,"Works - Construction, R&M"
071015M,VISTA LANDSCAPE MANAGEMENT LTD,121210,10,11.5,GROUNDS MAINTENANCE,12/10/2015,,Technical And Service Support,"Works - Construction, R&M"
071015M,VISTA LANDSCAPE MANAGEMENT LTD,121210,11,109.25,GROUNDS MAINTENANCE,12/10/2015,,Technical And Service Support,"Works - Construction, R&M"
071015M,VISTA LANDSCAPE MANAGEMENT LTD,121210,12,11.5,GROUNDS MAINTENANCE,12/10/2015,,Technical And Service Support,"Works - Construction, R&M"
071015M,VISTA LANDSCAPE MANAGEMENT LTD,121210,13,82.52,GROUNDS MAINTENANCE,12/10/2015,,Technical And Service Support,"Works - Construction, R&M"
071015M,VISTA LANDSCAPE MANAGEMENT LTD,121210,14,22.05,GROUNDS MAINTENANCE,12/10/2015,,Technical And Service Support,"Works - Construction, R&M"
071015M,VISTA LANDSCAPE MANAGEMENT LTD,121210,15,17.25,GROUNDS MAINTENANCE,12/10/2015,,Technical And Service Support,"Works - Construction, R&M"
071015M,VISTA LANDSCAPE MANAGEMENT LTD,121210,16,127.05,GROUNDS MAINTENANCE,12/10/2015,,Technical And Service Support,"Works - Construction, R&M"
071015M,VISTA LANDSCAPE MANAGEMENT LTD,121210,17,11.5,GROUNDS MAINTENANCE,12/10/2015,,Technical And Service Support,"Works - Construction, R&M"
071015M,VISTA LANDSCAPE MANAGEMENT LTD,121210,18,17.25,GROUNDS MAINTENANCE,12/10/2015,,Technical And Service Support,"Works - Construction, R&M"
071015M,VISTA LANDSCAPE MANAGEMENT LTD,121210,19,11.5,GROUNDS MAINTENANCE,12/10/2015,,Technical And Service Support,"Works - Construction, R&M"
071015M,VISTA LANDSCAPE MANAGEMENT LTD,121210,20,17.25,GROUNDS MAINTENANCE,12/10/2015,,Technical And Service Support,"Works - Construction, R&M"
071015M,VISTA LANDSCAPE MANAGEMENT LTD,121210,21,22.36,GROUNDS MAINTENANCE,12/10/2015,,Technical And Service Support,"Works - Construction, R&M"
071015M,VISTA LANDSCAPE MANAGEMENT LTD,121210,22,11.5,GROUNDS MAINTENANCE,12/10/2015,,Technical And Service Support,"Works - Construction, R&M"
071015M,VISTA LANDSCAPE MANAGEMENT LTD,121210,23,11.5,GROUNDS MAINTENANCE,12/10/2015,,Technical And Service Support,"Works - Construction, R&M"
071015M,VISTA LANDSCAPE MANAGEMENT LTD,121210,24,79.85,GROUNDS MAINTENANCE,12/10/2015,,Technical And Service Support,"Works - Construction, R&M"
071015M,VISTA LANDSCAPE MANAGEMENT LTD,121210,25,83.96,GROUNDS MAINTENANCE,12/10/2015,,Technical And Service Support,"Works - Construction, R&M"
071015M,VISTA LANDSCAPE MANAGEMENT LTD,121210,26,17.25,GROUNDS MAINTENANCE,12/10/2015,,Technical And Service Support,"Works - Construction, R&M"
071015M,VISTA LANDSCAPE MANAGEMENT LTD,121210,27,256.21,GROUNDS MAINTENANCE,12/10/2015,,Technical And Service Support,"Works - Construction, R&M"
071015M,VISTA LANDSCAPE MANAGEMENT LTD,121210,28,17.26,GROUNDS MAINTENANCE,12/10/2015,,Technical And Service Support,"Works - Construction, R&M"
071015M,VISTA LANDSCAPE MANAGEMENT LTD,121210,29,63.14,GROUNDS MAINTENANCE,12/10/2015,,Technical And Service Support,"Works - Construction, R&M"
071015M,VISTA LANDSCAPE MANAGEMENT LTD,121210,30,11.5,GROUNDS MAINTENANCE,12/10/2015,,Technical And Service Support,"Works - Construction, R&M"
071015M,VISTA LANDSCAPE MANAGEMENT LTD,121210,31,11.5,GROUNDS MAINTENANCE,12/10/2015,,Technical And Service Support,"Works - Construction, R&M"
071015M,VISTA LANDSCAPE MANAGEMENT LTD,121210,32,16.63,GROUNDS MAINTENANCE,12/10/2015,,Technical And Service Support,"Works - Construction, R&M"
071015M,VISTA LANDSCAPE MANAGEMENT LTD,121210,33,73.18,GROUNDS MAINTENANCE,12/10/2015,,Technical And Service Support,"Works - Construction, R&M"
071015M,VISTA LANDSCAPE MANAGEMENT LTD,121210,34,118.23,GROUNDS MAINTENANCE,12/10/2015,,Technical And Service Support,"Works - Construction, R&M"
071015M,VISTA LANDSCAPE MANAGEMENT LTD,121210,35,555,GROUNDS MAINTENANCE,12/10/2015,,Technical And Service Support,"Works - Construction, R&M"
071015M,VISTA LANDSCAPE MANAGEMENT LTD,121210,36,20.83,GROUNDS MAINTENANCE,12/10/2015,,Technical And Service Support,"Works - Construction, R&M"
071015M,VISTA LANDSCAPE MANAGEMENT LTD,121210,37,64.28,GROUNDS MAINTENANCE,12/10/2015,,Technical And Service Support,"Works - Construction, R&M"
071015M,VISTA LANDSCAPE MANAGEMENT LTD,121210,38,12.5,GROUNDS MAINTENANCE,12/10/2015,,Technical And Service Support,"Works - Construction, R&M"
141215,THAMES WATER UTILITIES LTD====,1295196012I,1,508.01,WATER & SEWERAGE RATES,12/10/2015,508.01,Technical And Service Support,Utilities
061015H,SURREY BLIND & CURTAIN CO=====,14816,1,706,STRATEGIC (NON CYCLICAL),12/10/2015,706,Technical and Service Support,"Works - Construction, R&M"
071015M,IRG ADVISORS LLP,15000941 SJM 50815,1,"10,050.12",CONSULTANTS,12/10/2015,"10,050.12",Corporate Management Team,Human Resources
071015M,IRG ADVISORS LLP,15001623 SJM 50815,1,"2,420.00",CONSULTANTS,12/10/2015,"2,420.00",Corporate Management Team,Human Resources
061015H,NEIL STEWART ASSOCIATES=======,1678343-85660065,1,340,PROFESSIONAL DEVELOPMENT,12/10/2015,340,Strategy & Inclusion,Human Resources
061015H,THE FILE FACTORY LIMITED,1911,1,255,STATIONERY CONSUMABLES,12/10/2015,255,Technical And Service Support,Facilities & Management S
071015M,DYSLEXIA ACTION,191177,1,"1,080.00",LEARNING SUPPORT,12/10/2015,"1,080.00",Development and Training,Human Resources
071015M,CHAIN GANG,20922,1,947.25,POSTAL SERVICES,12/10/2015,947.25,Information Management,Mail Services
071015M,CHAIN GANG,21007,1,849.57,POSTAL SERVICES,12/10/2015,849.57,Information Management,Mail Services
071015M,GRADIENT CONSULTANTS LLP======,2405,1,55,ASBESTOS,12/10/2015,"2,435.00",Technical and Service Support,"Works - Construction, R&M"
071015M,GRADIENT CONSULTANTS LLP======,2405,2,350,ASBESTOS,12/10/2015,,Technical and Service Support,"Works - Construction, R&M"
071015M,GRADIENT CONSULTANTS LLP======,2405,3,350,ASBESTOS,12/10/2015,,Technical and Service Support,"Works - Construction, R&M"
071015M,GRADIENT CONSULTANTS LLP======,2405,4,350,ASBESTOS,12/10/2015,,Technical and Service Support,"Works - Construction, R&M"
071015M,GRADIENT CONSULTANTS LLP======,2405,5,350,ASBESTOS,12/10/2015,,Technical and Service Support,"Works - Construction, R&M"
071015M,GRADIENT CONSULTANTS LLP======,2405,6,350,STRATEGIC (CYCLICAL),12/10/2015,,Technical and Service Support,"Works - Construction, R&M"
071015M,GRADIENT CONSULTANTS LLP======,2405,7,105,STRATEGIC (NON CYCLICAL),12/10/2015,,Technical and Service Support,"Works - Construction, R&M"
071015M,GRADIENT CONSULTANTS LLP======,2405,8,105,STRATEGIC (NON CYCLICAL),12/10/2015,,Technical and Service Support,"Works - Construction, R&M"
071015M,GRADIENT CONSULTANTS LLP======,2405,9,105,STRATEGIC (NON CYCLICAL),12/10/2015,,Technical and Service Support,"Works - Construction, R&M"
071015M,GRADIENT CONSULTANTS LLP======,2405,10,105,STRATEGIC (NON CYCLICAL),12/10/2015,,Technical and Service Support,"Works - Construction, R&M"
071015M,GRADIENT CONSULTANTS LLP======,2405,11,105,STRATEGIC (NON CYCLICAL),12/10/2015,,Technical and Service Support,"Works - Construction, R&M"
071015M,GRADIENT CONSULTANTS LLP======,2405,12,105,STRATEGIC (NON CYCLICAL),12/10/2015,,Technical and Service Support,"Works - Construction, R&M"
800066398,ADECCO UK LIMITED=============,27140679,1,727.2,FRS STAFF AGENCY,12/10/2015,727.2,Technical And Service Support,Human Resources
800066399,ADECCO UK LIMITED=============,27140680,1,484.8,FRS STAFF AGENCY,12/10/2015,484.8,Technical And Service Support,Human Resources
800066400,ADECCO UK LIMITED=============,27140681,1,"1,212.00",FRS STAFF AGENCY,12/10/2015,"1,212.00",Technical And Service Support,Human Resources
800066401,ADECCO UK LIMITED=============,27140684,1,969.6,FRS STAFF AGENCY,12/10/2015,969.6,Technical And Service Support,Human Resources
800066402,ADECCO UK LIMITED=============,27140685,1,969.6,FRS STAFF AGENCY,12/10/2015,969.6,Technical And Service Support,Human Resources
800066403,ADECCO UK LIMITED=============,27165468,1,"1,212.00",FRS STAFF AGENCY,12/10/2015,"1,212.00",Technical And Service Support,Human Resources
800066376,ADECCO UK LIMITED=============,27239157,1,641.9,FRS STAFF AGENCY,12/10/2015,641.9,Technical And Service Support,Human Resources
800066383,ADECCO UK LIMITED=============,27239181,1,"1,961.80",FRS STAFF AGENCY,12/10/2015,"1,961.80",Legal & Democratic Services,Human Resources
800066391,ADECCO UK LIMITED=============,27245382,1,926.8,FRS STAFF AGENCY,12/10/2015,926.8,Review of Property Services,Human Resources
800066384,ADECCO UK LIMITED=============,27245388,1,"1,471.35",FRS STAFF AGENCY,12/10/2015,"1,471.35",Legal & Democratic Services,Human Resources
800066020,ADECCO UK LIMITED=============,27263850,1,554.75,FRS STAFF AGENCY,12/10/2015,554.75,Information and Communication Technology,Human Resources
800066325,ADECCO UK LIMITED=============,27269779,1,439.6,FRS STAFF AGENCY,12/10/2015,439.6,HR Management,Human Resources
800066327,ADECCO UK LIMITED=============,27269781,1,942.2,FRS STAFF AGENCY,12/10/2015,942.2,Technical And Service Support,Human Resources
800066328,ADECCO UK LIMITED=============,27269782,1,396.25,FRS STAFF AGENCY,12/10/2015,396.25,Strategy & Inclusion,Human Resources
800066329,ADECCO UK LIMITED=============,27269783,1,499.52,FRS STAFF AGENCY,12/10/2015,499.52,Information Management,Human Resources
800066333,ADECCO UK LIMITED=============,27269787,1,552.72,FRS STAFF AGENCY,12/10/2015,552.72,National Operational Guidance Project,Human Resources
800066337,ADECCO UK LIMITED=============,27269793,1,624.4,FRS STAFF AGENCY,12/10/2015,624.4,Finance Services,Human Resources
800066341,ADECCO UK LIMITED=============,27269797,1,345.52,FRS STAFF AGENCY,12/10/2015,345.52,Communications,Human Resources
800066346,ADECCO UK LIMITED=============,27269802,1,554.75,FRS STAFF AGENCY,12/10/2015,554.75,Community Safety Delivery,Human Resources
800066336,ADECCO UK LIMITED=============,27269807,1,737.8,FRS STAFF AGENCY,12/10/2015,737.8,Technical And Service Support,Human Resources
800066348,ADECCO UK LIMITED=============,27269809,1,624.4,FRS STAFF AGENCY,12/10/2015,624.4,Procurement,Human Resources
800066354,ADECCO UK LIMITED=============,27269815,1,624.4,FRS STAFF AGENCY,12/10/2015,624.4,Technical And Service Support,Human Resources
800066355,ADECCO UK LIMITED=============,27269816,1,523.54,FRS STAFF AGENCY,12/10/2015,523.54,National Operational Guidance Project,Human Resources
800066357,ADECCO UK LIMITED=============,27269818,1,439.6,FRS STAFF AGENCY,12/10/2015,439.6,Operations Non Fire Stations,Human Resources
800066358,ADECCO UK LIMITED=============,27269819,1,554.75,FRS STAFF AGENCY,12/10/2015,554.75,Community Safety Delivery,Human Resources
800066359,ADECCO UK LIMITED=============,27269820,1,554.75,FRS STAFF AGENCY,12/10/2015,554.75,Exercise Unified Response,Human Resources
800066360,ADECCO UK LIMITED=============,27269821,1,499.52,FRS STAFF AGENCY,12/10/2015,499.52,Technical And Service Support,Human Resources
800066363,ADECCO UK LIMITED=============,27269824,1,554.75,FRS STAFF AGENCY,12/10/2015,554.75,Information and Communication Technology,Human Resources
011015H,DRAEGER SAFETY UK LIMITED=====,2910029934,1,86,PROTECTIVE EQUIPT - PARTS,12/10/2015,"1,792.80",Technical and Service Support,Fire & Rescue
011015H,DRAEGER SAFETY UK LIMITED=====,2910029934,2,162,PROTECTIVE EQUIPT - PARTS,12/10/2015,,Technical and Service Support,Fire & Rescue
011015H,DRAEGER SAFETY UK LIMITED=====,2910029934,3,60,PROTECTIVE EQUIPT - PARTS,12/10/2015,,Technical and Service Support,Fire & Rescue
011015H,DRAEGER SAFETY UK LIMITED=====,2910029934,4,265.5,PROTECTIVE EQUIPT - PARTS,12/10/2015,,Technical and Service Support,Fire & Rescue
011015H,DRAEGER SAFETY UK LIMITED=====,2910029934,5,570.3,PROTECTIVE EQUIPT - PARTS,12/10/2015,,Technical and Service Support,Fire & Rescue
011015H,DRAEGER SAFETY UK LIMITED=====,2910029934,6,565,PROTECTIVE EQUIPT - PARTS,12/10/2015,,Technical and Service Support,Fire & Rescue
011015H,DRAEGER SAFETY UK LIMITED=====,2910029934,7,84,PROTECTIVE EQUIPT - PARTS,12/10/2015,,Technical and Service Support,Fire & Rescue
011015H,DRAEGER SAFETY UK LIMITED=====,2910030009,1,432.6,PROTECTIVE EQUIPT - PARTS,12/10/2015,"3,785.63",Technical and Service Support,Fire & Rescue
011015H,DRAEGER SAFETY UK LIMITED=====,2910030009,2,717.5,PROTECTIVE EQUIPT - PARTS,12/10/2015,,Technical and Service Support,Fire & Rescue
011015H,DRAEGER SAFETY UK LIMITED=====,2910030009,3,45.48,PROTECTIVE EQUIPT - PARTS,12/10/2015,,Technical and Service Support,Fire & Rescue
011015H,DRAEGER SAFETY UK LIMITED=====,2910030009,4,851.1,PROTECTIVE EQUIPT - PARTS,12/10/2015,,Technical and Service Support,Fire & Rescue
011015H,DRAEGER SAFETY UK LIMITED=====,2910030009,5,853.95,PROTECTIVE EQUIPT - PARTS,12/10/2015,,Technical and Service Support,Fire & Rescue
011015H,DRAEGER SAFETY UK LIMITED=====,2910030009,6,885,PROTECTIVE EQUIPT - PARTS,12/10/2015,,Technical and Service Support,Fire & Rescue
011015H,DRAEGER SAFETY UK LIMITED=====,2910030093,1,424.8,PROTECTIVE EQUIPT - PARTS,12/10/2015,424.8,Technical and Service Support,Fire & Rescue
061015H,B NOKES CONTRACTS LTD,2913,1,"1,742.00",STRATEGIC (NON CYCLICAL),12/10/2015,"1,742.00",Technical and Service Support,"Works - Construction, R&M"
061015H,B NOKES CONTRACTS LTD,2938,1,"1,225.00",STRATEGIC (NON CYCLICAL),12/10/2015,"1,225.00",Technical and Service Support,"Works - Construction, R&M"
061015H,B NOKES CONTRACTS LTD,2940,1,"1,225.00",STRATEGIC (NON CYCLICAL),12/10/2015,"1,225.00",Technical and Service Support,"Works - Construction, R&M"
061015H,B NOKES CONTRACTS LTD,2946,1,548,TACTICAL DAY TO DAY,12/10/2015,548,Technical And Service Support,"Works - Construction, R&M"
061015H,B NOKES CONTRACTS LTD,2947,1,"1,225.00",STRATEGIC (NON CYCLICAL),12/10/2015,"1,225.00",Technical and Service Support,"Works - Construction, R&M"
061015H,B NOKES CONTRACTS LTD,2949,1,518,TACTICAL DAY TO DAY,12/10/2015,518,Technical And Service Support,"Works - Construction, R&M"
061015H,B NOKES CONTRACTS LTD,2957,1,548,TACTICAL DAY TO DAY,12/10/2015,548,Technical And Service Support,"Works - Construction, R&M"
061015H,B NOKES CONTRACTS LTD,2958,1,548,TACTICAL DAY TO DAY,12/10/2015,548,Technical And Service Support,"Works - Construction, R&M"
061015H,B NOKES CONTRACTS LTD,2959,1,548,TACTICAL DAY TO DAY,12/10/2015,548,Technical And Service Support,"Works - Construction, R&M"
061015H,B NOKES CONTRACTS LTD,2960,1,548,TACTICAL DAY TO DAY,12/10/2015,548,Technical And Service Support,"Works - Construction, R&M"
061015H,B NOKES CONTRACTS LTD,2961,1,518,TACTICAL DAY TO DAY,12/10/2015,518,Technical And Service Support,"Works - Construction, R&M"
061015H,B NOKES CONTRACTS LTD,2962,1,518,TACTICAL DAY TO DAY,12/10/2015,518,Technical And Service Support,"Works - Construction, R&M"
061015H,B NOKES CONTRACTS LTD,2963,1,518,TACTICAL DAY TO DAY,12/10/2015,518,Technical And Service Support,"Works - Construction, R&M"
061015H,B NOKES CONTRACTS LTD,2964,1,"1,225.00",STRATEGIC (NON CYCLICAL),12/10/2015,"1,225.00",Technical and Service Support,"Works - Construction, R&M"
061015H,B NOKES CONTRACTS LTD,2965,1,318,TACTICAL DAY TO DAY,12/10/2015,318,Technical And Service Support,"Works - Construction, R&M"
061015H,B NOKES CONTRACTS LTD,2966,1,318,TACTICAL DAY TO DAY,12/10/2015,318,Technical And Service Support,"Works - Construction, R&M"
061015H,B NOKES CONTRACTS LTD,2967,1,518,TACTICAL DAY TO DAY,12/10/2015,518,Technical And Service Support,"Works - Construction, R&M"
061015H,B NOKES CONTRACTS LTD,2969,1,630,STRATEGIC (NON CYCLICAL),12/10/2015,"1,890.00",Technical and Service Support,"Works - Construction, R&M"
061015H,B NOKES CONTRACTS LTD,2969,2,630,STRATEGIC (NON CYCLICAL),12/10/2015,,Technical and Service Support,"Works - Construction, R&M"
061015H,B NOKES CONTRACTS LTD,2969,3,630,STRATEGIC (NON CYCLICAL),12/10/2015,,Technical And Service Support,"Works - Construction, R&M"
141215,THAMES WATER UTILITIES LTD====,3199131348I,1,541.35,WATER & SEWERAGE RATES,12/10/2015,541.35,Technical And Service Support,Utilities
071015M,CADET DIRECT LTD,353747,1,25.47,CLOTHING,12/10/2015,280.23,Cadets,Clothing
071015M,CADET DIRECT LTD,353747,2,25.47,CLOTHING,12/10/2015,,Cadets,Clothing
071015M,CADET DIRECT LTD,353747,3,67.92,CLOTHING,12/10/2015,,Cadets,Clothing
071015M,CADET DIRECT LTD,353747,4,67.92,CLOTHING,12/10/2015,,Cadets,Clothing
071015M,CADET DIRECT LTD,353747,5,67.92,CLOTHING,12/10/2015,,Cadets,Clothing
071015M,CADET DIRECT LTD,353747,6,25.53,CLOTHING,12/10/2015,,Cadets,Clothing
071015M,HANDS FREE COMPUTING LTD======,36794,1,345,ACQUISITIONS,12/10/2015,345,Development and Training,Human Resources
071015M,EUROLOOS LTD,39352,1,850,OPERATIONAL EQUIP-PURCHASE,12/10/2015,850,Operations Non Fire Stations,Facilities & Management S
061015H,SPORTSAFE UK LTD==============,477333,1,295,GYM EQUIPMENT,12/10/2015,477.08,Technical And Service Support,Sports & Playground Equip
061015H,SPORTSAFE UK LTD==============,477333,2,182.08,GYM EQUIPMENT,12/10/2015,,Technical And Service Support,Sports & Playground Equip
061015H,FOCUS & VISION TECHNOLOGY LTD,48265,1,250.44,MEDICAL EXPENSES CONTRACT,12/10/2015,250.44,HR Management,Healthcare
061015H,FOCUS & VISION TECHNOLOGY LTD,48306,1,349.76,MEDICAL EXPENSES CONTRACT,12/10/2015,349.76,HR Management,Healthcare
141212,REACTIVE ROOFING (UK) LIMITED,4943,1,"1,615.70",STRATEGIC (NON CYCLICAL),12/10/2015,"2,665.70",Technical and Service Support,"Works - Construction, R&M"
141212,REACTIVE ROOFING (UK) LIMITED,4943,2,"1,050.00",STRATEGIC (NON CYCLICAL),12/10/2015,,Technical and Service Support,"Works - Construction, R&M"
061015H,R J HOLLAND LTD===============,5121,1,"9,990.00",STRATEGIC (NON CYCLICAL),12/10/2015,"9,990.00",Technical and Service Support,"Works - Construction, R&M"
061015H,R J HOLLAND LTD===============,5122,1,"5,995.00",STRATEGIC (NON CYCLICAL),12/10/2015,"5,995.00",Technical and Service Support,"Works - Construction, R&M"
141215,THAMES WATER UTILITIES LTD====,5331032015I,1,"1,375.81",WATER & SEWERAGE RATES,12/10/2015,"1,375.81",Technical And Service Support,Utilities
141213,BRITISH GAS BUSINESS==========,5502903151,1,947.18,ELECTRICITY,12/10/2015,"20,173.40",Technical And Service Support,Utilities
141213,BRITISH GAS BUSINESS==========,5502903151,2,747.77,ELECTRICITY,12/10/2015,,Technical And Service Support,Utilities
141213,BRITISH GAS BUSINESS==========,5502903151,3,618.98,ELECTRICITY,12/10/2015,,Technical And Service Support,Utilities
141213,BRITISH GAS BUSINESS==========,5502903151,4,709.44,ELECTRICITY,12/10/2015,,Technical And Service Support,Utilities
141213,BRITISH GAS BUSINESS==========,5502903151,5,797.34,ELECTRICITY,12/10/2015,,Technical And Service Support,Utilities
141213,BRITISH GAS BUSINESS==========,5502903151,6,853.49,ELECTRICITY,12/10/2015,,Technical And Service Support,Utilities
141213,BRITISH GAS BUSINESS==========,5502903151,7,790.09,ELECTRICITY,12/10/2015,,Technical And Service Support,Utilities
141213,BRITISH GAS BUSINESS==========,5502903151,8,705.16,ELECTRICITY,12/10/2015,,Technical And Service Support,Utilities
141213,BRITISH GAS BUSINESS==========,5502903151,9,599.73,ELECTRICITY,12/10/2015,,Technical And Service Support,Utilities
141213,BRITISH GAS BUSINESS==========,5502903151,10,535.73,ELECTRICITY,12/10/2015,,Technical And Service Support,Utilities
141213,BRITISH GAS BUSINESS==========,5502903151,11,316.6,ELECTRICITY,12/10/2015,,Technical And Service Support,Utilities
141213,BRITISH GAS BUSINESS==========,5502903151,12,862.67,ELECTRICITY,12/10/2015,,Technical And Service Support,Utilities
141213,BRITISH GAS BUSINESS==========,5502903151,13,357.34,ELECTRICITY,12/10/2015,,Technical And Service Support,Utilities
141213,BRITISH GAS BUSINESS==========,5502903151,14,537.8,ELECTRICITY,12/10/2015,,Technical And Service Support,Utilities
141213,BRITISH GAS BUSINESS==========,5502903151,15,"1,427.87",ELECTRICITY,12/10/2015,,Technical And Service Support,Utilities
141213,BRITISH GAS BUSINESS==========,5502903151,16,"1,349.49",ELECTRICITY,12/10/2015,,Technical And Service Support,Utilities
141213,BRITISH GAS BUSINESS==========,5502903151,17,"1,007.34",ELECTRICITY,12/10/2015,,Technical And Service Support,Utilities
141213,BRITISH GAS BUSINESS==========,5502903151,18,"1,250.69",ELECTRICITY,12/10/2015,,Technical And Service Support,Utilities
141213,BRITISH GAS BUSINESS==========,5502903151,19,"1,116.86",ELECTRICITY,12/10/2015,,Technical And Service Support,Utilities
141213,BRITISH GAS BUSINESS==========,5502903151,20,272.57,ELECTRICITY,12/10/2015,,Technical And Service Support,Utilities
141213,BRITISH GAS BUSINESS==========,5502903151,21,239.25,ELECTRICITY,12/10/2015,,Technical And Service Support,Utilities
141213,BRITISH GAS BUSINESS==========,5502903151,22,295.81,ELECTRICITY,12/10/2015,,Technical And Service Support,Utilities
141213,BRITISH GAS BUSINESS==========,5502903151,23,689.82,ELECTRICITY,12/10/2015,,Technical And Service Support,Utilities
141213,BRITISH GAS BUSINESS==========,5502903151,24,607.39,ELECTRICITY,12/10/2015,,Technical And Service Support,Utilities
141213,BRITISH GAS BUSINESS==========,5502903151,25,56.25,ELECTRICITY,12/10/2015,,Technical And Service Support,Utilities
141213,BRITISH GAS BUSINESS==========,5502903151,26,261.98,ELECTRICITY,12/10/2015,,Technical And Service Support,Utilities
141213,BRITISH GAS BUSINESS==========,5502903151,27,826,ELECTRICITY,12/10/2015,,Technical And Service Support,Utilities
141213,BRITISH GAS BUSINESS==========,5502903151,28,454.01,ELECTRICITY,12/10/2015,,Technical And Service Support,Utilities
141213,BRITISH GAS BUSINESS==========,5502903151,29,938.75,ELECTRICITY,12/10/2015,,Technical And Service Support,Utilities
240915M,CAPITA SECURE INFO SOLUTIONS,6060006278,1,"149,356.00",CAMS CONTRACT,12/10/2015,"149,356.00",CAMS Project,ICT
061015H,MOORE STEPHENS CONSULTING LTD=,674039,1,286,TELECOMMUNICATIONS,12/10/2015,536,HR Management,ICT
061015H,MOORE STEPHENS CONSULTING LTD=,674039,2,250,TELECOMMUNICATIONS,12/10/2015,,HR Management,ICT
061015H,MOORE STEPHENS CONSULTING LTD=,674071,1,"39,175.40",MAINTENANCE & SUPPORT,12/10/2015,"39,175.40",Information and Communication Technology,ICT
061015H,MOORE STEPHENS CONSULTING LTD=,674086,1,"3,500.00",MAINTENANCE & SUPPORT,12/10/2015,"3,500.00",Community Safety Delivery,ICT
061015H,MOORE STEPHENS CONSULTING LTD=,674087,1,290,MAINTENANCE & SUPPORT,12/10/2015,"6,930.00",Information and Communication Technology,ICT
061015H,MOORE STEPHENS CONSULTING LTD=,674087,2,"2,500.00",MAINTENANCE & SUPPORT,12/10/2015,,Information and Communication Technology,ICT
061015H,MOORE STEPHENS CONSULTING LTD=,674087,3,"4,140.00",MAINTENANCE & SUPPORT,12/10/2015,,Information and Communication Technology,ICT
061015H,MOORE STEPHENS CONSULTING LTD=,674088,1,"1,500.00",MAINTENANCE & SUPPORT,12/10/2015,"3,000.00",Information and Communication Technology,ICT
061015H,MOORE STEPHENS CONSULTING LTD=,674088,2,250,TELECOMMUNICATIONS,12/10/2015,,HR Management,ICT
061015H,MOORE STEPHENS CONSULTING LTD=,674088,3,250,TELECOMMUNICATIONS,12/10/2015,,HR Management,ICT
061015H,MOORE STEPHENS CONSULTING LTD=,674088,4,"1,000.00",TELECOMMUNICATIONS,12/10/2015,,HR Management,ICT
061015H,MOORE STEPHENS CONSULTING LTD=,674089,1,"4,000.00",PURCHASES-COMPUTER/EQUIPMENT,12/10/2015,"4,000.00",Information and Communication Technology,ICT
061015H,BOON EDAM LTD,724952,1,581.73,TACTICAL DAY TO DAY,12/10/2015,581.73,Technical And Service Support,Building Constr Materials
061015H,MARTIN LAVELL LTD=============,78062,1,372,BOOKS & JOURNALS,12/10/2015,372,Communications,Education
071015M,FIRE SERVICE COLLEGE LTD======,804315,1,325,PROFESSIONAL DEVELOPMENT,12/10/2015,325,National Operational Guidance Project,Human Resources
061015H,MARTIN LAVELL LTD=============,80947,1,460.5,BOOKS & JOURNALS,12/10/2015,460.5,Communications,Education
141217,DR OLIVER J F FOSTER,8145 EVERETT,1,"12,800.00",DOCTORS/MEDICAL FEES,12/10/2015,"12,800.00",Compensation Budgets,Legal Services
071015M,SHARPE PRITCHARD==============,82250,1,"3,270.00",PROFESSIONAL SERVICES,12/10/2015,"3,270.00",Technical And Service Support,Legal Services
061015H,MARTIN LAVELL LTD=============,83831,1,372.1,BOOKS & JOURNALS,12/10/2015,372.1,Communications,Education
071015M,TWO SERVICES LTD==============,84089,1,373.3,TACTICAL DAY TO DAY,12/10/2015,373.3,Technical And Service Support,Catering
071015M,TWO SERVICES LTD==============,84104,1,311.75,TACTICAL DAY TO DAY,12/10/2015,311.75,Technical And Service Support,Catering
141215,SUTTON & EAST SURREY WATER PLC,8731904I,1,586.47,WATER & SEWERAGE RATES,12/10/2015,586.47,Technical And Service Support,Utilities
141218,THOMPSONS SOLICITORS==========,9066,2,"36,500.00",CLAIMANT COSTS AGREED,12/10/2015,"36,500.00",Compensation Budgets,Legal Services
021015H,VIMPEX LIMITED================,92686,1,251.6,CLOTHING,12/10/2015,251.6,Cadets,Fire & Rescue
021015H,VIMPEX LIMITED================,92687,1,251.6,CLOTHING,12/10/2015,251.6,Cadets,Fire & Rescue
021015H,VIMPEX LIMITED================,92688,1,251.6,CLOTHING,12/10/2015,251.6,Cadets,Fire & Rescue
051015M,VIMPEX LIMITED================,92689,1,125.8,CLOTHING,12/10/2015,251.6,Cadets,Fire & Rescue
051015M,VIMPEX LIMITED================,92689,2,125.8,CLOTHING,12/10/2015,,Cadets,Fire & Rescue
021015H,VIMPEX LIMITED================,92691,1,251.6,CLOTHING,12/10/2015,251.6,Cadets,Fire & Rescue
071015M,E&S B DAVIS LTD,DAV/58349,1,295,OPERATIONAL EQUIP-PURCHASE,12/10/2015,295,Operations Fire Stations,Environmental Services
071015M,E&S B DAVIS LTD,DAV/58375,1,295,OPERATIONAL EQUIP-PURCHASE,12/10/2015,295,Operations Fire Stations,Environmental Services
071015M,E&S B DAVIS LTD,DAV/58421,1,295,OPERATIONAL EQUIP-PURCHASE,12/10/2015,295,Operations Fire Stations,Environmental Services
071015M,E&S B DAVIS LTD,DAV/58422,1,295,OPERATIONAL EQUIP-PURCHASE,12/10/2015,295,Operations Fire Stations,Environmental Services
071015M,E&S B DAVIS LTD,DAV/58568,1,295,OPERATIONAL EQUIP-PURCHASE,12/10/2015,295,Operations Fire Stations,Environmental Services
071015M,E&S B DAVIS LTD,DAV/58662,1,590,OPERATIONAL EQUIP-PURCHASE,12/10/2015,590,Operations Fire Stations,Environmental Services
071015M,BLUESKY SHAREPOINT CONSULTING,INV-1530,1,"2,975.00",CONSULTANTS,12/10/2015,"2,975.00",National Operational Guidance Project,Consultancy
141215,LEX AUTOLEASE,IRIN412345,1,"2,885.67",LEASE CAR CHARGES,12/10/2015,"4,364.28",Procurement,Vehicle Management
141215,LEX AUTOLEASE,IRIN412345,2,"1,478.61",P/PAYMTS-CAR LEASG-RENTAL,12/10/2015,,Finance Services,Vehicle Management
141215,LEX AUTOLEASE,IRIN412345,3,-378.9,VAT CAR LEASING,12/10/2015,,Finance Services,Vehicle Management
141215,LEX AUTOLEASE,IRIN412345,4,378.9,LEASE CAR CHARGES,12/10/2015,,Procurement,Vehicle Management
051015M,SPECIALIST COMPUTER CENTRES===,OP/M057619,1,"3,392.05",ACQUISITIONS,12/10/2015,"5,025.52",Exercise Unified Response,ICT
051015M,SPECIALIST COMPUTER CENTRES===,OP/M057619,2,338.05,ACQUISITIONS,12/10/2015,,Exercise Unified Response,ICT
051015M,SPECIALIST COMPUTER CENTRES===,OP/M057619,3,107.55,ACQUISITIONS,12/10/2015,,Exercise Unified Response,ICT
051015M,SPECIALIST COMPUTER CENTRES===,OP/M057619,4,23.9,ACQUISITIONS,12/10/2015,,Exercise Unified Response,ICT
051015M,SPECIALIST COMPUTER CENTRES===,OP/M057619,5,875.1,ACQUISITIONS,12/10/2015,,Information and Communication Technology,ICT
051015M,SPECIALIST COMPUTER CENTRES===,OP/M057619,6,202.83,ACQUISITIONS,12/10/2015,,Information and Communication Technology,ICT
051015M,SPECIALIST COMPUTER CENTRES===,OP/M057619,7,86.04,ACQUISITIONS,12/10/2015,,Information and Communication Technology,ICT
071015M,PILLINGER CONTROLS LTD========,PI74459,1,525,CONSULTANTS,12/10/2015,525,Technical And Service Support,Environmental Services
091015M,APPLUS LLT,15089,1,"3,750.00",GENERAL,14/10/2015,"3,750.00",Procurement,Vehicle Management
081015M,JEWERS SPECIALIST DOORS=======,10257,1,950,PROF FEES-MISCELLANEOUS,15/10/2015,950,Technical and Service Support,"Works - Construction, R&M"
081015M,JEWERS SPECIALIST DOORS=======,10258,1,950,PROF FEES-MISCELLANEOUS,15/10/2015,950,Technical and Service Support,"Works - Construction, R&M"
290915H,HEALTH MANAGEMENT LIMITED=====,137523,1,"11,959.04",DRUG & ALCOHOL TESTS,15/10/2015,"14,623.51",HR Management,Healthcare
290915H,HEALTH MANAGEMENT LIMITED=====,137523,2,"2,664.47",OHS CONTRACT,15/10/2015,,HR Management,Healthcare
081015M,MOOLANDS LTD,3034,1,"1,200.00",STRATEGIC (NON CYCLICAL),15/10/2015,"1,200.00",Technical and Service Support,"Works - Construction, R&M"
091015M,MOOLANDS LTD,3073,1,808.62,TACTICAL DAY TO DAY,15/10/2015,808.62,Technical And Service Support,"Works - Construction, R&M"
141218,OGILVIE FLEET LTD=============,354510,1,539.19,LEASE CAR CHARGES,15/10/2015,539.19,Procurement,Vehicle Management
141218,OGILVIE FLEET LTD=============,354510,2,-48.49,VAT CAR LEASING,15/10/2015,,Finance Services,Vehicle Management
141218,OGILVIE FLEET LTD=============,354510,3,48.49,LEASE CAR CHARGES,15/10/2015,,Procurement,Vehicle Management
141218,THAMES WATER UTILITIES LTD====,0139435144J,1,"3,074.58",WATER & SEWERAGE RATES,15/10/2015,"3,074.58",Technical And Service Support,Utilities
091015M,*SPRUE SAFETY PRODUCTS LTD====,1080732,1,494.4,FIRE DETECTORS,15/10/2015,494.4,Operations Non Fire Stations,Health & Safety
091015M,*SPRUE SAFETY PRODUCTS LTD====,1080742,1,618,FIRE DETECTORS,15/10/2015,618,Operations Non Fire Stations,Health & Safety
081015M,*SPRUE SAFETY PRODUCTS LTD====,1081200,1,618,FIRE DETECTORS,15/10/2015,618,Operations Non Fire Stations,Health & Safety
121015M,*SPRUE SAFETY PRODUCTS LTD====,1081258,1,"2,595.60",FIRE DETECTORS,15/10/2015,"2,595.60",Operations Non Fire Stations,Health & Safety
121015M,*SPRUE SAFETY PRODUCTS LTD====,1081259,1,"1,112.40",FIRE DETECTORS,15/10/2015,"1,112.40",Operations Non Fire Stations,Health & Safety
051015M,*SPRUE SAFETY PRODUCTS LTD====,1081261,1,"1,112.40",FIRE DETECTORS,15/10/2015,"1,112.40",Operations Non Fire Stations,Health & Safety
051015M,*SPRUE SAFETY PRODUCTS LTD====,1081262,1,988.8,FIRE DETECTORS,15/10/2015,988.8,Operations Non Fire Stations,Health & Safety
051015M,*SPRUE SAFETY PRODUCTS LTD====,1081264,1,865.2,FIRE DETECTORS,15/10/2015,865.2,Operations Non Fire Stations,Health & Safety
